Workbook

Sheet Main
B10: 2021-05-27
B12: Sheet No. | C12: Template Name | D12: Summary
B13: 1 | C13: Future Intra | D13: For Intraday trading in F&O segment
B14: 2 | C14: Cash Intra | D14: For Intraday trading in cash market segment
B15: 3 | C15: Mid-cap Intra | D15: For Intraday trading in Mid-cap stocks
B16: 4 | C16: Bulk Deals | D16: Reveals Bulk Deals carried on NSE & BSE
B17: 5 | C17: Call Tracker
K27: `

Sheet Future Intra
M5: Back to Main Page
A6: FOR INTRA DAY TRADING | L6: =Main!B10 -> 2021-05-27
A9: Sr.no | B9: Sector | C9: Scrip | D9: Expiry Date | E9: CLOSE RATE | F9: Pivot Point | G9: Supports | J9: Resistances
B10: Sector | E10: Point | F10: Point | G10: S1 | H10: S2 | I10: S3 | J10: R1 | K10: R2 | L10: R3 | M10: HIGH | N10: LOW | O10: OI | P10: % Change in OI
A11: 1 | B11: Index | C11: BANKNIFTY | D11: 2021-05-27 | E11: 34723.95 | F11: 34738.67 | G11: 34487.43 | H11: 34250.92 | I11: 33999.68 | J11: 34975.18 | K11: 35226.42 | L11: 35462.93 | M11: 34989.9 | N11: 34502.15 | O11: 2216625 | P11: 7.00%
A12: 2 | B12: Index | C12: NIFTY | D12: 2021-05-27 | E12: 15303.00 | F12: 15274.73 | G12: 15225.47 | H12: 15147.93 | I12: 15098.67 | J12: 15352.27 | K12: 15401.53 | L12: 15479.07 | M12: 15324 | N12: 15197.2 | O12: 13195900 | P12: 4.69%
A13: 3 | B13: Index | C13: FINNIFTY | D13: 2021-05-27 | E13: 16431.05 | F13: 16405.88 | G13: 16326.02 | H13: 16220.98 | I13: 16141.12 | J13: 16510.92 | K13: 16590.78 | L13: 16695.82 | M13: 16485.75 | N13: 16300.85 | O13: 17840 | P13: -36.38%
A14: 4 | B14: Chemical | C14: AARTIIND | D14: 2021-05-27 | E14: 1667.75 | F14: 1669.43 | G14: 1659.47 | H14: 1651.18 | I14: 1641.22 | J14: 1677.72 | K14: 1687.68 | L14: 1695.97 | M14: 1679.4 | N14: 1661.15 | O14: 913750 | P14: -4.10%
A15: 5 | B15: Cement | C15: ACC | D15: 2021-05-27 | E15: 1974.90 | F15: 1969.65 | G15: 1960.50 | H15: 1946.10 | I15: 1936.95 | J15: 1984.05 | K15: 1993.20 | L15: 2007.60 | M15: 1978.8 | N15: 1955.25 | O15: 2125500 | P15: -1.67%
A16: 6 | B16: Others | C16: ADANIENT | D16: 2021-05-27 | E16: 1324.75 | F16: 1303.58 | G16: 1278.57 | H16: 1232.38 | I16: 1207.37 | J16: 1349.77 | K16: 1374.78 | L16: 1420.97 | M16: 1328.6 | N16: 1257.4 | O16: 18250000 | P16: -1.64%
A17: 7 | B17: Others | C17: ADANIPORTS | D17: 2021-05-27 | E17: 760.80 | F17: 763.33 | G17: 754.92 | H17: 749.03 | I17: 740.62 | J17: 769.22 | K17: 777.63 | L17: 783.52 | M17: 771.75 | N17: 757.45 | O17: 73588750 | P17: 0.37%
A18: 8 | B18: Pharma | C18: ALKEM | D18: 2021-05-27 | E18: 2937.95 | F18: 2935.93 | G18: 2907.17 | H18: 2876.38 | I18: 2847.62 | J18: 2966.72 | K18: 2995.48 | L18: 3026.27 | M18: 2964.7 | N18: 2905.15 | O18: 444800 | P18: -6.36%
A19: 9 | B19: Automobile | C19: AMARAJABAT | D19: 2021-05-27 | E19: 742.95 | F19: 740.43 | G19: 734.87 | H19: 726.78 | I19: 721.22 | J19: 748.52 | K19: 754.08 | L19: 762.17 | M19: 746 | N19: 732.35 | O19: 10522000 | P19: -10.87%
A20: 10 | B20: Cement | C20: AMBUJACEM | D20: 2021-05-27 | E20: 323.75 | F20: 322.88 | G20: 320.37 | H20: 316.98 | I20: 314.47 | J20: 326.27 | K20: 328.78 | L20: 332.17 | M20: 325.4 | N20: 319.5 | O20: 15165000 | P20: 3.21%
A21: 11 | B21: Pharma | C21: APLLTD | D21: 2021-05-27 | E21: 953.00 | F21: 956.08 | G21: 946.17 | H21: 939.33 | I21: 929.42 | J21: 962.92 | K21: 972.83 | L21: 979.67 | M21: 966 | N21: 949.25 | O21: 1321650 | P21: -0.33%
A22: 12 | B22: Others | C22: APOLLOHOSP | D22: 2021-05-27 | E22: 3188.15 | F22: 3196.50 | G22: 3174.05 | H22: 3159.95 | I22: 3137.50 | J22: 3210.60 | K22: 3233.05 | L22: 3247.15 | M22: 3218.95 | N22: 3182.4 | O22: 1821750 | P22: -1.77%
A23: 13 | B23: Automobile | C23: APOLLOTYRE | D23: 2021-05-27 | E23: 222.05 | F23: 222.05 | G23: 219.55 | H23: 217.05 | I23: 214.55 | J23: 224.55 | K23: 227.05 | L23: 229.55 | M23: 224.55 | N23: 219.55 | O23: 16557500 | P23: -4.24%
A24: 14 | B24: Automobile | C24: ASHOKLEY | D24: 2021-05-27 | E24: 125.65 | F24: 126.25 | G24: 124.60 | H24: 123.55 | I24: 121.90 | J24: 127.30 | K24: 128.95 | L24: 130.00 | M24: 127.9 | N24: 125.2 | O24: 33867000 | P24: -1.79%
A25: 15 | B25: FMCG | C25: ASIANPAINT | D25: 2021-05-27 | E25: 2935.95 | F25: 2930.23 | G25: 2916.72 | H25: 2897.48 | I25: 2883.97 | J25: 2949.47 | K25: 2962.98 | L25: 2982.22 | M25: 2943.75 | N25: 2911 | O25: 4860900 | P25: -0.17%
A26: 16 | B26: Banking | C26: AUBANK | D26: 2021-05-27 | E26: 965.40 | F26: 962.47 | G26: 952.93 | H26: 940.47 | I26: 930.93 | J26: 974.93 | K26: 984.47 | L26: 996.93 | M26: 972 | N26: 950 | O26: 2940000 | P26: 7.42%
A27: 17 | B27: Pharma | C27: AUROPHARMA | D27: 2021-05-27 | E27: 1022.60 | F27: 1027.43 | G27: 1012.17 | H27: 1001.73 | I27: 986.47 | J27: 1037.87 | K27: 1053.13 | L27: 1063.57 | M27: 1042.7 | N27: 1017 | O27: 9211800 | P27: -2.83%
A28: 18 | B28: Banking | C28: AXISBANK | D28: 2021-05-27 | E28: 735.75 | F28: 736.08 | G28: 729.97 | H28: 724.18 | I28: 718.07 | J28: 741.87 | K28: 747.98 | L28: 753.77 | M28: 742.2 | N28: 730.3 | O28: 42670800 | P28: -0.48%
A29: 19 | B29: Automobile | C29: BAJAJ-AUTO | D29: 2021-05-27 | E29: 4173.95 | F29: 4166.23 | G29: 4149.47 | H29: 4124.98 | I29: 4108.22 | J29: 4190.72 | K29: 4207.48 | L29: 4231.97 | M29: 4183 | N29: 4141.75 | O29: 1841000 | P29: -3.94%
A30: 20 | B30: Finance | C30: BAJAJFINSV | D30: 2021-05-27 | E30: 11887.85 | F30: 11750.10 | G30: 11548.60 | H30: 11209.35 | I30: 11007.85 | J30: 12089.35 | K30: 12290.85 | L30: 12630.10 | M30: 11951.6 | N30: 11410.85 | O30: 861225 | P30: 8.84%
A31: 21 | B31: Finance | C31: BAJFINANCE | D31: 2021-05-27 | E31: 5782.80 | F31: 5724.63 | G31: 5642.17 | H31: 5501.53 | I31: 5419.07 | J31: 5865.27 | K31: 5947.73 | L31: 6088.37 | M31: 5807.1 | N31: 5584 | O31: 4113375 | P31: 0.32%
A32: 22 | B32: Automobile | C32: BALKRISIND | D32: 2021-05-27 | E32: 2170.20 | F32: 2185.80 | G32: 2148.55 | H32: 2126.90 | I32: 2089.65 | J32: 2207.45 | K32: 2244.70 | L32: 2266.35 | M32: 2223.05 | N32: 2164.15 | O32: 1603200 | P32: -5.76%
A33: 23 | B33: Banking | C33: BANDHANBNK | D33: 2021-05-27 | E33: 292.90 | F33: 293.10 | G33: 290.50 | H33: 288.10 | I33: 285.50 | J33: 295.50 | K33: 298.10 | L33: 300.50 | M33: 295.7 | N33: 290.7 | O33: 23792400 | P33: -0.40%
A34: 24 | B34: Banking | C34: BANKBARODA | D34: 2021-05-27 | E34: 80.65 | F34: 81.07 | G34: 79.68 | H34: 78.72 | I34: 77.33 | J34: 82.03 | K34: 83.42 | L34: 84.38 | M34: 82.45 | N34: 80.1 | O34: 209301300 | P34: 1.79%
A35: 25 | B35: FMCG | C35: BATAINDIA | D35: 2021-05-27 | E35: 1536.45 | F35: 1531.87 | G35: 1518.78 | H35: 1501.12 | I35: 1488.03 | J35: 1549.53 | K35: 1562.62 | L35: 1580.28 | M35: 1544.95 | N35: 1514.2 | O35: 1113750 | P35: 0.45%
A36: 26 | B36: Capital_Goods | C36: BEL | D36: 2021-05-27 | E36: 150.00 | F36: 151.20 | G36: 147.90 | H36: 145.80 | I36: 142.50 | J36: 153.30 | K36: 156.60 | L36: 158.70 | M36: 154.5 | N36: 149.1 | O36: 32554600 | P36: 6.28%
A37: 27 | B37: FMCG | C37: BERGEPAINT | D37: 2021-05-27 | E37: 830.40 | F37: 829.37 | G37: 816.03 | H37: 801.67 | I37: 788.33 | J37: 843.73 | K37: 857.07 | L37: 871.43 | M37: 842.7 | N37: 815 | O37: 4375800 | P37: 4.41%
A38: 28 | B38: Automobile | C38: BHARATFORG | D38: 2021-05-27 | E38: 669.05 | F38: 668.83 | G38: 657.42 | H38: 645.78 | I38: 634.37 | J38: 680.47 | K38: 691.88 | L38: 703.52 | M38: 680.25 | N38: 657.2 | O38: 7497000 | P38: -0.18%
A39: 29 | B39: Telecom | C39: BHARTIARTL | D39: 2021-05-27 | E39: 526.00 | F39: 527.35 | G39: 523.75 | H39: 521.50 | I39: 517.90 | J39: 529.60 | K39: 533.20 | L39: 535.45 | M39: 530.95 | N39: 525.1 | O39: 113471853 | P39: -0.78%
A40: 30 | B40: Capital_Goods | C40: BHEL | D40: 2021-05-27 | E40: 72.65 | F40: 73.55 | G40: 71.40 | H40: 70.15 | I40: 68.00 | J40: 74.80 | K40: 76.95 | L40: 78.20 | M40: 75.7 | N40: 72.3 | O40: 98322000 | P40: 4.49%
A41: 31 | B41: Pharma | C41: BIOCON | D41: 2021-05-27 | E41: 383.15 | F41: 383.70 | G41: 380.45 | H41: 377.75 | I41: 374.50 | J41: 386.40 | K41: 389.65 | L41: 392.35 | M41: 386.95 | N41: 381 | O41: 19347600 | P41: -2.13%
A42: 32 | B42: Automobile | C42: BOSCHLTD | D42: 2021-05-27 | E42: 14902.70 | F42: 15007.77 | G42: 14775.53 | H42: 14648.37 | I42: 14416.13 | J42: 15134.93 | K42: 15367.17 | L42: 15494.33 | M42: 15240 | N42: 14880.6 | O42: 138650 | P42: -5.36%
A43: 33 | B43: Oil_Gas | C43: BPCL | D43: 2021-05-27 | E43: 473.10 | F43: 474.23 | G43: 468.57 | H43: 464.03 | I43: 458.37 | J43: 478.77 | K43: 484.43 | L43: 488.97 | M43: 479.9 | N43: 469.7 | O43: 50695200 | P43: 2.47%
A44: 34 | B44: FMCG | C44: BRITANNIA | D44: 2021-05-27 | E44: 3425.55 | F44: 3428.90 | G44: 3410.05 | H44: 3394.55 | I44: 3375.70 | J44: 3444.40 | K44: 3463.25 | L44: 3478.75 | M44: 3447.75 | N44: 3413.4 | O44: 1989200 | P44: 0.18%
A45: 35 | B45: Pharma | C45: CADILAHC | D45: 2021-05-27 | E45: 628.85 | F45: 627.45 | G45: 621.40 | H45: 613.95 | I45: 607.90 | J45: 634.90 | K45: 640.95 | L45: 648.40 | M45: 633.5 | N45: 620 | O45: 23282600 | P45: -1.18%
A46: 36 | B46: Banking | C46: CANBK | D46: 2021-05-27 | E46: 149.60 | F46: 150.38 | G46: 148.32 | H46: 147.03 | I46: 144.97 | J46: 151.67 | K46: 153.73 | L46: 155.02 | M46: 152.45 | N46: 149.1 | O46: 55879200 | P46: -7.81%
A47: 37 | B47: Finance | C47: CHOLAFIN | D47: 2021-05-27 | E47: 545.15 | F47: 548.18 | G47: 539.52 | H47: 533.88 | I47: 525.22 | J47: 553.82 | K47: 562.48 | L47: 568.12 | M47: 556.85 | N47: 542.55 | O47: 8671250 | P47: 3.00%
A48: 38 | B48: Pharma | C48: CIPLA | D48: 2021-05-27 | E48: 943.60 | F48: 943.98 | G48: 937.47 | H48: 931.33 | I48: 924.82 | J48: 950.12 | K48: 956.63 | L48: 962.77 | M48: 950.5 | N48: 937.85 | O48: 11383450 | P48: 0.33%
A49: 39 | B49: Others | C49: COALINDIA | D49: 2021-05-27 | E49: 145.60 | F49: 146.30 | G49: 144.55 | H49: 143.50 | I49: 141.75 | J49: 147.35 | K49: 149.10 | L49: 150.15 | M49: 148.05 | N49: 145.25 | O49: 49278600 | P49: -1.99%
A50: 40 | B50: Technology | C50: COFORGE | D50: 2021-05-27 | E50: 3486.15 | F50: 3445.72 | G50: 3383.58 | H50: 3281.02 | I50: 3218.88 | J50: 3548.28 | K50: 3610.42 | L50: 3712.98 | M50: 3507.85 | N50: 3343.15 | O50: 1525075 | P50: -7.86%
A51: 41 | B51: FMCG | C51: COLPAL | D51: 2021-05-27 | E51: 1682.45 | F51: 1692.93 | G51: 1667.97 | H51: 1653.48 | I51: 1628.52 | J51: 1707.42 | K51: 1732.38 | L51: 1746.87 | M51: 1717.9 | N51: 1678.45 | O51: 3082100 | P51: -6.56%
A52: 42 | B52: Others | C52: CONCOR | D52: 2021-05-27 | E52: 666.50 | F52: 669.80 | G52: 659.65 | H52: 652.80 | I52: 642.65 | J52: 676.65 | K52: 686.80 | L52: 693.65 | M52: 679.95 | N52: 662.95 | O52: 8254203 | P52: -9.90%
A53: 43 | B53: Banking | C53: CUB | D53: 2021-05-27 | E53: 174.20 | F53: 172.95 | G53: 171.20 | H53: 168.20 | I53: 166.45 | J53: 175.95 | K53: 177.70 | L53: 180.70 | M53: 174.7 | N53: 169.95 | O53: 5800100 | P53: -6.22%
A54: 44 | B54: Capital_Goods | C54: CUMMINSIND | D54: 2021-05-27 | E54: 804.75 | F54: 811.90 | G54: 791.85 | H54: 778.95 | I54: 758.90 | J54: 824.80 | K54: 844.85 | L54: 857.75 | M54: 831.95 | N54: 799 | O54: 2438400 | P54: 4.23%
A55: 45 | B55: FMCG | C55: DABUR | D55: 2021-05-27 | E55: 532.75 | F55: 531.82 | G55: 530.33 | H55: 527.92 | I55: 526.43 | J55: 534.23 | K55: 535.72 | L55: 538.13 | M55: 533.3 | N55: 529.4 | O55: 11305000 | P55: -1.86%
A56: 46 | B56: Chemical | C56: DEEPAKNTR | D56: 2021-05-27 | E56: 1788.50 | F56: 1796.10 | G56: 1776.10 | H56: 1763.70 | I56: 1743.70 | J56: 1808.50 | K56: 1828.50 | L56: 1840.90 | M56: 1816.1 | N56: 1783.7 | O56: 1833000 | P56: -0.41%
A57: 47 | B57: Pharma | C57: DIVISLAB | D57: 2021-05-27 | E57: 4104.75 | F57: 4098.60 | G57: 4072.20 | H57: 4039.65 | I57: 4013.25 | J57: 4131.15 | K57: 4157.55 | L57: 4190.10 | M57: 4125 | N57: 4066.05 | O57: 2540400 | P57: -1.21%
A58: 48 | B58: Realty | C58: DLF | D58: 2021-05-27 | E58: 290.75 | F58: 287.45 | G58: 281.85 | H58: 272.95 | I58: 267.35 | J58: 296.35 | K58: 301.95 | L58: 310.85 | M58: 293.05 | N58: 278.55 | O58: 31614000 | P58: 0.71%
A59: 49 | B59: Pharma | C59: DRREDDY | D59: 2021-05-27 | E59: 5292.25 | F59: 5303.45 | G59: 5269.50 | H59: 5246.75 | I59: 5212.80 | J59: 5326.20 | K59: 5360.15 | L59: 5382.90 | M59: 5337.4 | N59: 5280.7 | O59: 2936375 | P59: -1.95%
A60: 50 | B60: Automobile | C60: EICHERMOT | D60: 2021-05-27 | E60: 2640.25 | F60: 2634.02 | G60: 2613.03 | H60: 2585.82 | I60: 2564.83 | J60: 2661.23 | K60: 2682.22 | L60: 2709.43 | M60: 2655 | N60: 2606.8 | O60: 3087350 | P60: 4.37%
A61: 51 | B61: Automobile | C61: ESCORTS | D61: 2021-05-27 | E61: 1139.95 | F61: 1143.70 | G61: 1132.45 | H61: 1124.95 | I61: 1113.70 | J61: 1151.20 | K61: 1162.45 | L61: 1169.95 | M61: 1154.95 | N61: 1136.2 | O61: 4192100 | P61: 12.63%
A62: 52 | B62: Automobile | C62: EXIDEIND | D62: 2021-05-27 | E62: 190.30 | F62: 190.72 | G62: 189.18 | H62: 188.07 | I62: 186.53 | J62: 191.83 | K62: 193.37 | L62: 194.48 | M62: 192.25 | N62: 189.6 | O62: 14061600 | P62: -6.44%
A63: 53 | B63: Banking | C63: FEDERALBNK | D63: 2021-05-27 | E63: 86.95 | F63: 87.12 | G63: 86.48 | H63: 86.02 | I63: 85.38 | J63: 87.58 | K63: 88.22 | L63: 88.68 | M63: 87.75 | N63: 86.65 | O63: 71600000 | P63: -11.28%
A64: 54 | B64: Oil_Gas | C64: GAIL | D64: 2021-05-27 | E64: 152.25 | F64: 153.17 | G64: 150.88 | H64: 149.52 | I64: 147.23 | J64: 154.53 | K64: 156.82 | L64: 158.18 | M64: 155.45 | N64: 151.8 | O64: 35813100 | P64: -2.67%
A65: 55 | B65: Pharma | C65: GLENMARK | D65: 2021-05-27 | E65: 609.50 | F65: 607.72 | G65: 599.13 | H65: 588.77 | I65: 580.18 | J65: 618.08 | K65: 626.67 | L65: 637.03 | M65: 616.3 | N65: 597.35 | O65: 8994150 | P65: 2.30%
A66: 56 | B66: Infrastructure | C66: GMRINFRA | D66: 2021-05-27 | E66: 27.10 | F66: 27.08 | G66: 26.47 | H66: 25.83 | I66: 25.22 | J66: 27.72 | K66: 28.33 | L66: 28.97 | M66: 27.7 | N66: 26.45 | O66: 108990000 | P66: -11.56%
A67: 57 | B67: FMCG | C67: GODREJCP | D67: 2021-05-27 | E67: 825.45 | F67: 818.50 | G67: 808.45 | H67: 791.45 | I67: 781.40 | J67: 835.50 | K67: 845.55 | L67: 862.55 | M67: 828.55 | N67: 801.5 | O67: 5565000 | P67: -1.19%
A68: 58 | B68: Realty | C68: GODREJPROP | D68: 2021-05-27 | E68: 1352.30 | F68: 1349.93 | G68: 1337.37 | H68: 1322.43 | I68: 1309.87 | J68: 1364.87 | K68: 1377.43 | L68: 1392.37 | M68: 1362.5 | N68: 1335 | O68: 1771900 | P68: -1.09%
A69: 59 | B69: Pharma | C69: GRANULES | D69: 2021-05-27 | E69: 319.05 | F69: 320.28 | G69: 317.07 | H69: 315.08 | I69: 311.87 | J69: 322.27 | K69: 325.48 | L69: 327.47 | M69: 323.5 | N69: 318.3 | O69: 10247050 | P69: -1.00%
A70: 60 | B70: Cement | C70: GRASIM | D70: 2021-05-27 | E70: 1411.20 | F70: 1409.50 | G70: 1383.75 | H70: 1356.30 | I70: 1330.55 | J70: 1436.95 | K70: 1462.70 | L70: 1490.15 | M70: 1435.25 | N70: 1382.05 | O70: 15549600 | P70: 2.11%
A71: 61 | B71: Oil_Gas | C71: GUJGASLTD | D71: 2021-05-27 | E71: 514.65 | F71: 515.58 | G71: 510.32 | H71: 505.98 | I71: 500.72 | J71: 519.92 | K71: 525.18 | L71: 529.52 | M71: 520.85 | N71: 511.25 | O71: 1577500 | P71: -3.66%
A72: 62 | B72: Capital_Goods | C72: HAVELLS | D72: 2021-05-27 | E72: 997.25 | F72: 999.95 | G72: 992.05 | H72: 986.85 | I72: 978.95 | J72: 1005.15 | K72: 1013.05 | L72: 1018.25 | M72: 1007.85 | N72: 994.75 | O72: 4153000 | P72: 1.37%
A73: 63 | B73: Technology | C73: HCLTECH | D73: 2021-05-27 | E73: 947.65 | F73: 942.93 | G73: 936.17 | H73: 924.68 | I73: 917.92 | J73: 954.42 | K73: 961.18 | L73: 972.67 | M73: 949.7 | N73: 931.45 | O73: 20778800 | P73: -0.27%
A74: 64 | B74: Finance | C74: HDFC | D74: 2021-05-27 | E74: 2569.60 | F74: 2557.82 | G74: 2539.28 | H74: 2508.97 | I74: 2490.43 | J74: 2588.13 | K74: 2606.67 | L74: 2636.98 | M74: 2576.35 | N74: 2527.5 | O74: 17945100 | P74: 1.06%
A75: 65 | B75: Finance | C75: HDFCAMC | D75: 2021-05-27 | E75: 2821.30 | F75: 2821.87 | G75: 2808.78 | H75: 2796.27 | I75: 2783.18 | J75: 2834.38 | K75: 2847.47 | L75: 2859.98 | M75: 2834.95 | N75: 2809.35 | O75: 748600 | P75: -1.68%
A76: 66 | B76: Banking | C76: HDFCBANK | D76: 2021-05-27 | E76: 1480.65 | F76: 1480.75 | G76: 1470.75 | H76: 1460.85 | I76: 1450.85 | J76: 1490.65 | K76: 1500.65 | L76: 1510.55 | M76: 1490.75 | N76: 1470.85 | O76: 25886300 | P76: 4.20%
A77: 67 | B77: Finance | C77: HDFCLIFE | D77: 2021-05-27 | E77: 659.85 | F77: 661.47 | G77: 656.53 | H77: 653.22 | I77: 648.28 | J77: 664.78 | K77: 669.72 | L77: 673.03 | M77: 666.4 | N77: 658.15 | O77: 15459400 | P77: 0.36%
A78: 68 | B78: Automobile | C78: HEROMOTOCO | D78: 2021-05-27 | E78: 2969.05 | F78: 2959.88 | G78: 2932.47 | H78: 2895.88 | I78: 2868.47 | J78: 2996.47 | K78: 3023.88 | L78: 3060.47 | M78: 2987.3 | N78: 2923.3 | O78: 3642600 | P78: 0.46%
A79: 69 | B79: Metals | C79: HINDALCO | D79: 2021-05-27 | E79: 381.50 | F79: 384.08 | G79: 378.17 | H79: 374.83 | I79: 368.92 | J79: 387.42 | K79: 393.33 | L79: 396.67 | M79: 390 | N79: 380.75 | O79: 30261250 | P79: -3.06%
A80: 70 | B80: Oil_Gas | C80: HINDPETRO | D80: 2021-05-27 | E80: 284.50 | F80: 286.58 | G80: 281.82 | H80: 279.13 | I80: 274.37 | J80: 289.27 | K80: 294.03 | L80: 296.72 | M80: 291.35 | N80: 283.9 | O80: 28088100 | P80: -2.02%
A81: 71 | B81: FMCG | C81: HINDUNILVR | D81: 2021-05-27 | E81: 2355.80 | F81: 2351.42 | G81: 2332.83 | H81: 2309.87 | I81: 2291.28 | J81: 2374.38 | K81: 2392.97 | L81: 2415.93 | M81: 2370 | N81: 2328.45 | O81: 7025700 | P81: -3.67%
A82: 72 | B82: Finance | C82: IBULHSGFIN | D82: 2021-05-27 | E82: 225.15 | F82: 222.87 | G82: 217.88 | H82: 210.62 | I82: 205.63 | J82: 230.13 | K82: 235.12 | L82: 242.38 | M82: 227.85 | N82: 215.6 | O82: 26288000 | P82: 2.39%
A83: 73 | B83: Banking | C83: ICICIBANK | D83: 2021-05-27 | E83: 653.00 | F83: 651.33 | G83: 645.47 | H83: 637.93 | I83: 632.07 | J83: 658.87 | K83: 664.73 | L83: 672.27 | M83: 657.2 | N83: 643.8 | O83: 77144375 | P83: -1.13%
A84: 74 | B84: Finance | C84: ICICIGI | D84: 2021-05-27 | E84: 1476.00 | F84: 1479.90 | G84: 1462.80 | H84: 1449.60 | I84: 1432.50 | J84: 1493.10 | K84: 1510.20 | L84: 1523.40 | M84: 1497 | N84: 1466.7 | O84: 1146225 | P84: 0.15%
A85: 75 | B85: Finance | C85: ICICIPRULI | D85: 2021-05-27 | E85: 526.45 | F85: 532.30 | G85: 518.95 | H85: 511.45 | I85: 498.10 | J85: 539.80 | K85: 553.15 | L85: 560.65 | M85: 545.65 | N85: 524.8 | O85: 7072500 | P85: 2.26%
A86: 76 | B86: Telecom | C86: IDEA | D86: 2021-05-27 | E86: 8.55 | F86: 8.55 | G86: 8.50 | H86: 8.45 | I86: 8.40 | J86: 8.60 | K86: 8.65 | L86: 8.70 | M86: 8.6 | N86: 8.5 | O86: 833840000 | P86: 7.29%
A87: 77 | B87: Banking | C87: IDFCFIRSTB | D87: 2021-05-27 | E87: 58.05 | F87: 58.42 | G87: 57.48 | H87: 56.92 | I87: 55.98 | J87: 58.98 | K87: 59.92 | L87: 60.48 | M87: 59.35 | N87: 57.85 | O87: 149235500 | P87: 0.98%
A88: 78 | B88: Oil_Gas | C88: IGL | D88: 2021-05-27 | E88: 508.60 | F88: 509.33 | G88: 505.67 | H88: 502.73 | I88: 499.07 | J88: 512.27 | K88: 515.93 | L88: 518.87 | M88: 513 | N88: 506.4 | O88: 6924500 | P88: 1.27%
A89: 79 | B89: Others | C89: INDIGO | D89: 2021-05-27 | E89: 1729.05 | F89: 1731.42 | G89: 1709.03 | H89: 1689.02 | I89: 1666.63 | J89: 1751.43 | K89: 1773.82 | L89: 1793.83 | M89: 1753.8 | N89: 1711.4 | O89: 3988500 | P89: 5.43%
A90: 80 | B90: Banking | C90: INDUSINDBK | D90: 2021-05-27 | E90: 999.45 | F90: 998.88 | G90: 988.57 | H90: 977.68 | I90: 967.37 | J90: 1009.77 | K90: 1020.08 | L90: 1030.97 | M90: 1009.2 | N90: 988 | O90: 20483100 | P90: -1.10%
A91: 81 | B91: Telecom | C91: INDUSTOWER | D91: 2021-05-27 | E91: 241.70 | F91: 242.10 | G91: 240.85 | H91: 240.00 | I91: 238.75 | J91: 242.95 | K91: 244.20 | L91: 245.05 | M91: 243.35 | N91: 241.25 | O91: 11642400 | P91: -3.14%
A92: 82 | B92: Technology | C92: INFY | D92: 2021-05-27 | E92: 1397.25 | F92: 1387.52 | G92: 1372.58 | H92: 1347.92 | I92: 1332.98 | J92: 1412.18 | K92: 1427.12 | L92: 1451.78 | M92: 1402.45 | N92: 1362.85 | O92: 32712000 | P92: -1.06%
A93: 83 | B93: Oil_Gas | C93: IOC | D93: 2021-05-27 | E93: 111.80 | F93: 111.33 | G93: 109.87 | H93: 107.93 | I93: 106.47 | J93: 113.27 | K93: 114.73 | L93: 116.67 | M93: 112.8 | N93: 109.4 | O93: 73138000 | P93: -11.74%
A94: 84 | B94: Others | C94: IRCTC | D94: 2021-05-27 | E94: 1895.35 | F94: 1904.37 | G94: 1880.58 | H94: 1865.82 | I94: 1842.03 | J94: 1919.13 | K94: 1942.92 | L94: 1957.68 | M94: 1928.15 | N94: 1889.6 | O94: 1331850 | P94: -0.24%
A95: 85 | B95: FMCG | C95: ITC | D95: 2021-05-27 | E95: 210.80 | F95: 211.25 | G95: 209.90 | H95: 209.00 | I95: 207.65 | J95: 212.15 | K95: 213.50 | L95: 214.40 | M95: 212.6 | N95: 210.35 | O95: 154534400 | P95: 4.83%
A96: 86 | B96: Metals | C96: JINDALSTEL | D96: 2021-05-27 | E96: 389.65 | F96: 392.50 | G96: 383.00 | H96: 376.35 | I96: 366.85 | J96: 399.15 | K96: 408.65 | L96: 415.30 | M96: 402 | N96: 385.85 | O96: 34027500 | P96: -2.28%
A97: 87 | B97: Metals | C97: JSWSTEEL | D97: 2021-05-27 | E97: 681.55 | F97: 681.80 | G97: 672.70 | H97: 663.85 | I97: 654.75 | J97: 690.65 | K97: 699.75 | L97: 708.60 | M97: 690.9 | N97: 672.95 | O97: 38013300 | P97: 3.73%
A98: 88 | B98: Others | C98: JUBLFOOD | D98: 2021-05-27 | E98: 3139.60 | F98: 3118.08 | G98: 3087.22 | H98: 3034.83 | I98: 3003.97 | J98: 3170.47 | K98: 3201.33 | L98: 3253.72 | M98: 3148.95 | N98: 3065.7 | O98: 1363250 | P98: -0.26%
A99: 89 | B99: Banking | C99: KOTAKBANK | D99: 2021-05-27 | E99: 1745.35 | F99: 1750.13 | G99: 1735.27 | H99: 1725.18 | I99: 1710.32 | J99: 1760.22 | K99: 1775.08 | L99: 1785.17 | M99: 1765 | N99: 1740.05 | O99: 14172000 | P99: -1.76%
A100: 90 | B100: Finance | C100: L&TFH | D100: 2021-05-27 | E100: 88.70 | F100: 88.98 | G100: 88.02 | H100: 87.33 | I100: 86.37 | J100: 89.67 | K100: 90.63 | L100: 91.32 | M100: 89.95 | N100: 88.3 | O100: 54311464 | P100: -4.79%
A101: 91 | B101: Others | C101: LALPATHLAB | D101: 2021-05-27 | E101: 2790.15 | F101: 2780.92 | G101: 2758.33 | H101: 2726.52 | I101: 2703.93 | J101: 2812.73 | K101: 2835.32 | L101: 2867.13 | M101: 2803.5 | N101: 2749.1 | O101: 474250 | P101: -14.05%
A102: 92 | B102: Finance | C102: LICHSGFIN | D102: 2021-05-27 | E102: 449.35 | F102: 450.82 | G102: 446.93 | H102: 444.52 | I102: 440.63 | J102: 453.23 | K102: 457.12 | L102: 459.53 | M102: 454.7 | N102: 448.4 | O102: 6014000 | P102: -3.22%
A103: 93 | B103: Capital_Goods | C103: LT | D103: 2021-05-27 | E103: 1471.85 | F103: 1467.98 | G103: 1458.32 | H103: 1444.78 | I103: 1435.12 | J103: 1481.52 | K103: 1491.18 | L103: 1504.72 | M103: 1477.65 | N103: 1454.45 | O103: 13326200 | P103: -4.60%
A104: 94 | B104: Technology | C104: LTI | D104: 2021-05-27 | E104: 3805.80 | F104: 3770.00 | G104: 3720.00 | H104: 3634.20 | I104: 3584.20 | J104: 3855.80 | K104: 3905.80 | L104: 3991.60 | M104: 3820 | N104: 3684.2 | O104: 713550 | P104: -1.39%
A105: 95 | B105: Technology | C105: LTTS | D105: 2021-05-27 | E105: 2707.80 | F105: 2680.85 | G105: 2641.95 | H105: 2576.10 | I105: 2537.20 | J105: 2746.70 | K105: 2785.60 | L105: 2851.45 | M105: 2719.75 | N105: 2615 | O105: 406000 | P105: -6.02%
A106: 96 | B106: Pharma | C106: LUPIN | D106: 2021-05-27 | E106: 1195.80 | F106: 1202.77 | G106: 1187.53 | H106: 1179.27 | I106: 1164.03 | J106: 1211.03 | K106: 1226.27 | L106: 1234.53 | M106: 1218 | N106: 1194.5 | O106: 8645350 | P106: -0.44%
A107: 97 | B107: Automobile | C107: M&M | D107: 2021-05-27 | E107: 822.00 | F107: 820.30 | G107: 812.95 | H107: 803.90 | I107: 796.55 | J107: 829.35 | K107: 836.70 | L107: 845.75 | M107: 827.65 | N107: 811.25 | O107: 9116800 | P107: -2.65%
A108: 98 | B108: Finance | C108: M&MFIN | D108: 2021-05-27 | E108: 155.75 | F108: 157.18 | G108: 154.02 | H108: 152.28 | I108: 149.12 | J108: 158.92 | K108: 162.08 | L108: 163.82 | M108: 160.35 | N108: 155.45 | O108: 42360000 | P108: 4.95%
A109: 99 | B109: Finance | C109: MANAPPURAM | D109: 2021-05-27 | E109: 160.50 | F109: 161.77 | G109: 158.33 | H109: 156.17 | I109: 152.73 | J109: 163.93 | K109: 167.37 | L109: 169.53 | M109: 165.2 | N109: 159.6 | O109: 28998000 | P109: 2.61%
A110: 100 | B110: FMCG | C110: MARICO | D110: 2021-05-27 | E110: 459.80 | F110: 461.55 | G110: 456.20 | H110: 452.60 | I110: 447.25 | J110: 465.15 | K110: 470.50 | L110: 474.10 | M110: 466.9 | N110: 457.95 | O110: 8908000 | P110: -1.94%
A111: 101 | B111: Automobile | C111: MARUTI | D111: 2021-05-27 | E111: 7020.00 | F111: 6989.23 | G111: 6934.07 | H111: 6848.13 | I111: 6792.97 | J111: 7075.17 | K111: 7130.33 | L111: 7216.27 | M111: 7044.4 | N111: 6903.3 | O111: 2288700 | P111: -5.35%
A112: 102 | B112: FMCG | C112: MCDOWELL-N | D112: 2021-05-27 | E112: 590.65 | F112: 591.55 | G112: 586.60 | H112: 582.55 | I112: 577.60 | J112: 595.60 | K112: 600.55 | L112: 604.60 | M112: 596.5 | N112: 587.5 | O112: 12531250 | P112: -4.53%
A113: 103 | B113: Finance | C113: MFSL | D113: 2021-05-27 | E113: 933.60 | F113: 942.20 | G113: 916.00 | H113: 898.40 | I113: 872.20 | J113: 959.80 | K113: 986.00 | L113: 1003.60 | M113: 968.4 | N113: 924.6 | O113: 2196350 | P113: -0.24%
A114: 104 | B114: Oil_Gas | C114: MGL | D114: 2021-05-27 | E114: 1187.90 | F114: 1175.52 | G114: 1154.03 | H114: 1120.17 | I114: 1098.68 | J114: 1209.38 | K114: 1230.87 | L114: 1264.73 | M114: 1197 | N114: 1141.65 | O114: 1770000 | P114: -3.34%
A115: 105 | B115: Technology | C115: MINDTREE | D115: 2021-05-27 | E115: 2209.10 | F115: 2197.18 | G115: 2176.77 | H115: 2144.43 | I115: 2124.02 | J115: 2229.52 | K115: 2249.93 | L115: 2282.27 | M115: 2217.6 | N115: 2164.85 | O115: 1962800 | P115: 0.00%
A116: 106 | B116: Automobile | C116: MOTHERSUMI | D116: 2021-05-27 | E116: 234.10 | F116: 237.47 | G116: 229.63 | H116: 225.17 | I116: 217.33 | J116: 241.93 | K116: 249.77 | L116: 254.23 | M116: 245.3 | N116: 233 | O116: 29085000 | P116: -1.55%
A117: 107 | B117: Technology | C117: MPHASIS | D117: 2021-05-27 | E117: 1915.55 | F117: 1908.00 | G117: 1890.10 | H117: 1864.65 | I117: 1846.75 | J117: 1933.45 | K117: 1951.35 | L117: 1976.80 | M117: 1925.9 | N117: 1882.55 | O117: 304850 | P117: -9.37%
A118: 108 | B118: Automobile | C118: MRF | D118: 2021-05-27 | E118: 81711.55 | F118: 82068.22 | G118: 81237.43 | H118: 80763.32 | I118: 79932.53 | J118: 82542.33 | K118: 83373.12 | L118: 83847.23 | M118: 82899 | N118: 81594.1 | O118: 47710 | P118: 0.32%
A119: 109 | B119: Finance | C119: MUTHOOTFIN | D119: 2021-05-27 | E119: 1273.05 | F119: 1278.30 | G119: 1263.40 | H119: 1253.75 | I119: 1238.85 | J119: 1287.95 | K119: 1302.85 | L119: 1312.50 | M119: 1293.2 | N119: 1268.65 | O119: 2661750 | P119: 0.65%
A120: 110 | B120: Others | C120: NAM-INDIA | D120: 2021-05-27 | E120: 349.75 | F120: 349.77 | G120: 348.43 | H120: 347.12 | I120: 345.78 | J120: 351.08 | K120: 352.42 | L120: 353.73 | M120: 351.1 | N120: 348.45 | O120: 1212800 | P120: -1.04%
A121: 111 | B121: Metals | C121: NATIONALUM | D121: 2021-05-27 | E121: 71.75 | F121: 71.80 | G121: 70.20 | H121: 68.65 | I121: 67.05 | J121: 73.35 | K121: 74.95 | L121: 76.50 | M121: 73.4 | N121: 70.25 | O121: 85765000 | P121: -1.56%
A122: 112 | B122: Others | C122: NAUKRI | D122: 2021-05-27 | E122: 4527.55 | F122: 4462.80 | G122: 4380.75 | H122: 4233.95 | I122: 4151.90 | J122: 4609.60 | K122: 4691.65 | L122: 4838.45 | M122: 4544.85 | N122: 4316 | O122: 1473875 | P122: 0.80%
A123: 113 | B123: Chemical | C123: NAVINFLUOR | D123: 2021-05-27 | E123: 3215.55 | F123: 3248.13 | G123: 3176.82 | H123: 3138.08 | I123: 3066.77 | J123: 3286.87 | K123: 3358.18 | L123: 3396.92 | M123: 3319.45 | N123: 3209.4 | O123: 404100 | P123: 3.16%
A124: 114 | B124: FMCG | C124: NESTLEIND | D124: 2021-05-27 | E124: 17529.40 | F124: 17505.42 | G124: 17393.98 | H124: 17258.57 | I124: 17147.13 | J124: 17640.83 | K124: 17752.27 | L124: 17887.68 | M124: 17616.85 | N124: 17370 | O124: 243050 | P124: -4.76%
A125: 115 | B125: Metals | C125: NMDC | D125: 2021-05-27 | E125: 177.25 | F125: 178.45 | G125: 175.15 | H125: 173.05 | I125: 169.75 | J125: 180.55 | K125: 183.85 | L125: 185.95 | M125: 181.75 | N125: 176.35 | O125: 63449000 | P125: -2.88%
A126: 116 | B126: Power | C126: NTPC | D126: 2021-05-27 | E126: 111.25 | F126: 111.98 | G126: 110.27 | H126: 109.28 | I126: 107.57 | J126: 112.97 | K126: 114.68 | L126: 115.67 | M126: 113.7 | N126: 111 | O126: 81299100 | P126: -4.11%
A127: 117 | B127: Oil_Gas | C127: ONGC | D127: 2021-05-27 | E127: 113.45 | F127: 114.03 | G127: 112.57 | H127: 111.68 | I127: 110.22 | J127: 114.92 | K127: 116.38 | L127: 117.27 | M127: 115.5 | N127: 113.15 | O127: 50103900 | P127: -5.61%
A128: 118 | B128: Textile | C128: PAGEIND | D128: 2021-05-27 | E128: 31798.50 | F128: 31667.88 | G128: 31437.97 | H128: 31077.43 | I128: 30847.52 | J128: 32028.42 | K128: 32258.33 | L128: 32618.87 | M128: 31897.8 | N128: 31307.35 | O128: 83100 | P128: -7.73%
A129: 119 | B129: Pharma | C129: PEL | D129: 2021-05-27 | E129: 1702.35 | F129: 1711.07 | G129: 1688.38 | H129: 1674.42 | I129: 1651.73 | J129: 1725.03 | K129: 1747.72 | L129: 1761.68 | M129: 1733.75 | N129: 1697.1 | O129: 3463350 | P129: 0.53%
A130: 120 | B130: Oil_Gas | C130: PETRONET | D130: 2021-05-27 | E130: 234.20 | F130: 235.05 | G130: 232.95 | H130: 231.70 | I130: 229.60 | J130: 236.30 | K130: 238.40 | L130: 239.65 | M130: 237.15 | N130: 233.8 | O130: 17715000 | P130: 0.08%
A131: 121 | B131: Finance | C131: PFC | D131: 2021-05-27 | E131: 117.90 | F131: 118.43 | G131: 117.32 | H131: 116.73 | I131: 115.62 | J131: 119.02 | K131: 120.13 | L131: 120.72 | M131: 119.55 | N131: 117.85 | O131: 36976800 | P131: -4.83%
A132: 122 | B132: Pharma | C132: PFIZER | D132: 2021-05-27 | E132: 5276.25 | F132: 5276.25 | G132: 5252.55 | H132: 5228.85 | I132: 5205.15 | J132: 5299.95 | K132: 5323.65 | L132: 5347.35 | M132: 5299.95 | N132: 5252.55 | O132: 235125 | P132: -4.47%
A133: 123 | B133: FMCG | C133: PIDILITIND | D133: 2021-05-27 | E133: 2099.20 | F133: 2085.35 | G133: 2067.75 | H133: 2036.30 | I133: 2018.70 | J133: 2116.80 | K133: 2134.40 | L133: 2165.85 | M133: 2102.95 | N133: 2053.9 | O133: 2600000 | P133: 11.09%
A134: 124 | B134: Chemical | C134: PIIND | D134: 2021-05-27 | E134: 2566.25 | F134: 2564.52 | G134: 2544.03 | H134: 2521.82 | I134: 2501.33 | J134: 2586.73 | K134: 2607.22 | L134: 2629.43 | M134: 2585 | N134: 2542.3 | O134: 622750 | P134: -6.42%
A135: 125 | B135: Banking | C135: PNB | D135: 2021-05-27 | E135: 39.30 | F135: 39.37 | G135: 38.53 | H135: 37.77 | I135: 36.93 | J135: 40.13 | K135: 40.97 | L135: 41.73 | M135: 40.2 | N135: 38.6 | O135: 242528000 | P135: -5.88%
A136: 126 | B136: Power | C136: POWERGRID | D136: 2021-05-27 | E136: 225.85 | F136: 227.98 | G136: 223.17 | H136: 220.48 | I136: 215.67 | J136: 230.67 | K136: 235.48 | L136: 238.17 | M136: 232.8 | N136: 225.3 | O136: 17976000 | P136: -0.31%
A137: 127 | B137: Media | C137: PVR | D137: 2021-05-27 | E137: 1265.20 | F137: 1276.77 | G137: 1243.93 | H137: 1222.67 | I137: 1189.83 | J137: 1298.03 | K137: 1330.87 | L137: 1352.13 | M137: 1309.6 | N137: 1255.5 | O137: 1671549 | P137: -10.33%
A138: 128 | B138: Cement | C138: RAMCOCEM | D138: 2021-05-27 | E138: 948.15 | F138: 945.37 | G138: 935.73 | H138: 923.32 | I138: 913.68 | J138: 957.78 | K138: 967.42 | L138: 979.83 | M138: 955 | N138: 932.95 | O138: 2386800 | P138: -1.92%
A139: 129 | B139: Banking | C139: RBLBANK | D139: 2021-05-27 | E139: 207.80 | F139: 206.88 | G139: 204.22 | H139: 200.63 | I139: 197.97 | J139: 210.47 | K139: 213.13 | L139: 216.72 | M139: 209.55 | N139: 203.3 | O139: 24560100 | P139: -0.47%
A140: 130 | B140: Power | C140: RECLTD | D140: 2021-05-27 | E140: 141.50 | F140: 142.22 | G140: 140.58 | H140: 139.67 | I140: 138.03 | J140: 143.13 | K140: 144.77 | L140: 145.68 | M140: 143.85 | N140: 141.3 | O140: 15342000 | P140: -3.94%
A141: 131 | B141: Oil_Gas | C141: RELIANCE | D141: 2021-05-27 | E141: 1970.70 | F141: 1971.68 | G141: 1964.37 | H141: 1958.03 | I141: 1950.72 | J141: 1978.02 | K141: 1985.33 | L141: 1991.67 | M141: 1979 | N141: 1965.35 | O141: 30028250 | P141: -0.35%
A142: 132 | B142: Metals | C142: SAIL | D142: 2021-05-27 | E142: 118.80 | F142: 120.20 | G142: 116.40 | H142: 114.00 | I142: 110.20 | J142: 122.60 | K142: 126.40 | L142: 128.80 | M142: 124 | N142: 117.8 | O142: 155097000 | P142: 0.99%
A143: 133 | B143: Finance | C143: SBILIFE | D143: 2021-05-27 | E143: 971.90 | F143: 974.00 | G143: 968.10 | H143: 964.30 | I143: 958.40 | J143: 977.80 | K143: 983.70 | L143: 987.50 | M143: 979.9 | N143: 970.2 | O143: 7560000 | P143: 0.79%
A144: 134 | B144: Banking | C144: SBIN | D144: 2021-05-27 | E144: 414.15 | F144: 414.90 | G144: 410.20 | H144: 406.25 | I144: 401.55 | J144: 418.85 | K144: 423.55 | L144: 427.50 | M144: 419.6 | N144: 410.95 | O144: 110872500 | P144: 2.37%
A145: 135 | B145: Cement | C145: SHREECEM | D145: 2021-05-27 | E145: 27134.25 | F145: 27104.07 | G145: 26958.23 | H145: 26782.22 | I145: 26636.38 | J145: 27280.08 | K145: 27425.92 | L145: 27601.93 | M145: 27249.9 | N145: 26928.05 | O145: 165000 | P145: -2.29%
A146: 136 | B146: Capital_Goods | C146: SIEMENS | D146: 2021-05-27 | E146: 1996.05 | F146: 2006.92 | G146: 1981.08 | H146: 1966.12 | I146: 1940.28 | J146: 2021.88 | K146: 2047.72 | L146: 2062.68 | M146: 2032.75 | N146: 1991.95 | O146: 1037850 | P146: -0.71%
A147: 137 | B147: Textile | C147: SRF | D147: 2021-05-27 | E147: 6436.45 | F147: 6451.05 | G147: 6392.10 | H147: 6347.75 | I147: 6288.80 | J147: 6495.40 | K147: 6554.35 | L147: 6598.70 | M147: 6510 | N147: 6406.7 | O147: 383625 | P147: -10.45%
A148: 138 | B148: Finance | C148: SRTRANSFIN | D148: 2021-05-27 | E148: 1432.35 | F148: 1438.33 | G148: 1421.02 | H148: 1409.68 | I148: 1392.37 | J148: 1449.67 | K148: 1466.98 | L148: 1478.32 | M148: 1455.65 | N148: 1427 | O148: 3268400 | P148: -3.13%
A149: 139 | B149: Pharma | C149: SUNPHARMA | D149: 2021-05-27 | E149: 704.30 | F149: 702.33 | G149: 698.22 | H149: 692.13 | I149: 688.02 | J149: 708.42 | K149: 712.53 | L149: 718.62 | M149: 706.45 | N149: 696.25 | O149: 47254200 | P149: 1.64%
A150: 140 | B150: Media | C150: SUNTV | D150: 2021-05-27 | E150: 540.05 | F150: 532.28 | G150: 522.77 | H150: 505.48 | I150: 495.97 | J150: 549.57 | K150: 559.08 | L150: 576.37 | M150: 541.8 | N150: 515 | O150: 13825500 | P150: 9.08%
A151: 141 | B151: Chemical | C151: TATACHEM | D151: 2021-05-27 | E151: 700.65 | F151: 701.27 | G151: 696.58 | H151: 692.52 | I151: 687.83 | J151: 705.33 | K151: 710.02 | L151: 714.08 | M151: 705.95 | N151: 697.2 | O151: 8729000 | P151: -4.67%
A152: 142 | B152: FMCG | C152: TATACONSUM | D152: 2021-05-27 | E152: 643.60 | F152: 646.38 | G152: 638.42 | H152: 633.23 | I152: 625.27 | J152: 651.57 | K152: 659.53 | L152: 664.72 | M152: 654.35 | N152: 641.2 | O152: 7037550 | P152: 4.28%
A153: 143 | B153: Automobile | C153: TATAMOTORS | D153: 2021-05-27 | E153: 315.00 | F153: 316.62 | G153: 312.83 | H153: 310.67 | I153: 306.88 | J153: 318.78 | K153: 322.57 | L153: 324.73 | M153: 320.4 | N153: 314.45 | O153: 101004000 | P153: -0.96%
A154: 144 | B154: Power | C154: TATAPOWER | D154: 2021-05-27 | E154: 106.20 | F154: 106.83 | G154: 105.32 | H154: 104.43 | I154: 102.92 | J154: 107.72 | K154: 109.23 | L154: 110.12 | M154: 108.35 | N154: 105.95 | O154: 138111750 | P154: 1.65%
A155: 145 | B155: Metals | C155: TATASTEEL | D155: 2021-05-27 | E155: 1082.55 | F155: 1083.53 | G155: 1070.67 | H155: 1058.78 | I155: 1045.92 | J155: 1095.42 | K155: 1108.28 | L155: 1120.17 | M155: 1096.4 | N155: 1071.65 | O155: 45038100 | P155: 4.50%
A156: 146 | B156: Technology | C156: TCS | D156: 2021-05-27 | E156: 3153.75 | F156: 3139.50 | G156: 3120.20 | H156: 3086.65 | I156: 3067.35 | J156: 3173.05 | K156: 3192.35 | L156: 3225.90 | M156: 3158.8 | N156: 3105.95 | O156: 7214100 | P156: -4.01%
A157: 147 | B157: Technology | C157: TECHM | D157: 2021-05-27 | E157: 1009.55 | F157: 1005.10 | G157: 997.20 | H157: 984.85 | I157: 976.95 | J157: 1017.45 | K157: 1025.35 | L157: 1037.70 | M157: 1013 | N157: 992.75 | O157: 11188200 | P157: -4.24%
A158: 148 | B158: FMCG | C158: TITAN | D158: 2021-05-27 | E158: 1584.95 | F158: 1592.10 | G158: 1569.10 | H158: 1553.25 | I158: 1530.25 | J158: 1607.95 | K158: 1630.95 | L158: 1646.80 | M158: 1615.1 | N158: 1576.25 | O158: 4957500 | P158: -3.89%
A159: 149 | B159: Pharma | C159: TORNTPHARM | D159: 2021-05-27 | E159: 2713.05 | F159: 2725.25 | G159: 2694.55 | H159: 2676.05 | I159: 2645.35 | J159: 2743.75 | K159: 2774.45 | L159: 2792.95 | M159: 2755.95 | N159: 2706.75 | O159: 907000 | P159: -2.84%
A160: 150 | B160: Power | C160: TORNTPOWER | D160: 2021-05-27 | E160: 425.85 | F160: 428.75 | G160: 421.50 | H160: 417.15 | I160: 409.90 | J160: 433.10 | K160: 440.35 | L160: 444.70 | M160: 436 | N160: 424.4 | O160: 2404500 | P160: -1.54%
A161: 151 | B161: Others | C161: TRENT | D161: 2021-05-27 | E161: 827.40 | F161: 829.25 | G161: 823.80 | H161: 820.20 | I161: 814.75 | J161: 832.85 | K161: 838.30 | L161: 841.90 | M161: 834.7 | N161: 825.65 | O161: 809825 | P161: -4.45%
A162: 152 | B162: Automobile | C162: TVSMOTOR | D162: 2021-05-27 | E162: 650.70 | F162: 646.83 | G162: 635.37 | H162: 620.03 | I162: 608.57 | J162: 662.17 | K162: 673.63 | L162: 688.97 | M162: 658.3 | N162: 631.5 | O162: 5870200 | P162: -1.34%
A163: 153 | B163: FMCG | C163: UBL | D163: 2021-05-27 | E163: 1298.90 | F163: 1297.32 | G163: 1285.03 | H163: 1271.17 | I163: 1258.88 | J163: 1311.18 | K163: 1323.47 | L163: 1337.33 | M163: 1309.6 | N163: 1283.45 | O163: 1033900 | P163: -13.32%
A164: 154 | B164: Cement | C164: ULTRACEMCO | D164: 2021-05-27 | E164: 6568.70 | F164: 6566.85 | G164: 6528.70 | H164: 6488.70 | I164: 6450.55 | J164: 6606.85 | K164: 6645.00 | L164: 6685.00 | M164: 6605 | N164: 6526.85 | O164: 2460900 | P164: -1.65%
A165: 155 | B165: Chemical | C165: UPL | D165: 2021-05-27 | E165: 812.30 | F165: 806.87 | G165: 797.28 | H165: 782.27 | I165: 772.68 | J165: 821.88 | K165: 831.47 | L165: 846.48 | M165: 816.45 | N165: 791.85 | O165: 20306000 | P165: 2.70%
A166: 156 | B166: Metals | C166: VEDL | D166: 2021-05-27 | E166: 268.90 | F166: 271.28 | G166: 264.72 | H166: 260.53 | I166: 253.97 | J166: 275.47 | K166: 282.03 | L166: 286.22 | M166: 277.85 | N166: 267.1 | O166: 123063800 | P166: 0.45%
A167: 157 | B167: Capital_Goods | C167: VOLTAS | D167: 2021-05-27 | E167: 988.55 | F167: 986.40 | G167: 977.50 | H167: 966.45 | I167: 957.55 | J167: 997.45 | K167: 1006.35 | L167: 1017.40 | M167: 995.3 | N167: 975.35 | O167: 2907500 | P167: -6.47%
A168: 158 | B168: Technology | C168: WIPRO | D168: 2021-05-27 | E168: 527.60 | F168: 524.68 | G168: 518.27 | H168: 508.93 | I168: 502.52 | J168: 534.02 | K168: 540.43 | L168: 549.77 | M168: 531.1 | N168: 515.35 | O168: 31073600 | P168: 0.26%
A169: 159 | B169: Media | C169: ZEEL | D169: 2021-05-27 | E169: 206.10 | F169: 205.58 | G169: 203.72 | H169: 201.33 | I169: 199.47 | J169: 207.97 | K169: 209.83 | L169: 212.22 | M169: 207.45 | N169: 203.2 | O169: 80304000 | P169: -2.57%
A175: Pivot Point: This is trigger point for intra day buy/sell based on the price range of the previous day
A176: As per the tool,the trader should take BUY position just above Pivot and keep the stop loss of pivot point and the first target would be Resistance 1(R1)
A177: If R1 is crossed then R2 becomes the next target with stop loss of at R1
A178: Similarly if price goes below pivot point then the trader should sell and keep a stop loss of pivot point and the first target would be S1
A179: If S1 is crossed then S2 becomes the next target with stop loss of at S1
A181: Disclaimer:
A182: This document has been prepared by the Retail Research Desk of Asit C Mehta
A183: Investment Intermediates Ltd. and is meant for use of the recipient only
A184: and is not for circulation. This document is not to be reported or
A185: copied or made available to others. It should not be considered to be
A186: taken as an offer to sell or a solicitation to buy any security. The
A187: information contained herein is from sources believed reliable. We do
A188: not represent that it is accurate or complete and it should not be
A189: relied upon as such. We may from time to time have positions in and buy
A190: and sell securities referred to herein

Sheet Cash Intra
M5: Back to Main Page
A6: FOR INTRA DAY TRADING | K6: =Main!B10 -> 2021-05-27
A8: Sr.no | C8: CLOSE RATE | D8: Pivot Point | E8: Supports | H8: Resistances
C9: Point | E9: S1 | F9: S2 | G9: S3 | H9: R1 | I9: R2 | J9: R3 | K9: HIGH | L9: LOW | M9: Total Trade Quanity in Lakhs
A10: 1 | B10: Nifty 50 | C10: 15301.45 | D10: 15272.10 | E10: 15224.30 | F10: 15147.15 | G10: 15099.35 | H10: 15349.25 | I10: 15397.05 | J10: 15474.20 | K10: 15319.9 | L10: 15194.95
A11: 2 | B11: Nifty Bank | C11: 34684.2 | D11: 34681.55 | E11: 34465.15 | F11: 34246.10 | G11: 34029.70 | H11: 34900.60 | I11: 35117.00 | J11: 35336.05 | K11: 34897.95 | L11: 34462.5
A12: 3 | B12: Nifty CPSE | C12: 1955.05 | D12: 1967.52 | E12: 1940.28 | F12: 1925.52 | G12: 1898.28 | H12: 1982.28 | I12: 2009.52 | J12: 2024.28 | K12: 1994.75 | L12: 1952.75
A13: 4 | B13: Nifty Infra | C13: 4217.5 | D13: 4223.10 | E13: 4209.05 | F13: 4200.60 | G13: 4186.55 | H13: 4231.55 | I13: 4245.60 | J13: 4254.05 | K13: 4237.15 | L13: 4214.65
A14: 5 | B14: Nifty IT | C14: 26857.3 | D14: 26714.52 | E14: 26523.28 | F14: 26189.27 | G14: 25998.03 | H14: 27048.53 | I14: 27239.77 | J14: 27573.78 | K14: 26905.75 | L14: 26380.5
A15: 6 | B15: Nifty PSE | C15: 3494.65 | D15: 3513.40 | E15: 3472.20 | F15: 3449.75 | G15: 3408.55 | H15: 3535.85 | I15: 3577.05 | J15: 3599.50 | K15: 3554.6 | L15: 3490.95
A16: 7 | B16: Nifty Midcap 50 | C16: 7124.35 | D16: 7141.32 | E16: 7102.58 | F16: 7080.82 | G16: 7042.08 | H16: 7163.08 | I16: 7201.82 | J16: 7223.58 | K16: 7180.05 | L16: 7119.55
A17: 8 | B17: ACC | C17: 1977.45 | D17: 1972.18 | E17: 1962.47 | F17: 1947.48 | G17: 1937.77 | H17: 1987.17 | I17: 1996.88 | J17: 2011.87 | K17: 1981.9 | L17: 1957.2 | M17: 4.44885
A18: 9 | B18: AUBANK | C18: 963.05 | D18: 962.68 | E18: 952.37 | F18: 941.68 | G18: 931.37 | H18: 973.37 | I18: 983.68 | J18: 994.37 | K18: 973 | L18: 952 | M18: 10.36499
A19: 10 | B19: AARTIIND | C19: 1664.25 | D19: 1666.23 | E19: 1653.02 | F19: 1641.78 | G19: 1628.57 | H19: 1677.47 | I19: 1690.68 | J19: 1701.92 | K19: 1679.45 | L19: 1655 | M19: 4.47409
A20: 11 | B20: ABBOTINDIA | C20: 16049.45 | D20: 16073.10 | E20: 15951.35 | F20: 15853.25 | G20: 15731.50 | H20: 16171.20 | I20: 16292.95 | J20: 16391.05 | K20: 16194.85 | L20: 15975 | M20: 0.10557
A21: 12 | B21: ADANIENT | C21: 1322.8 | D21: 1301.30 | E21: 1275.75 | F21: 1228.70 | G21: 1203.15 | H21: 1348.35 | I21: 1373.90 | J21: 1420.95 | K21: 1326.85 | L21: 1254.25 | M21: 56.3073
A22: 13 | B22: ADANIGREEN | C22: 1264.6 | D22: 1282.35 | E22: 1230.80 | F22: 1197.00 | G22: 1145.45 | H22: 1316.15 | I22: 1367.70 | J22: 1401.50 | K22: 1333.9 | L22: 1248.55 | M22: 10.22936
A23: 14 | B23: ADANIPORTS | C23: 758.3 | D23: 761.73 | E23: 753.57 | F23: 748.83 | G23: 740.67 | H23: 766.47 | I23: 774.63 | J23: 779.37 | K23: 769.9 | L23: 757 | M23: 73.75242
A24: 15 | B24: ATGL | C24: 1327.6 | D24: 1309.20 | E24: 1283.40 | F24: 1239.20 | G24: 1213.40 | H24: 1353.40 | I24: 1379.20 | J24: 1423.40 | K24: 1335 | L24: 1265 | M24: 10.92501
A25: 16 | B25: ADANITRANS | C25: 1392.55 | D25: 1397.15 | E25: 1373.10 | F25: 1353.65 | G25: 1329.60 | H25: 1416.60 | I25: 1440.65 | J25: 1460.10 | K25: 1421.2 | L25: 1377.7 | M25: 20.40422
A26: 17 | B26: ABCAPITAL | C26: 125 | D26: 125.47 | E26: 123.58 | F26: 122.17 | G26: 120.28 | H26: 126.88 | I26: 128.77 | J26: 130.18 | K26: 127.35 | L26: 124.05 | M26: 29.49079
A27: 18 | B27: ABFRL | C27: 184.9 | D27: 186.35 | E27: 183.05 | F27: 181.20 | G27: 177.90 | H27: 188.20 | I27: 191.50 | J27: 193.35 | K27: 189.65 | L27: 184.5 | M27: 20.01697
A28: 19 | B28: AJANTPHARM | C28: 1930.05 | D28: 1949.02 | E28: 1906.03 | F28: 1882.02 | G28: 1839.03 | H28: 1973.03 | I28: 2016.02 | J28: 2040.03 | K28: 1992 | L28: 1925 | M28: 1.03612
A29: 20 | B29: APLLTD | C29: 951.1 | D29: 954.92 | E29: 943.93 | F29: 936.77 | G29: 925.78 | H29: 962.08 | I29: 973.07 | J29: 980.23 | K29: 965.9 | L29: 947.75 | M29: 3.80408
A30: 21 | B30: ALKEM | C30: 2935.6 | D30: 2936.58 | E30: 2904.02 | F30: 2872.43 | G30: 2839.87 | H30: 2968.17 | I30: 3000.73 | J30: 3032.32 | K30: 2969.15 | L30: 2905 | M30: 3.23341
A31: 22 | B31: AMARAJABAT | C31: 742.1 | D31: 742.28 | E31: 737.87 | F31: 733.63 | G31: 729.22 | H31: 746.52 | I31: 750.93 | J31: 755.17 | K31: 746.7 | L31: 738.05 | M31: 28.48784
A32: 23 | B32: AMBUJACEM | C32: 323.1 | D32: 322.50 | E32: 320.00 | F32: 316.90 | G32: 314.40 | H32: 325.60 | I32: 328.10 | J32: 331.20 | K32: 325 | L32: 319.4 | M32: 31.03367
A33: 24 | B33: APOLLOHOSP | C33: 3183.6 | D33: 3193.90 | E33: 3167.80 | F33: 3152.00 | G33: 3125.90 | H33: 3209.70 | I33: 3235.80 | J33: 3251.60 | K33: 3220 | L33: 3178.1 | M33: 2.60821
A34: 25 | B34: APOLLOTYRE | C34: 222.1 | D34: 221.62 | E34: 218.98 | F34: 215.87 | G34: 213.23 | H34: 224.73 | I34: 227.37 | J34: 230.48 | K34: 224.25 | L34: 218.5 | M34: 64.19209
A35: 26 | B35: ASHOKLEY | C35: 125.5 | D35: 126.15 | E35: 124.55 | F35: 123.60 | G35: 122.00 | H35: 127.10 | I35: 128.70 | J35: 129.65 | K35: 127.75 | L35: 125.2 | M35: 91.05551
A36: 27 | B36: ASIANPAINT | C36: 2941.6 | D36: 2933.30 | E36: 2918.70 | F36: 2895.80 | G36: 2881.20 | H36: 2956.20 | I36: 2970.80 | J36: 2993.70 | K36: 2947.9 | L36: 2910.4 | M36: 12.50531
A37: 28 | B37: AUROPHARMA | C37: 1023.35 | D37: 1027.98 | E37: 1012.87 | F37: 1002.38 | G37: 987.27 | H37: 1038.47 | I37: 1053.58 | J37: 1064.07 | K37: 1043.1 | L37: 1017.5 | M37: 18.10026
A38: 29 | B38: DMART | C38: 3096.2 | D38: 3100.55 | E38: 3066.10 | F38: 3036.00 | G38: 3001.55 | H38: 3130.65 | I38: 3165.10 | J38: 3195.20 | K38: 3135 | L38: 3070.45 | M38: 2.84202
A39: 30 | B39: AXISBANK | C39: 735.1 | D39: 735.33 | E39: 729.27 | F39: 723.43 | G39: 717.37 | H39: 741.17 | I39: 747.23 | J39: 753.07 | K39: 741.4 | L39: 729.5 | M39: 90.81086
A40: 31 | B40: BAJAJ-AUTO | C40: 4166.3 | D40: 4162.77 | E40: 4145.53 | F40: 4124.77 | G40: 4107.53 | H40: 4183.53 | I40: 4200.77 | J40: 4221.53 | K40: 4180 | L40: 4142 | M40: 2.61524
A41: 32 | B41: BAJFINANCE | C41: 5771.15 | D41: 5717.35 | E41: 5639.90 | F41: 5508.65 | G41: 5431.20 | H41: 5848.60 | I41: 5926.05 | J41: 6057.30 | K41: 5794.8 | L41: 5586.1 | M41: 29.16746
A42: 33 | B42: BAJAJFINSV | C42: 11906.4 | D42: 11757.18 | E42: 11534.37 | F42: 11162.33 | G42: 10939.52 | H42: 12129.22 | I42: 12352.03 | J42: 12724.07 | K42: 11980 | L42: 11385.15 | M42: 10.15265
A43: 34 | B43: BAJAJHLDNG | C43: 3568.65 | D43: 3571.87 | E43: 3545.73 | F43: 3522.82 | G43: 3496.68 | H43: 3594.78 | I43: 3620.92 | J43: 3643.83 | K43: 3598 | L43: 3548.95 | M43: 0.34837
A44: 35 | B44: BALKRISIND | C44: 2164.6 | D44: 2181.67 | E44: 2140.23 | F44: 2115.87 | G44: 2074.43 | H44: 2206.03 | I44: 2247.47 | J44: 2271.83 | K44: 2223.1 | L44: 2157.3 | M44: 4.1149
A45: 36 | B45: BANDHANBNK | C45: 292.1 | D45: 292.75 | E45: 289.50 | F45: 286.90 | G45: 283.65 | H45: 295.35 | I45: 298.60 | J45: 301.20 | K45: 296 | L45: 290.15 | M45: 41.35604
A46: 37 | B46: BANKBARODA | C46: 80.6 | D46: 80.97 | E46: 79.63 | F46: 78.67 | G46: 77.33 | H46: 81.93 | I46: 83.27 | J46: 84.23 | K46: 82.3 | L46: 80 | M46: 547.11508
A47: 38 | B47: BANKINDIA | C47: 76.9 | D47: 76.92 | E47: 76.08 | F47: 75.27 | G47: 74.43 | H47: 77.73 | I47: 78.57 | J47: 79.38 | K47: 77.75 | L47: 76.1 | M47: 40.89734
A48: 39 | B48: BATAINDIA | C48: 1535.4 | D48: 1533.17 | E48: 1520.23 | F48: 1505.07 | G48: 1492.13 | H48: 1548.33 | I48: 1561.27 | J48: 1576.43 | K48: 1546.1 | L48: 1518 | M48: 5.11638
A49: 40 | B49: BERGEPAINT | C49: 832.35 | D49: 830.08 | E49: 817.42 | F49: 802.48 | G49: 789.82 | H49: 845.02 | I49: 857.68 | J49: 872.62 | K49: 842.75 | L49: 815.15 | M49: 39.75803
A50: 41 | B50: BEL | C50: 149.75 | D50: 150.98 | E50: 147.77 | F50: 145.78 | G50: 142.57 | H50: 152.97 | I50: 156.18 | J50: 158.17 | K50: 154.2 | L50: 149 | M50: 150.23561
A51: 42 | B51: BHARATFORG | C51: 667.9 | D51: 667.93 | E51: 656.62 | F51: 645.33 | G51: 634.02 | H51: 679.22 | I51: 690.53 | J51: 701.82 | K51: 679.25 | L51: 656.65 | M51: 24.64662
A52: 43 | B52: BHEL | C52: 72.5 | D52: 73.37 | E52: 71.28 | F52: 70.07 | G52: 67.98 | H52: 74.58 | I52: 76.67 | J52: 77.88 | K52: 75.45 | L52: 72.15 | M52: 817.57007
A53: 44 | B53: BPCL | C53: 472.2 | D53: 473.80 | E53: 466.90 | F53: 461.60 | G53: 454.70 | H53: 479.10 | I53: 486.00 | J53: 491.30 | K53: 480.7 | L53: 468.5 | M53: 129.72307
A54: 45 | B54: BHARTIARTL | C54: 525.75 | D54: 527.18 | E54: 523.57 | F54: 521.38 | G54: 517.77 | H54: 529.37 | I54: 532.98 | J54: 535.17 | K54: 530.8 | L54: 525 | M54: 67.81577
A55: 46 | B55: BIOCON | C55: 383.05 | D55: 383.35 | E55: 380.25 | F55: 377.45 | G55: 374.35 | H55: 386.15 | I55: 389.25 | J55: 392.05 | K55: 386.45 | L55: 380.55 | M55: 23.49815
A56: 47 | B56: BBTC | C56: 1323.4 | D56: 1294.55 | E56: 1254.10 | F56: 1184.80 | G56: 1144.35 | H56: 1363.85 | I56: 1404.30 | J56: 1473.60 | K56: 1335 | L56: 1225.25 | M56: 10.31157
A57: 48 | B57: BOSCHLTD | C57: 14882.35 | D57: 14995.02 | E57: 14742.38 | F57: 14602.42 | G57: 14349.78 | H57: 15134.98 | I57: 15387.62 | J57: 15527.58 | K57: 15247.65 | L57: 14855.05 | M57: 0.41168
A58: 49 | B58: BRITANNIA | C58: 3416 | D58: 3427.63 | E58: 3401.42 | F58: 3386.83 | G58: 3360.62 | H58: 3442.22 | I58: 3468.43 | J58: 3483.02 | K58: 3453.85 | L58: 3413.05 | M58: 3.73186
A59: 50 | B59: CESC | C59: 676.65 | D59: 679.67 | E59: 671.98 | F59: 667.32 | G59: 659.63 | H59: 684.33 | I59: 692.02 | J59: 696.68 | K59: 687.35 | L59: 675 | M59: 1.8499
A60: 51 | B60: CADILAHC | C60: 628.1 | D60: 626.95 | E60: 620.90 | F60: 613.70 | G60: 607.65 | H60: 634.15 | I60: 640.20 | J60: 647.40 | K60: 633 | L60: 619.75 | M60: 70.898
A61: 52 | B61: CANBK | C61: 149.55 | D61: 150.33 | E61: 148.42 | F61: 147.28 | G61: 145.37 | H61: 151.47 | I61: 153.38 | J61: 154.52 | K61: 152.25 | L61: 149.2 | M61: 154.94451
A62: 53 | B62: CASTROLIND | C62: 133.65 | D62: 133.65 | E62: 132.65 | F62: 131.65 | G62: 130.65 | H62: 134.65 | I62: 135.65 | J62: 136.65 | K62: 134.65 | L62: 132.65 | M62: 11.38092
A63: 54 | B63: CHOLAFIN | C63: 544.1 | D63: 547.62 | E63: 538.68 | F63: 533.27 | G63: 524.33 | H63: 553.03 | I63: 561.97 | J63: 567.38 | K63: 556.55 | L63: 542.2 | M63: 35.60232
A64: 55 | B64: CIPLA | C64: 945.15 | D64: 945.38 | E64: 938.82 | F64: 932.48 | G64: 925.92 | H64: 951.72 | I64: 958.28 | J64: 964.62 | K64: 951.95 | L64: 939.05 | M64: 54.45187
A65: 56 | B65: CUB | C65: 174.35 | D65: 172.98 | E65: 171.22 | F65: 168.08 | G65: 166.32 | H65: 176.12 | I65: 177.88 | J65: 181.02 | K65: 174.75 | L65: 169.85 | M65: 18.55668
A66: 57 | B66: COALINDIA | C66: 145.7 | D66: 146.30 | E66: 144.60 | F66: 143.50 | G66: 141.80 | H66: 147.40 | I66: 149.10 | J66: 150.20 | K66: 148 | L66: 145.2 | M66: 99.48786
A67: 58 | B67: COFORGE | C67: 3484.65 | D67: 3444.88 | E67: 3384.77 | F67: 3284.88 | G67: 3224.77 | H67: 3544.77 | I67: 3604.88 | J67: 3704.77 | K67: 3505 | L67: 3345 | M67: 13.5817
A68: 59 | B68: COLPAL | C68: 1679.15 | D68: 1691.88 | E68: 1663.02 | F68: 1646.88 | G68: 1618.02 | H68: 1708.02 | I68: 1736.88 | J68: 1753.02 | K68: 1720.75 | L68: 1675.75 | M68: 7.4112
A69: 60 | B69: CONCOR | C69: 666.6 | D69: 670.20 | E69: 659.45 | F69: 652.30 | G69: 641.55 | H69: 677.35 | I69: 688.10 | J69: 695.25 | K69: 680.95 | L69: 663.05 | M69: 61.01756
A70: 61 | B70: COROMANDEL | C70: 834 | D70: 838.20 | E70: 823.95 | F70: 813.90 | G70: 799.65 | H70: 848.25 | I70: 862.50 | J70: 872.55 | K70: 852.45 | L70: 828.15 | M70: 2.57646
A71: 62 | B71: CROMPTON | C71: 396 | D71: 398.50 | E71: 390.00 | F71: 384.00 | G71: 375.50 | H71: 404.50 | I71: 413.00 | J71: 419.00 | K71: 407 | L71: 392.5 | M71: 13.14545
A72: 63 | B72: CUMMINSIND | C72: 802.65 | D72: 810.47 | E72: 788.98 | F72: 775.32 | G72: 753.83 | H72: 824.13 | I72: 845.62 | J72: 859.28 | K72: 831.95 | L72: 796.8 | M72: 18.00521
A73: 64 | B73: DLF | C73: 291.2 | D73: 287.47 | E73: 282.08 | F73: 272.97 | G73: 267.58 | H73: 296.58 | I73: 301.97 | J73: 311.08 | K73: 292.85 | L73: 278.35 | M73: 171.84211
A74: 65 | B74: DABUR | C74: 532.2 | D74: 531.30 | E74: 529.65 | F74: 527.10 | G74: 525.45 | H74: 533.85 | I74: 535.50 | J74: 538.05 | K74: 532.95 | L74: 528.75 | M74: 15.33553
A75: 66 | B75: DALBHARAT | C75: 1845.65 | D75: 1850.50 | E75: 1820.15 | F75: 1794.65 | G75: 1764.30 | H75: 1876.00 | I75: 1906.35 | J75: 1931.85 | K75: 1880.85 | L75: 1825 | M75: 0.32038
A76: 67 | B76: DHANI | C76: 178.75 | D76: 177.73 | E76: 175.32 | F76: 171.88 | G76: 169.47 | H76: 181.17 | I76: 183.58 | J76: 187.02 | K76: 180.15 | L76: 174.3 | M76: 9.75992
A77: 68 | B77: DIVISLAB | C77: 4098.6 | D77: 4091.20 | E77: 4062.40 | F77: 4026.20 | G77: 3997.40 | H77: 4127.40 | I77: 4156.20 | J77: 4192.40 | K77: 4120 | L77: 4055 | M77: 3.44734
A78: 69 | B78: LALPATHLAB | C78: 2788.4 | D78: 2782.15 | E78: 2756.30 | F78: 2724.20 | G78: 2698.35 | H78: 2814.25 | I78: 2840.10 | J78: 2872.20 | K78: 2808 | L78: 2750.05 | M78: 2.22254
A79: 70 | B79: DRREDDY | C79: 5285.2 | D79: 5298.40 | E79: 5261.80 | F79: 5238.40 | G79: 5201.80 | H79: 5321.80 | I79: 5358.40 | J79: 5381.80 | K79: 5335 | L79: 5275 | M79: 5.0748
A80: 71 | B80: EDELWEISS | C80: 66.45 | D80: 67.32 | E80: 65.13 | F80: 63.82 | G80: 61.63 | H80: 68.63 | I80: 70.82 | J80: 72.13 | K80: 69.5 | L80: 66 | M80: 64.06795
A81: 72 | B81: EICHERMOT | C81: 2633.5 | D81: 2632.23 | E81: 2608.32 | F81: 2583.13 | G81: 2559.22 | H81: 2657.42 | I81: 2681.33 | J81: 2706.52 | K81: 2656.15 | L81: 2607.05 | M81: 10.2604
A82: 73 | B82: EMAMILTD | C82: 504.25 | D82: 503.53 | E82: 496.37 | F82: 488.48 | G82: 481.32 | H82: 511.42 | I82: 518.58 | J82: 526.47 | K82: 510.7 | L82: 495.65 | M82: 6.55345
A83: 74 | B83: ENDURANCE | C83: 1492.65 | D83: 1474.22 | E83: 1448.43 | F83: 1404.22 | G83: 1378.43 | H83: 1518.43 | I83: 1544.22 | J83: 1588.43 | K83: 1500 | L83: 1430 | M83: 2.31651
A84: 75 | B84: ESCORTS | C84: 1137.9 | D84: 1142.43 | E84: 1130.47 | F84: 1123.03 | G84: 1111.07 | H84: 1149.87 | I84: 1161.83 | J84: 1169.27 | K84: 1154.4 | L84: 1135 | M84: 16.81362
A85: 76 | B85: EXIDEIND | C85: 190.2 | D85: 190.70 | E85: 189.00 | F85: 187.80 | G85: 186.10 | H85: 191.90 | I85: 193.60 | J85: 194.80 | K85: 192.4 | L85: 189.5 | M85: 27.82917
A86: 77 | B86: FEDERALBNK | C86: 87 | D86: 87.10 | E86: 86.50 | F86: 86.00 | G86: 85.40 | H86: 87.60 | I86: 88.20 | J86: 88.70 | K86: 87.7 | L86: 86.6 | M86: 208.4485
A87: 78 | B87: FORTIS | C87: 227.25 | D87: 226.83 | E87: 224.92 | F87: 222.58 | G87: 220.67 | H87: 229.17 | I87: 231.08 | J87: 233.42 | K87: 228.75 | L87: 224.5 | M87: 16.18623
A88: 79 | B88: FRETAIL | C88: 45.95 | D88: 46.02 | E88: 45.63 | F88: 45.32 | G88: 44.93 | H88: 46.33 | I88: 46.72 | J88: 47.03 | K88: 46.4 | L88: 45.7 | M88: 15.51886
A89: 80 | B89: GAIL | C89: 152.1 | D89: 153.20 | E89: 150.60 | F89: 149.10 | G89: 146.50 | H89: 154.70 | I89: 157.30 | J89: 158.80 | K89: 155.8 | L89: 151.7 | M89: 86.74635
A90: 81 | B90: GMRINFRA | C90: 27.2 | D90: 27.17 | E90: 26.58 | F90: 25.97 | G90: 25.38 | H90: 27.78 | I90: 28.37 | J90: 28.98 | K90: 27.75 | L90: 26.55 | M90: 578.63432
A91: 82 | B91: GICRE | C91: 193.4 | D91: 193.92 | E91: 192.48 | F91: 191.57 | G91: 190.13 | H91: 194.83 | I91: 196.27 | J91: 197.18 | K91: 195.35 | L91: 193 | M91: 1.87815
A92: 83 | B92: GLENMARK | C92: 608.4 | D92: 606.82 | E92: 598.68 | F92: 588.97 | G92: 580.83 | H92: 616.53 | I92: 624.67 | J92: 634.38 | K92: 614.95 | L92: 597.1 | M92: 22.51359
A93: 84 | B93: GODREJAGRO | C93: 548.3 | D93: 551.47 | E93: 542.93 | F93: 537.57 | G93: 529.03 | H93: 556.83 | I93: 565.37 | J93: 570.73 | K93: 560 | L93: 546.1 | M93: 1.31712
A94: 85 | B94: GODREJCP | C94: 824.9 | D94: 818.12 | E94: 808.83 | F94: 792.77 | G94: 783.48 | H94: 834.18 | I94: 843.47 | J94: 859.53 | K94: 827.4 | L94: 802.05 | M94: 17.98172
A95: 86 | B95: GODREJIND | C95: 552.8 | D95: 556.07 | E95: 547.73 | F95: 542.67 | G95: 534.33 | H95: 561.13 | I95: 569.47 | J95: 574.53 | K95: 564.4 | L95: 551 | M95: 2.3712
A96: 87 | B96: GODREJPROP | C96: 1348.55 | D96: 1347.60 | E96: 1335.50 | F96: 1322.45 | G96: 1310.35 | H96: 1360.65 | I96: 1372.75 | J96: 1385.80 | K96: 1359.7 | L96: 1334.55 | M96: 7.95763
A97: 88 | B97: GRASIM | C97: 1409.4 | D97: 1407.47 | E97: 1382.98 | F97: 1356.57 | G97: 1332.08 | H97: 1433.88 | I97: 1458.37 | J97: 1484.78 | K97: 1431.95 | L97: 1381.05 | M97: 43.02562
A98: 89 | B98: GUJGASLTD | C98: 513.9 | D98: 515.10 | E98: 509.80 | F98: 505.70 | G98: 500.40 | H98: 519.20 | I98: 524.50 | J98: 528.60 | K98: 520.4 | L98: 511 | M98: 7.56861
A99: 90 | B99: GSPL | C99: 277.5 | D99: 275.88 | E99: 272.82 | F99: 268.13 | G99: 265.07 | H99: 280.57 | I99: 283.63 | J99: 288.32 | K99: 278.95 | L99: 271.2 | M99: 4.53322
A100: 91 | B100: HCLTECH | C100: 945.8 | D100: 942.43 | E100: 935.92 | F100: 926.03 | G100: 919.52 | H100: 952.32 | I100: 958.83 | J100: 968.72 | K100: 948.95 | L100: 932.55 | M100: 50.17674
A101: 92 | B101: HDFCAMC | C101: 2819.95 | D101: 2823.32 | E101: 2811.63 | F101: 2803.32 | G101: 2791.63 | H101: 2831.63 | I101: 2843.32 | J101: 2851.63 | K101: 2835 | L101: 2815 | M101: 0.87468
A102: 93 | B102: HDFCBANK | C102: 1477.05 | D102: 1478.02 | E102: 1469.03 | F102: 1461.02 | G102: 1452.03 | H102: 1486.03 | I102: 1495.02 | J102: 1503.03 | K102: 1487 | L102: 1470 | M102: 61.41995
A103: 94 | B103: HDFCLIFE | C103: 658.5 | D103: 660.68 | E103: 654.97 | F103: 651.43 | G103: 645.72 | H103: 664.22 | I103: 669.93 | J103: 673.47 | K103: 666.4 | L103: 657.15 | M103: 19.3868
A104: 95 | B104: HAVELLS | C104: 996.4 | D104: 1000.22 | E104: 991.18 | F104: 985.97 | G104: 976.93 | H104: 1005.43 | I104: 1014.47 | J104: 1019.68 | K104: 1009.25 | L104: 995 | M104: 11.61924
A105: 96 | B105: HEROMOTOCO | C105: 2964.7 | D105: 2957.32 | E105: 2927.88 | F105: 2891.07 | G105: 2861.63 | H105: 2994.13 | I105: 3023.57 | J105: 3060.38 | K105: 2986.75 | L105: 2920.5 | M105: 8.17054
A106: 97 | B106: HINDALCO | C106: 381 | D106: 383.58 | E106: 377.67 | F106: 374.33 | G106: 368.42 | H106: 386.92 | I106: 392.83 | J106: 396.17 | K106: 389.5 | L106: 380.25 | M106: 153.40621
A107: 98 | B107: HINDPETRO | C107: 284.25 | D107: 286.55 | E107: 281.30 | F107: 278.35 | G107: 273.10 | H107: 289.50 | I107: 294.75 | J107: 297.70 | K107: 291.8 | L107: 283.6 | M107: 57.07035
A108: 99 | B108: HINDUNILVR | C108: 2354 | D108: 2356.48 | E108: 2342.77 | F108: 2331.53 | G108: 2317.82 | H108: 2367.72 | I108: 2381.43 | J108: 2392.67 | K108: 2370.2 | L108: 2345.25 | M108: 8.11095
A109: 100 | B109: HINDZINC | C109: 325.85 | D109: 329.32 | E109: 321.23 | F109: 316.62 | G109: 308.53 | H109: 333.93 | I109: 342.02 | J109: 346.63 | K109: 337.4 | L109: 324.7 | M109: 22.23573
A110: 101 | B110: HUDCO | C110: 48.8 | D110: 49.05 | E110: 47.90 | F110: 47.00 | G110: 45.85 | H110: 49.95 | I110: 51.10 | J110: 52.00 | K110: 50.2 | L110: 48.15 | M110: 34.26373
A111: 102 | B111: HDFC | C111: 2567.55 | D111: 2557.68 | E111: 2540.37 | F111: 2513.18 | G111: 2495.87 | H111: 2584.87 | I111: 2602.18 | J111: 2629.37 | K111: 2575 | L111: 2530.5 | M111: 18.39397
A112: 103 | B112: ICICIBANK | C112: 652.5 | D112: 650.82 | E112: 644.98 | F112: 637.47 | G112: 631.63 | H112: 658.33 | I112: 664.17 | J112: 671.68 | K112: 656.65 | L112: 643.3 | M112: 144.87031
A113: 104 | B113: ICICIGI | C113: 1476.85 | D113: 1480.60 | E113: 1461.65 | F113: 1446.45 | G113: 1427.50 | H113: 1495.80 | I113: 1514.75 | J113: 1529.95 | K113: 1499.55 | L113: 1465.4 | M113: 4.56731
A114: 105 | B114: ICICIPRULI | C114: 525.9 | D114: 531.63 | E114: 518.37 | F114: 510.83 | G114: 497.57 | H114: 539.17 | I114: 552.43 | J114: 559.97 | K114: 544.9 | L114: 524.1 | M114: 27.52131
A115: 106 | B115: ISEC | C115: 573.4 | D115: 574.68 | E115: 570.27 | F115: 567.13 | G115: 562.72 | H115: 577.82 | I115: 582.23 | J115: 585.37 | K115: 579.1 | L115: 571.55 | M115: 4.8756
A116: 107 | B116: IDFCFIRSTB | C116: 57.8 | D116: 58.27 | E116: 57.23 | F116: 56.67 | G116: 55.63 | H116: 58.83 | I116: 59.87 | J116: 60.43 | K116: 59.3 | L116: 57.7 | M116: 423.04492
A117: 108 | B117: ITC | C117: 210.6 | D117: 211.12 | E117: 209.78 | F117: 208.97 | G117: 207.63 | H117: 211.93 | I117: 213.27 | J117: 214.08 | K117: 212.45 | L117: 210.3 | M117: 175.76137
A118: 109 | B118: IBULHSGFIN | C118: 224.6 | D118: 222.22 | E118: 217.43 | F118: 210.27 | G118: 205.48 | H118: 229.38 | I118: 234.17 | J118: 241.33 | K118: 227 | L118: 215.05 | M118: 267.38139
A119: 110 | B119: INDHOTEL | C119: 131.2 | D119: 133.35 | E119: 127.85 | F119: 124.50 | G119: 119.00 | H119: 136.70 | I119: 142.20 | J119: 145.55 | K119: 138.85 | L119: 130 | M119: 50.12018
A120: 111 | B120: IOC | C120: 112 | D120: 111.35 | E120: 109.90 | F120: 107.80 | G120: 106.35 | H120: 113.45 | I120: 114.90 | J120: 117.00 | K120: 112.8 | L120: 109.25 | M120: 369.91909
A121: 112 | B121: IRCTC | C121: 1894.05 | D121: 1904.03 | E121: 1878.02 | F121: 1861.98 | G121: 1835.97 | H121: 1920.07 | I121: 1946.08 | J121: 1962.12 | K121: 1930.05 | L121: 1888 | M121: 9.22757
A122: 113 | B122: IGL | C122: 509.2 | D122: 509.78 | E122: 506.42 | F122: 503.63 | G122: 500.27 | H122: 512.57 | I122: 515.93 | J122: 518.72 | K122: 513.15 | L122: 507 | M122: 16.3283
A123: 114 | B123: INDUSTOWER | C123: 241.45 | D123: 241.95 | E123: 240.60 | F123: 239.75 | G123: 238.40 | H123: 242.80 | I123: 244.15 | J123: 245.00 | K123: 243.3 | L123: 241.1 | M123: 13.62886
A124: 115 | B124: INDUSINDBK | C124: 998.45 | D124: 997.80 | E124: 987.65 | F124: 976.85 | G124: 966.70 | H124: 1008.60 | I124: 1018.75 | J124: 1029.55 | K124: 1007.95 | L124: 987 | M124: 29.72854
A125: 116 | B125: NAUKRI | C125: 4520.5 | D125: 4460.13 | E125: 4381.27 | F125: 4242.03 | G125: 4163.17 | H125: 4599.37 | I125: 4678.23 | J125: 4817.47 | K125: 4539 | L125: 4320.9 | M125: 10.6913
A126: 117 | B126: INFY | C126: 1397.25 | D126: 1386.43 | E126: 1372.87 | F126: 1348.48 | G126: 1334.92 | H126: 1410.82 | I126: 1424.38 | J126: 1448.77 | K126: 1400 | L126: 1362.05 | M126: 68.50024
A127: 118 | B127: INDIGO | C127: 1724.15 | D127: 1727.62 | E127: 1706.53 | F127: 1688.92 | G127: 1667.83 | H127: 1745.23 | I127: 1766.32 | J127: 1783.93 | K127: 1748.7 | L127: 1710 | M127: 6.1784
A128: 119 | B128: IPCALAB | C128: 2243.9 | D128: 2238.07 | E128: 2217.83 | F128: 2191.77 | G128: 2171.53 | H128: 2264.13 | I128: 2284.37 | J128: 2310.43 | K128: 2258.3 | L128: 2212 | M128: 1.52627
A129: 120 | B129: JSWENERGY | C129: 115.1 | D129: 115.80 | E129: 113.50 | F129: 111.90 | G129: 109.60 | H129: 117.40 | I129: 119.70 | J129: 121.30 | K129: 118.1 | L129: 114.2 | M129: 22.14904
A130: 121 | B130: JSWSTEEL | C130: 682.2 | D130: 682.25 | E130: 673.50 | F130: 664.80 | G130: 656.05 | H130: 690.95 | I130: 699.70 | J130: 708.40 | K130: 691 | L130: 673.55 | M130: 187.21303
A131: 122 | B131: JINDALSTEL | C131: 389.85 | D131: 392.77 | E131: 383.53 | F131: 377.22 | G131: 367.98 | H131: 399.08 | I131: 408.32 | J131: 414.63 | K131: 402 | L131: 386.45 | M131: 175.97454
A132: 123 | B132: JUBLFOOD | C132: 3144.4 | D132: 3122.43 | E132: 3091.97 | F132: 3039.53 | G132: 3009.07 | H132: 3174.87 | I132: 3205.33 | J132: 3257.77 | K132: 3152.9 | L132: 3070 | M132: 6.14428
A133: 124 | B133: KOTAKBANK | C133: 1740.65 | D133: 1746.45 | E133: 1731.10 | F133: 1721.55 | G133: 1706.20 | H133: 1756.00 | I133: 1771.35 | J133: 1780.90 | K133: 1761.8 | L133: 1736.9 | M133: 28.451
A134: 125 | B134: L&TFH | C134: 88.65 | D134: 88.93 | E134: 87.97 | F134: 87.28 | G134: 86.32 | H134: 89.62 | I134: 90.58 | J134: 91.27 | K134: 89.9 | L134: 88.25 | M134: 80.14401
A135: 126 | B135: LTTS | C135: 2704.15 | D135: 2676.60 | E135: 2638.20 | F135: 2572.25 | G135: 2533.85 | H135: 2742.55 | I135: 2780.95 | J135: 2846.90 | K135: 2715 | L135: 2610.65 | M135: 3.64185
A136: 127 | B136: LICHSGFIN | C136: 449.05 | D136: 450.58 | E136: 446.52 | F136: 443.98 | G136: 439.92 | H136: 453.12 | I136: 457.18 | J136: 459.72 | K136: 454.65 | L136: 448.05 | M136: 17.99322
A137: 128 | B137: LTI | C137: 3799.85 | D137: 3768.95 | E137: 3719.90 | F137: 3639.95 | G137: 3590.90 | H137: 3848.90 | I137: 3897.95 | J137: 3977.90 | K137: 3818 | L137: 3689 | M137: 3.64653
A138: 129 | B138: LT | C138: 1472.9 | D138: 1467.43 | E138: 1458.27 | F138: 1443.63 | G138: 1434.47 | H138: 1482.07 | I138: 1491.23 | J138: 1505.87 | K138: 1476.6 | L138: 1452.8 | M138: 32.30579
A139: 130 | B139: LUPIN | C139: 1195.95 | D139: 1202.87 | E139: 1186.38 | F139: 1176.82 | G139: 1160.33 | H139: 1212.43 | I139: 1228.92 | J139: 1238.48 | K139: 1219.35 | L139: 1193.3 | M139: 11.87994
A140: 131 | B140: MRF | C140: 81569.5 | D140: 81923.17 | E140: 81046.33 | F140: 80523.17 | G140: 79646.33 | H140: 82446.33 | I140: 83323.17 | J140: 83846.33 | K140: 82800 | L140: 81400 | M140: 0.10203
A141: 132 | B141: MGL | C141: 1190.4 | D141: 1177.37 | E141: 1155.03 | F141: 1119.67 | G141: 1097.33 | H141: 1212.73 | I141: 1235.07 | J141: 1270.43 | K141: 1199.7 | L141: 1142 | M141: 17.98442
A142: 133 | B142: M&MFIN | C142: 155.35 | D142: 156.88 | E142: 153.57 | F142: 151.78 | G142: 148.47 | H142: 158.67 | I142: 161.98 | J142: 163.77 | K142: 160.2 | L142: 155.1 | M142: 121.0758
A143: 134 | B143: M&M | C143: 821.2 | D143: 820.07 | E143: 814.13 | F143: 807.07 | G143: 801.13 | H143: 827.13 | I143: 833.07 | J143: 840.13 | K143: 826 | L143: 813 | M143: 30.84558
A144: 135 | B144: MANAPPURAM | C144: 160.35 | D144: 161.60 | E144: 158.25 | F144: 156.15 | G144: 152.80 | H144: 163.70 | I144: 167.05 | J144: 169.15 | K144: 164.95 | L144: 159.5 | M144: 223.33793
A145: 136 | B145: MARICO | C145: 459.15 | D145: 461.55 | E145: 455.60 | F145: 452.05 | G145: 446.10 | H145: 465.10 | I145: 471.05 | J145: 474.60 | K145: 467.5 | L145: 458 | M145: 10.86797
A146: 137 | B146: MARUTI | C146: 7034.3 | D146: 6999.10 | E146: 6947.20 | F146: 6860.10 | G146: 6808.20 | H146: 7086.20 | I146: 7138.10 | J146: 7225.20 | K146: 7051 | L146: 6912 | M146: 6.91574
A147: 138 | B147: MFSL | C147: 934.3 | D147: 941.55 | E147: 918.30 | F147: 902.30 | G147: 879.05 | H147: 957.55 | I147: 980.80 | J147: 996.80 | K147: 964.8 | L147: 925.55 | M147: 23.46723
A148: 139 | B148: MINDTREE | C148: 2207.35 | D148: 2195.23 | E148: 2175.67 | F148: 2143.98 | G148: 2124.42 | H148: 2226.92 | I148: 2246.48 | J148: 2278.17 | K148: 2214.8 | L148: 2163.55 | M148: 7.68155
A149: 140 | B149: MOTHERSUMI | C149: 233.95 | D149: 237.62 | E149: 229.33 | F149: 224.72 | G149: 216.43 | H149: 242.23 | I149: 250.52 | J149: 255.13 | K149: 245.9 | L149: 233 | M149: 199.50995
A150: 141 | B150: MPHASIS | C150: 1914.05 | D150: 1908.60 | E150: 1887.70 | F150: 1861.35 | G150: 1840.45 | H150: 1934.95 | I150: 1955.85 | J150: 1982.20 | K150: 1929.5 | L150: 1882.25 | M150: 7.8605
A151: 142 | B151: MUTHOOTFIN | C151: 1270.3 | D151: 1275.77 | E151: 1259.53 | F151: 1248.77 | G151: 1232.53 | H151: 1286.53 | I151: 1302.77 | J151: 1313.53 | K151: 1292 | L151: 1265 | M151: 14.1437
A152: 143 | B152: NATCOPHARM | C152: 1086.3 | D152: 1071.95 | E152: 1050.95 | F152: 1015.60 | G152: 994.60 | H152: 1107.30 | I152: 1128.30 | J152: 1163.65 | K152: 1092.95 | L152: 1036.6 | M152: 18.57703
A153: 144 | B153: NMDC | C153: 177.1 | D153: 178.27 | E153: 175.23 | F153: 173.37 | G153: 170.33 | H153: 180.13 | I153: 183.17 | J153: 185.03 | K153: 181.3 | L153: 176.4 | M153: 106.49729
A154: 145 | B154: NTPC | C154: 111.1 | D154: 112.00 | E154: 110.00 | F154: 108.90 | G154: 106.90 | H154: 113.10 | I154: 115.10 | J154: 116.20 | K154: 114 | L154: 110.9 | M154: 174.66748
A155: 146 | B155: NATIONALUM | C155: 71.8 | D155: 71.78 | E155: 70.22 | F155: 68.63 | G155: 67.07 | H155: 73.37 | I155: 74.93 | J155: 76.52 | K155: 73.35 | L155: 70.2 | M155: 374.46685
A156: 147 | B156: NAVINFLUOR | C156: 3212.55 | D156: 3247.52 | E156: 3170.03 | F156: 3127.52 | G156: 3050.03 | H156: 3290.03 | I156: 3367.52 | J156: 3410.03 | K156: 3325 | L156: 3205 | M156: 2.17625
A157: 148 | B157: NESTLEIND | C157: 17541.3 | D157: 17508.88 | E157: 17400.42 | F157: 17259.53 | G157: 17151.07 | H157: 17649.77 | I157: 17758.23 | J157: 17899.12 | K157: 17617.35 | L157: 17368 | M157: 0.45803
A158: 149 | B158: NAM-INDIA | C158: 349.5 | D158: 349.55 | E158: 347.65 | F158: 345.80 | G158: 343.90 | H158: 351.40 | I158: 353.30 | J158: 355.15 | K158: 351.45 | L158: 347.7 | M158: 2.69576
A159: 150 | B159: OBEROIRLTY | C159: 582.35 | D159: 579.38 | E159: 571.77 | F159: 561.18 | G159: 553.57 | H159: 589.97 | I159: 597.58 | J159: 608.17 | K159: 587 | L159: 568.8 | M159: 5.12878
A160: 151 | B160: ONGC | C160: 113.35 | D160: 113.92 | E160: 112.43 | F160: 111.52 | G160: 110.03 | H160: 114.83 | I160: 116.32 | J160: 117.23 | K160: 115.4 | L160: 113 | M160: 120.45621
A161: 152 | B161: OIL | C161: 134.1 | D161: 134.23 | E161: 133.02 | F161: 131.93 | G161: 130.72 | H161: 135.32 | I161: 136.53 | J161: 137.62 | K161: 135.45 | L161: 133.15 | M161: 6.73596
A162: 153 | B162: OFSS | C162: 3510.3 | D162: 3543.77 | E162: 3467.53 | F162: 3424.77 | G162: 3348.53 | H162: 3586.53 | I162: 3662.77 | J162: 3705.53 | K162: 3620 | L162: 3501 | M162: 0.67978
A163: 154 | B163: PIIND | C163: 2559.45 | D163: 2566.28 | E163: 2545.42 | F163: 2531.38 | G163: 2510.52 | H163: 2580.32 | I163: 2601.18 | J163: 2615.22 | K163: 2587.15 | L163: 2552.25 | M163: 1.32947
A164: 155 | B164: PAGEIND | C164: 31836.1 | D164: 31682.05 | E164: 31404.10 | F164: 30972.10 | G164: 30694.15 | H164: 32114.05 | I164: 32392.00 | J164: 32824.00 | K164: 31960 | L164: 31250.05 | M164: 0.54258
A165: 156 | B165: PETRONET | C165: 234.5 | D165: 235.37 | E165: 233.23 | F165: 231.97 | G165: 229.83 | H165: 236.63 | I165: 238.77 | J165: 240.03 | K165: 237.5 | L165: 234.1 | M165: 28.39168
A166: 157 | B166: PFIZER | C166: 5267.8 | D166: 5278.63 | E166: 5237.27 | F166: 5206.73 | G166: 5165.37 | H166: 5309.17 | I166: 5350.53 | J166: 5381.07 | K166: 5320 | L166: 5248.1 | M166: 0.71941
A167: 158 | B167: PIDILITIND | C167: 2101.85 | D167: 2086.90 | E167: 2065.55 | F167: 2029.25 | G167: 2007.90 | H167: 2123.20 | I167: 2144.55 | J167: 2180.85 | K167: 2108.25 | L167: 2050.6 | M167: 10.87642
A168: 159 | B168: PEL | C168: 1701.6 | D168: 1710.85 | E168: 1687.85 | F168: 1674.10 | G168: 1651.10 | H168: 1724.60 | I168: 1747.60 | J168: 1761.35 | K168: 1733.85 | L168: 1697.1 | M168: 5.69922
A169: 160 | B169: POLYCAB | C169: 1686.1 | D169: 1684.70 | E169: 1674.40 | F169: 1662.70 | G169: 1652.40 | H169: 1696.40 | I169: 1706.70 | J169: 1718.40 | K169: 1695 | L169: 1673 | M169: 5.09168
A170: 161 | B170: PFC | C170: 118 | D170: 118.47 | E170: 117.43 | F170: 116.87 | G170: 115.83 | H170: 119.03 | I170: 120.07 | J170: 120.63 | K170: 119.5 | L170: 117.9 | M170: 26.07444
A171: 162 | B171: POWERGRID | C171: 225.6 | D171: 228.12 | E171: 222.43 | F171: 219.27 | G171: 213.58 | H171: 231.28 | I171: 236.97 | J171: 240.13 | K171: 233.8 | L171: 224.95 | M171: 103.06192
A172: 163 | B172: PRESTIGE | C172: 274.45 | D172: 273.52 | E172: 268.63 | F172: 262.82 | G172: 257.93 | H172: 279.33 | I172: 284.22 | J172: 290.03 | K172: 278.4 | L172: 267.7 | M172: 12.26381
A173: 164 | B173: PGHH | C173: 13267.5 | D173: 13272.50 | E173: 13110.05 | F173: 12952.60 | G173: 12790.15 | H173: 13429.95 | I173: 13592.40 | J173: 13749.85 | K173: 13434.95 | L173: 13115.05 | M173: 0.06144
A174: 165 | B174: PNB | C174: 39.25 | D174: 39.52 | E174: 38.78 | F174: 38.32 | G174: 37.58 | H174: 39.98 | I174: 40.72 | J174: 41.18 | K174: 40.25 | L174: 39.05 | M174: 1553.07751
A175: 166 | B175: RBLBANK | C175: 207.85 | D175: 206.95 | E175: 204.40 | F175: 200.95 | G175: 198.40 | H175: 210.40 | I175: 212.95 | J175: 216.40 | K175: 209.5 | L175: 203.5 | M175: 99.0169
A176: 167 | B176: RECLTD | C176: 141.4 | D176: 142.13 | E176: 140.47 | F176: 139.53 | G176: 137.87 | H176: 143.07 | I176: 144.73 | J176: 145.67 | K176: 143.8 | L176: 141.2 | M176: 21.77829
A177: 168 | B177: RAJESHEXPO | C177: 518.5 | D177: 521.23 | E177: 513.52 | F177: 508.53 | G177: 500.82 | H177: 526.22 | I177: 533.93 | J177: 538.92 | K177: 528.95 | L177: 516.25 | M177: 3.38203
A178: 169 | B178: RELIANCE | C178: 1970.05 | D178: 1971.62 | E178: 1963.73 | F178: 1957.42 | G178: 1949.53 | H178: 1977.93 | I178: 1985.82 | J178: 1992.13 | K178: 1979.5 | L178: 1965.3 | M178: 34.52113
A179: 170 | B179: SBICARD | C179: 1025.1 | D179: 1030.55 | E179: 1011.10 | F179: 997.10 | G179: 977.65 | H179: 1044.55 | I179: 1064.00 | J179: 1078.00 | K179: 1050 | L179: 1016.55 | M179: 19.35012
A180: 171 | B180: SBILIFE | C180: 971.75 | D180: 973.58 | E180: 967.17 | F180: 962.58 | G180: 956.17 | H180: 978.17 | I180: 984.58 | J180: 989.17 | K180: 980 | L180: 969 | M180: 17.19675
A181: 172 | B181: SRF | C181: 6441.05 | D181: 6457.50 | E181: 6398.55 | F181: 6356.05 | G181: 6297.10 | H181: 6500.00 | I181: 6558.95 | J181: 6601.45 | K181: 6516.45 | L181: 6415 | M181: 1.21737
A182: 173 | B182: SANOFI | C182: 7731.1 | D182: 7730.37 | E182: 7710.73 | F182: 7690.37 | G182: 7670.73 | H182: 7750.73 | I182: 7770.37 | J182: 7790.73 | K182: 7750 | L182: 7710 | M182: 0.06242
A183: 174 | B183: SHREECEM | C183: 27077.4 | D183: 27046.65 | E183: 26894.30 | F183: 26711.20 | G183: 26558.85 | H183: 27229.75 | I183: 27382.10 | J183: 27565.20 | K183: 27199 | L183: 26863.55 | M183: 0.34953
A184: 175 | B184: SRTRANSFIN | C184: 1432.75 | D184: 1439.00 | E184: 1422.25 | F184: 1411.75 | G184: 1395.00 | H184: 1449.50 | I184: 1466.25 | J184: 1476.75 | K184: 1455.75 | L184: 1428.5 | M184: 12.26383
A185: 176 | B185: SIEMENS | C185: 1995.2 | D185: 2005.73 | E185: 1979.47 | F185: 1963.73 | G185: 1937.47 | H185: 2021.47 | I185: 2047.73 | J185: 2063.47 | K185: 2032 | L185: 1990 | M185: 1.97978
A186: 177 | B186: SBIN | C186: 413.55 | D186: 414.37 | E186: 409.98 | F186: 406.42 | G186: 402.03 | H186: 417.93 | I186: 422.32 | J186: 425.88 | K186: 418.75 | L186: 410.8 | M186: 523.57719
A187: 178 | B187: SAIL | C187: 118.75 | D187: 119.95 | E187: 116.90 | F187: 115.05 | G187: 112.00 | H187: 121.80 | I187: 124.85 | J187: 126.70 | K187: 123 | L187: 118.1 | M187: 671.41657
A188: 179 | B188: SUNPHARMA | C188: 703.8 | D188: 702.05 | E188: 697.95 | F188: 692.10 | G188: 688.00 | H188: 707.90 | I188: 712.00 | J188: 717.85 | K188: 706.15 | L188: 696.2 | M188: 62.3546
A189: 180 | B189: SUNTV | C189: 539.2 | D189: 531.83 | E189: 522.67 | F189: 506.13 | G189: 496.97 | H189: 548.37 | I189: 557.53 | J189: 574.07 | K189: 541 | L189: 515.3 | M189: 54.37948
A190: 181 | B190: SYNGENE | C190: 580.7 | D190: 581.17 | E190: 574.93 | F190: 569.17 | G190: 562.93 | H190: 586.93 | I190: 593.17 | J190: 598.93 | K190: 587.4 | L190: 575.4 | M190: 2.20342
A191: 182 | B191: TVSMOTOR | C191: 651.45 | D191: 647.47 | E191: 634.88 | F191: 618.32 | G191: 605.73 | H191: 664.03 | I191: 676.62 | J191: 693.18 | K191: 660.05 | L191: 630.9 | M191: 42.72201
A192: 183 | B192: TATACHEM | C192: 699.8 | D192: 700.65 | E192: 696.15 | F192: 692.50 | G192: 688.00 | H192: 704.30 | I192: 708.80 | J192: 712.45 | K192: 705.15 | L192: 697 | M192: 20.75398
A193: 184 | B193: TCS | C193: 3158.5 | D193: 3142.43 | E193: 3119.87 | F193: 3081.23 | G193: 3058.67 | H193: 3181.07 | I193: 3203.63 | J193: 3242.27 | K193: 3165 | L193: 3103.8 | M193: 19.23753
A194: 185 | B194: TATACONSUM | C194: 641.9 | D194: 645.85 | E194: 636.70 | F194: 631.50 | G194: 622.35 | H194: 651.05 | I194: 660.20 | J194: 665.40 | K194: 655 | L194: 640.65 | M194: 23.14694
A195: 186 | B195: TATAMOTORS | C195: 315.5 | D195: 316.77 | E195: 313.53 | F195: 311.57 | G195: 308.33 | H195: 318.73 | I195: 321.97 | J195: 323.93 | K195: 320 | L195: 314.8 | M195: 286.39717
A196: 187 | B196: TATAPOWER | C196: 106.1 | D196: 106.73 | E196: 105.17 | F196: 104.23 | G196: 102.67 | H196: 107.67 | I196: 109.23 | J196: 110.17 | K196: 108.3 | L196: 105.8 | M196: 267.72472
A197: 188 | B197: TATASTEEL | C197: 1082.15 | D197: 1082.88 | E197: 1071.77 | F197: 1061.38 | G197: 1050.27 | H197: 1093.27 | I197: 1104.38 | J197: 1114.77 | K197: 1094 | L197: 1072.5 | M197: 154.32703
A198: 189 | B198: TECHM | C198: 1007.8 | D198: 1004.27 | E198: 996.53 | F198: 985.27 | G198: 977.53 | H198: 1015.53 | I198: 1023.27 | J198: 1034.53 | K198: 1012 | L198: 993 | M198: 20.13788
A199: 190 | B199: RAMCOCEM | C199: 946.3 | D199: 946.23 | E199: 935.07 | F199: 923.83 | G199: 912.67 | H199: 957.47 | I199: 968.63 | J199: 979.87 | K199: 957.4 | L199: 935 | M199: 6.91013
A200: 191 | B200: TITAN | C200: 1582.95 | D200: 1591.20 | E200: 1568.40 | F200: 1553.85 | G200: 1531.05 | H200: 1605.75 | I200: 1628.55 | J200: 1643.10 | K200: 1614 | L200: 1576.65 | M200: 38.39248
A201: 192 | B201: TORNTPHARM | C201: 2710.2 | D201: 2720.68 | E201: 2691.17 | F201: 2672.13 | G201: 2642.62 | H201: 2739.72 | I201: 2769.23 | J201: 2788.27 | K201: 2750.2 | L201: 2701.65 | M201: 1.53851
A202: 193 | B202: TORNTPOWER | C202: 424.85 | D202: 429.20 | E202: 418.90 | F202: 412.95 | G202: 402.65 | H202: 435.15 | I202: 445.45 | J202: 451.40 | K202: 439.5 | L202: 423.25 | M202: 12.88204
A203: 194 | B203: TRENT | C203: 826 | D203: 828.95 | E203: 821.05 | F203: 816.10 | G203: 808.20 | H203: 833.90 | I203: 841.80 | J203: 846.75 | K203: 836.85 | L203: 824 | M203: 4.99153
A204: 195 | B204: UPL | C204: 812.6 | D204: 806.62 | E204: 797.48 | F204: 782.37 | G204: 773.23 | H204: 821.73 | I204: 830.87 | J204: 845.98 | K204: 815.75 | L204: 791.5 | M204: 78.22821
A205: 196 | B205: ULTRACEMCO | C205: 6580.9 | D205: 6574.68 | E205: 6531.37 | F205: 6481.83 | G205: 6438.52 | H205: 6624.22 | I205: 6667.53 | J205: 6717.07 | K205: 6618 | L205: 6525.15 | M205: 2.48015
... 29 more rows

Sheet MidCap Intra
L5: Back To Main Page
A6: FOR INTRA DAY TRADING | K6: =Main!B10 -> 2021-05-27
A9: Sr.no | B9: Scrip | C9: CLOSE RATE | D9: Pivot Point | E9: Supports | H9: Resistances
C10: Point | E10: S1 | F10: S2 | G10: S3 | H10: R1 | I10: R2 | J10: R3 | K10: HIGH | L10: LOW | M10: Total Trade Quanity in Lakhs
A11: 1 | B11: 3MINDIA | C11: 26338.95 | D11: 26381.03 | E11: 26013.07 | F11: 25687.18 | G11: 25319.22 | H11: 26706.92 | I11: 27074.88 | J11: 27400.77 | K11: 26749 | L11: 26055.15 | M11: 0.02396
A12: 2 | B12: ABB | C12: 1501.35 | D12: 1501.23 | E12: 1483.07 | F12: 1464.78 | G12: 1446.62 | H12: 1519.52 | I12: 1537.68 | J12: 1555.97 | K12: 1519.4 | L12: 1482.95 | M12: 1.00456
A13: 3 | B13: POWERINDIA | C13: 1889.3 | D13: 1871.88 | E13: 1803.77 | F13: 1718.23 | G13: 1650.12 | H13: 1957.42 | I13: 2025.53 | J13: 2111.07 | K13: 1940 | L13: 1786.35 | M13: 0.91002
A14: 4 | B14: ACC | C14: 1977.45 | D14: 1972.18 | E14: 1962.47 | F14: 1947.48 | G14: 1937.77 | H14: 1987.17 | I14: 1996.88 | J14: 2011.87 | K14: 1981.9 | L14: 1957.2 | M14: 4.44885
A15: 5 | B15: AIAENG | C15: 1899.7 | D15: 1902.23 | E15: 1879.47 | F15: 1859.23 | G15: 1836.47 | H15: 1922.47 | I15: 1945.23 | J15: 1965.47 | K15: 1925 | L15: 1882 | M15: 0.92559
A16: 6 | B16: APLAPOLLO | C16: 1249.25 | D16: 1259.90 | E16: 1234.85 | F16: 1220.45 | G16: 1195.40 | H16: 1274.30 | I16: 1299.35 | J16: 1313.75 | K16: 1284.95 | L16: 1245.5 | M16: 2.41171
A17: 7 | B17: AUBANK | C17: 963.05 | D17: 962.68 | E17: 952.37 | F17: 941.68 | G17: 931.37 | H17: 973.37 | I17: 983.68 | J17: 994.37 | K17: 973 | L17: 952 | M17: 10.36499
A18: 8 | B18: AARTIDRUGS | C18: 727.95 | D18: 730.32 | E18: 718.63 | F18: 709.32 | G18: 697.63 | H18: 739.63 | I18: 751.32 | J18: 760.63 | K18: 742 | L18: 721 | M18: 4.83937
A19: 9 | B19: AARTIIND | C19: 1664.25 | D19: 1666.23 | E19: 1653.02 | F19: 1641.78 | G19: 1628.57 | H19: 1677.47 | I19: 1690.68 | J19: 1701.92 | K19: 1679.45 | L19: 1655 | M19: 4.47409
A20: 10 | B20: AAVAS | C20: 2319.2 | D20: 2322.05 | E20: 2310.15 | F20: 2301.10 | G20: 2289.20 | H20: 2331.10 | I20: 2343.00 | J20: 2352.05 | K20: 2333.95 | L20: 2313 | M20: 0.28101
A21: 11 | B21: ABBOTINDIA | C21: 16049.45 | D21: 16073.10 | E21: 15951.35 | F21: 15853.25 | G21: 15731.50 | H21: 16171.20 | I21: 16292.95 | J21: 16391.05 | K21: 16194.85 | L21: 15975 | M21: 0.10557
A22: 12 | B22: ADANIENT | C22: 1322.8 | D22: 1301.30 | E22: 1275.75 | F22: 1228.70 | G22: 1203.15 | H22: 1348.35 | I22: 1373.90 | J22: 1420.95 | K22: 1326.85 | L22: 1254.25 | M22: 56.3073
A23: 13 | B23: ADANIGREEN | C23: 1264.6 | D23: 1282.35 | E23: 1230.80 | F23: 1197.00 | G23: 1145.45 | H23: 1316.15 | I23: 1367.70 | J23: 1401.50 | K23: 1333.9 | L23: 1248.55 | M23: 10.22936
A24: 14 | B24: ADANIPORTS | C24: 758.3 | D24: 761.73 | E24: 753.57 | F24: 748.83 | G24: 740.67 | H24: 766.47 | I24: 774.63 | J24: 779.37 | K24: 769.9 | L24: 757 | M24: 73.75242
A25: 15 | B25: ATGL | C25: 1327.6 | D25: 1309.20 | E25: 1283.40 | F25: 1239.20 | G25: 1213.40 | H25: 1353.40 | I25: 1379.20 | J25: 1423.40 | K25: 1335 | L25: 1265 | M25: 10.92501
A26: 16 | B26: ADANITRANS | C26: 1392.55 | D26: 1397.15 | E26: 1373.10 | F26: 1353.65 | G26: 1329.60 | H26: 1416.60 | I26: 1440.65 | J26: 1460.10 | K26: 1421.2 | L26: 1377.7 | M26: 20.40422
A27: 17 | B27: ABCAPITAL | C27: 125 | D27: 125.47 | E27: 123.58 | F27: 122.17 | G27: 120.28 | H27: 126.88 | I27: 128.77 | J27: 130.18 | K27: 127.35 | L27: 124.05 | M27: 29.49079
A28: 18 | B28: ABFRL | C28: 184.9 | D28: 186.35 | E28: 183.05 | F28: 181.20 | G28: 177.90 | H28: 188.20 | I28: 191.50 | J28: 193.35 | K28: 189.65 | L28: 184.5 | M28: 20.01697
A29: 19 | B29: ADVENZYMES | C29: 478.1 | D29: 482.73 | E29: 470.47 | F29: 462.83 | G29: 450.57 | H29: 490.37 | I29: 502.63 | J29: 510.27 | K29: 495 | L29: 475.1 | M29: 3.23826
A30: 20 | B30: AEGISCHEM | C30: 347.1 | D30: 350.92 | E30: 341.43 | F30: 335.77 | G30: 326.28 | H30: 356.58 | I30: 366.07 | J30: 371.73 | K30: 360.4 | L30: 345.25 | M30: 2.87761
A31: 21 | B31: AFFLE | C31: 5249.05 | D31: 5221.37 | E31: 5177.73 | F31: 5106.42 | G31: 5062.78 | H31: 5292.68 | I31: 5336.32 | J31: 5407.63 | K31: 5265 | L31: 5150.05 | M31: 0.4785
A32: 22 | B32: AJANTPHARM | C32: 1930.05 | D32: 1949.02 | E32: 1906.03 | F32: 1882.02 | G32: 1839.03 | H32: 1973.03 | I32: 2016.02 | J32: 2040.03 | K32: 1992 | L32: 1925 | M32: 1.03612
A33: 23 | B33: AKZOINDIA | C33: 2314.35 | D33: 2304.92 | E33: 2272.83 | F33: 2231.32 | G33: 2199.23 | H33: 2346.43 | I33: 2378.52 | J33: 2420.03 | K33: 2337 | L33: 2263.4 | M33: 0.42113
A34: 24 | B34: ALEMBICLTD | C34: 134.9 | D34: 133.18 | E34: 130.37 | F34: 125.83 | G34: 123.02 | H34: 137.72 | I34: 140.53 | J34: 145.07 | K34: 136 | L34: 128.65 | M34: 20.88108
A35: 25 | B35: APLLTD | C35: 951.1 | D35: 954.92 | E35: 943.93 | F35: 936.77 | G35: 925.78 | H35: 962.08 | I35: 973.07 | J35: 980.23 | K35: 965.9 | L35: 947.75 | M35: 3.80408
A36: 26 | B36: ALKEM | C36: 2935.6 | D36: 2936.58 | E36: 2904.02 | F36: 2872.43 | G36: 2839.87 | H36: 2968.17 | I36: 3000.73 | J36: 3032.32 | K36: 2969.15 | L36: 2905 | M36: 3.23341
A37: 27 | B37: ALKYLAMINE | C37: 3580.1 | D37: 3584.70 | E37: 3540.40 | F37: 3500.70 | G37: 3456.40 | H37: 3624.40 | I37: 3668.70 | J37: 3708.40 | K37: 3629 | L37: 3545 | M37: 0.58456
A38: 28 | B38: ALOKINDS | C38: 20.65 | D38: 20.77 | E38: 20.38 | F38: 20.12 | G38: 19.73 | H38: 21.03 | I38: 21.42 | J38: 21.68 | K38: 21.15 | L38: 20.5 | M38: 78.40227
A39: 29 | B39: AMARAJABAT | C39: 742.1 | D39: 742.28 | E39: 737.87 | F39: 733.63 | G39: 729.22 | H39: 746.52 | I39: 750.93 | J39: 755.17 | K39: 746.7 | L39: 738.05 | M39: 28.48784
A40: 30 | B40: AMBER | C40: 2717.7 | D40: 2736.75 | E40: 2664.55 | F40: 2611.40 | G40: 2539.20 | H40: 2789.90 | I40: 2862.10 | J40: 2915.25 | K40: 2808.95 | L40: 2683.6 | M40: 2.32765
A41: 31 | B41: AMBUJACEM | C41: 323.1 | D41: 322.50 | E41: 320.00 | F41: 316.90 | G41: 314.40 | H41: 325.60 | I41: 328.10 | J41: 331.20 | K41: 325 | L41: 319.4 | M41: 31.03367
A42: 32 | B42: APOLLOHOSP | C42: 3183.6 | D42: 3193.90 | E42: 3167.80 | F42: 3152.00 | G42: 3125.90 | H42: 3209.70 | I42: 3235.80 | J42: 3251.60 | K42: 3220 | L42: 3178.1 | M42: 2.60821
A43: 33 | B43: APOLLOTYRE | C43: 222.1 | D43: 221.62 | E43: 218.98 | F43: 215.87 | G43: 213.23 | H43: 224.73 | I43: 227.37 | J43: 230.48 | K43: 224.25 | L43: 218.5 | M43: 64.19209
A44: 34 | B44: ASHOKLEY | C44: 125.5 | D44: 126.15 | E44: 124.55 | F44: 123.60 | G44: 122.00 | H44: 127.10 | I44: 128.70 | J44: 129.65 | K44: 127.75 | L44: 125.2 | M44: 91.05551
A45: 35 | B45: ASHOKA | C45: 91.75 | D45: 92.88 | E45: 90.02 | F45: 88.28 | G45: 85.42 | H45: 94.62 | I45: 97.48 | J45: 99.22 | K45: 95.75 | L45: 91.15 | M45: 26.88324
A46: 36 | B46: ASIANPAINT | C46: 2941.6 | D46: 2933.30 | E46: 2918.70 | F46: 2895.80 | G46: 2881.20 | H46: 2956.20 | I46: 2970.80 | J46: 2993.70 | K46: 2947.9 | L46: 2910.4 | M46: 12.50531
A47: 37 | B47: ASTERDM | C47: 146.85 | D47: 147.85 | E47: 145.50 | F47: 144.15 | G47: 141.80 | H47: 149.20 | I47: 151.55 | J47: 152.90 | K47: 150.2 | L47: 146.5 | M47: 3.39984
A48: 38 | B48: ASTRAZEN | C48: 3893.35 | D48: 3909.45 | E48: 3858.90 | F48: 3824.45 | G48: 3773.90 | H48: 3943.90 | I48: 3994.45 | J48: 4028.90 | K48: 3960 | L48: 3875 | M48: 0.6602
A49: 39 | B49: ASTRAL | C49: 1850.35 | D49: 1843.97 | E49: 1822.93 | F49: 1795.52 | G49: 1774.48 | H49: 1871.38 | I49: 1892.42 | J49: 1919.83 | K49: 1865 | L49: 1816.55 | M49: 2.14939
A50: 40 | B50: ATUL | C50: 8623.8 | D50: 8612.80 | E50: 8559.85 | F50: 8495.90 | G50: 8442.95 | H50: 8676.75 | I50: 8729.70 | J50: 8793.65 | K50: 8665.75 | L50: 8548.85 | M50: 0.12302
A51: 41 | B51: AUROPHARMA | C51: 1023.35 | D51: 1027.98 | E51: 1012.87 | F51: 1002.38 | G51: 987.27 | H51: 1038.47 | I51: 1053.58 | J51: 1064.07 | K51: 1043.1 | L51: 1017.5 | M51: 18.10026
A52: 42 | B52: AVANTIFEED | C52: 571.8 | D52: 568.10 | E52: 560.25 | F52: 548.70 | G52: 540.85 | H52: 579.65 | I52: 587.50 | J52: 599.05 | K52: 575.95 | L52: 556.55 | M52: 9.22746
A53: 43 | B53: DMART | C53: 3096.2 | D53: 3100.55 | E53: 3066.10 | F53: 3036.00 | G53: 3001.55 | H53: 3130.65 | I53: 3165.10 | J53: 3195.20 | K53: 3135 | L53: 3070.45 | M53: 2.84202
A54: 44 | B54: AXISBANK | C54: 735.1 | D54: 735.33 | E54: 729.27 | F54: 723.43 | G54: 717.37 | H54: 741.17 | I54: 747.23 | J54: 753.07 | K54: 741.4 | L54: 729.5 | M54: 90.81086
A55: 45 | B55: BASF | C55: 2340.05 | D55: 2361.97 | E55: 2298.08 | F55: 2256.12 | G55: 2192.23 | H55: 2403.93 | I55: 2467.82 | J55: 2509.78 | K55: 2425.85 | L55: 2320 | M55: 0.54292
A56: 46 | B56: BEML | C56: 1311.3 | D56: 1316.25 | E56: 1298.05 | F56: 1284.80 | G56: 1266.60 | H56: 1329.50 | I56: 1347.70 | J56: 1360.95 | K56: 1334.45 | L56: 1303 | M56: 2.35886
A57: 47 | B57: BSE | C57: 911.35 | D57: 891.22 | E57: 840.13 | F57: 768.92 | G57: 717.83 | H57: 962.43 | I57: 1013.52 | J57: 1084.73 | K57: 942.3 | L57: 820 | M57: 85.68978
A58: 48 | B58: BAJAJ-AUTO | C58: 4166.3 | D58: 4162.77 | E58: 4145.53 | F58: 4124.77 | G58: 4107.53 | H58: 4183.53 | I58: 4200.77 | J58: 4221.53 | K58: 4180 | L58: 4142 | M58: 2.61524
A59: 49 | B59: BAJAJCON | C59: 281.45 | D59: 284.05 | E59: 277.60 | F59: 273.75 | G59: 267.30 | H59: 287.90 | I59: 294.35 | J59: 298.20 | K59: 290.5 | L59: 280.2 | M59: 8.85406
A60: 50 | B60: BAJAJELEC | C60: 1094.25 | D60: 1098.08 | E60: 1076.17 | F60: 1058.08 | G60: 1036.17 | H60: 1116.17 | I60: 1138.08 | J60: 1156.17 | K60: 1120 | L60: 1080 | M60: 4.89641
A61: 51 | B61: BAJFINANCE | C61: 5771.15 | D61: 5717.35 | E61: 5639.90 | F61: 5508.65 | G61: 5431.20 | H61: 5848.60 | I61: 5926.05 | J61: 6057.30 | K61: 5794.8 | L61: 5586.1 | M61: 29.16746
A62: 52 | B62: BAJAJFINSV | C62: 11906.4 | D62: 11757.18 | E62: 11534.37 | F62: 11162.33 | G62: 10939.52 | H62: 12129.22 | I62: 12352.03 | J62: 12724.07 | K62: 11980 | L62: 11385.15 | M62: 10.15265
A63: 53 | B63: BAJAJHLDNG | C63: 3568.65 | D63: 3571.87 | E63: 3545.73 | F63: 3522.82 | G63: 3496.68 | H63: 3594.78 | I63: 3620.92 | J63: 3643.83 | K63: 3598 | L63: 3548.95 | M63: 0.34837
A64: 54 | B64: BALKRISIND | C64: 2164.6 | D64: 2181.67 | E64: 2140.23 | F64: 2115.87 | G64: 2074.43 | H64: 2206.03 | I64: 2247.47 | J64: 2271.83 | K64: 2223.1 | L64: 2157.3 | M64: 4.1149
A65: 55 | B65: BALMLAWRIE | C65: 137.2 | D65: 137.88 | E65: 135.87 | F65: 134.53 | G65: 132.52 | H65: 139.22 | I65: 141.23 | J65: 142.57 | K65: 139.9 | L65: 136.55 | M65: 3.64597
A66: 56 | B66: BALRAMCHIN | C66: 296.35 | D66: 299.17 | E66: 291.83 | F66: 287.32 | G66: 279.98 | H66: 303.68 | I66: 311.02 | J66: 315.53 | K66: 306.5 | L66: 294.65 | M66: 14.40721
A67: 57 | B67: BANDHANBNK | C67: 292.1 | D67: 292.75 | E67: 289.50 | F67: 286.90 | G67: 283.65 | H67: 295.35 | I67: 298.60 | J67: 301.20 | K67: 296 | L67: 290.15 | M67: 41.35604
A68: 58 | B68: BANKBARODA | C68: 80.6 | D68: 80.97 | E68: 79.63 | F68: 78.67 | G68: 77.33 | H68: 81.93 | I68: 83.27 | J68: 84.23 | K68: 82.3 | L68: 80 | M68: 547.11508
A69: 59 | B69: BANKINDIA | C69: 76.9 | D69: 76.92 | E69: 76.08 | F69: 75.27 | G69: 74.43 | H69: 77.73 | I69: 78.57 | J69: 79.38 | K69: 77.75 | L69: 76.1 | M69: 40.89734
A70: 60 | B70: MAHABANK | C70: 24.7 | D70: 24.77 | E70: 24.53 | F70: 24.37 | G70: 24.13 | H70: 24.93 | I70: 25.17 | J70: 25.33 | K70: 25 | L70: 24.6 | M70: 36.09157
A71: 61 | B71: BATAINDIA | C71: 1535.4 | D71: 1533.17 | E71: 1520.23 | F71: 1505.07 | G71: 1492.13 | H71: 1548.33 | I71: 1561.27 | J71: 1576.43 | K71: 1546.1 | L71: 1518 | M71: 5.11638
A72: 62 | B72: BAYERCROP | C72: 5312.5 | D72: 5327.43 | E72: 5237.32 | F72: 5162.13 | G72: 5072.02 | H72: 5402.62 | I72: 5492.73 | J72: 5567.92 | K72: 5417.55 | L72: 5252.25 | M72: 1.07186
A73: 63 | B73: BERGEPAINT | C73: 832.35 | D73: 830.08 | E73: 817.42 | F73: 802.48 | G73: 789.82 | H73: 845.02 | I73: 857.68 | J73: 872.62 | K73: 842.75 | L73: 815.15 | M73: 39.75803
A74: 64 | B74: BDL | C74: 373.55 | D74: 369.85 | E74: 363.70 | F74: 353.85 | G74: 347.70 | H74: 379.70 | I74: 385.85 | J74: 395.70 | K74: 376 | L74: 360 | M74: 10.16383
A75: 65 | B75: BEL | C75: 149.75 | D75: 150.98 | E75: 147.77 | F75: 145.78 | G75: 142.57 | H75: 152.97 | I75: 156.18 | J75: 158.17 | K75: 154.2 | L75: 149 | M75: 150.23561
A76: 66 | B76: BHARATFORG | C76: 667.9 | D76: 667.93 | E76: 656.62 | F76: 645.33 | G76: 634.02 | H76: 679.22 | I76: 690.53 | J76: 701.82 | K76: 679.25 | L76: 656.65 | M76: 24.64662
A77: 67 | B77: BHEL | C77: 72.5 | D77: 73.37 | E77: 71.28 | F77: 70.07 | G77: 67.98 | H77: 74.58 | I77: 76.67 | J77: 77.88 | K77: 75.45 | L77: 72.15 | M77: 817.57007
A78: 68 | B78: BPCL | C78: 472.2 | D78: 473.80 | E78: 466.90 | F78: 461.60 | G78: 454.70 | H78: 479.10 | I78: 486.00 | J78: 491.30 | K78: 480.7 | L78: 468.5 | M78: 129.72307
A79: 69 | B79: BHARATRAS | C79: 12239.65 | D79: 12322.20 | E79: 12094.55 | F79: 11949.45 | G79: 11721.80 | H79: 12467.30 | I79: 12694.95 | J79: 12840.05 | K79: 12549.85 | L79: 12177.1 | M79: 0.02535
A80: 70 | B80: BHARTIARTL | C80: 525.75 | D80: 527.18 | E80: 523.57 | F80: 521.38 | G80: 517.77 | H80: 529.37 | I80: 532.98 | J80: 535.17 | K80: 530.8 | L80: 525 | M80: 67.81577
A81: 71 | B81: BIOCON | C81: 383.05 | D81: 383.35 | E81: 380.25 | F81: 377.45 | G81: 374.35 | H81: 386.15 | I81: 389.25 | J81: 392.05 | K81: 386.45 | L81: 380.55 | M81: 23.49815
A82: 72 | B82: BIRLACORPN | C82: 1202.7 | D82: 1214.55 | E82: 1183.30 | F82: 1163.90 | G82: 1132.65 | H82: 1233.95 | I82: 1265.20 | J82: 1284.60 | K82: 1245.8 | L82: 1195.15 | M82: 1.53522
A83: 73 | B83: BSOFT | C83: 321.2 | D83: 319.37 | E83: 311.93 | F83: 302.67 | G83: 295.23 | H83: 328.63 | I83: 336.07 | J83: 345.33 | K83: 326.8 | L83: 310.1 | M83: 41.82099
A84: 74 | B84: BLISSGVS | C84: 110 | D84: 110.35 | E84: 109.05 | F84: 108.10 | G84: 106.80 | H84: 111.30 | I84: 112.60 | J84: 113.55 | K84: 111.65 | L84: 109.4 | M84: 4.53552
A85: 75 | B85: BLUEDART | C85: 6101.1 | D85: 6102.77 | E85: 6070.53 | F85: 6039.97 | G85: 6007.73 | H85: 6133.33 | I85: 6165.57 | J85: 6196.13 | K85: 6135 | L85: 6072.2 | M85: 0.30469
A86: 76 | B86: BLUESTARCO | C86: 808.2 | D86: 809.73 | E86: 803.97 | F86: 799.73 | G86: 793.97 | H86: 813.97 | I86: 819.73 | J86: 823.97 | K86: 815.5 | L86: 805.5 | M86: 0.59718
A87: 77 | B87: BBTC | C87: 1323.4 | D87: 1294.55 | E87: 1254.10 | F87: 1184.80 | G87: 1144.35 | H87: 1363.85 | I87: 1404.30 | J87: 1473.60 | K87: 1335 | L87: 1225.25 | M87: 10.31157
A88: 78 | B88: BOMDYEING | C88: 84.2 | D88: 83.98 | E88: 81.57 | F88: 78.93 | G88: 76.52 | H88: 86.62 | I88: 89.03 | J88: 91.67 | K88: 86.4 | L88: 81.35 | M88: 125.91313
A89: 79 | B89: BOSCHLTD | C89: 14882.35 | D89: 14995.02 | E89: 14742.38 | F89: 14602.42 | G89: 14349.78 | H89: 15134.98 | I89: 15387.62 | J89: 15527.58 | K89: 15247.65 | L89: 14855.05 | M89: 0.41168
A90: 80 | B90: BRIGADE | C90: 266.6 | D90: 267.05 | E90: 264.80 | F90: 263.00 | G90: 260.75 | H90: 268.85 | I90: 271.10 | J90: 272.90 | K90: 269.3 | L90: 265.25 | M90: 0.90741
A91: 81 | B91: BRITANNIA | C91: 3416 | D91: 3427.63 | E91: 3401.42 | F91: 3386.83 | G91: 3360.62 | H91: 3442.22 | I91: 3468.43 | J91: 3483.02 | K91: 3453.85 | L91: 3413.05 | M91: 3.73186
A92: 82 | B92: CARERATING | C92: 569.15 | D92: 567.77 | E92: 560.63 | F92: 552.12 | G92: 544.98 | H92: 576.28 | I92: 583.42 | J92: 591.93 | K92: 574.9 | L92: 559.25 | M92: 2.61087
A93: 83 | B93: CCL | C93: 339.8 | D93: 343.60 | E93: 327.20 | F93: 314.60 | G93: 298.20 | H93: 356.20 | I93: 372.60 | J93: 385.20 | K93: 360 | L93: 331 | M93: 19.05542
A94: 84 | B94: CESC | C94: 676.65 | D94: 679.67 | E94: 671.98 | F94: 667.32 | G94: 659.63 | H94: 684.33 | I94: 692.02 | J94: 696.68 | K94: 687.35 | L94: 675 | M94: 1.8499
A95: 85 | B95: CRISIL | C95: 1906.8 | D95: 1906.28 | E95: 1894.57 | F95: 1882.33 | G95: 1870.62 | H95: 1918.52 | I95: 1930.23 | J95: 1942.47 | K95: 1918 | L95: 1894.05 | M95: 0.43565
A96: 86 | B96: CSBBANK | C96: 324.05 | D96: 323.22 | E96: 314.93 | F96: 305.82 | G96: 297.53 | H96: 332.33 | I96: 340.62 | J96: 349.73 | K96: 331.5 | L96: 314.1 | M96: 16.88244
A97: 87 | B97: CADILAHC | C97: 628.1 | D97: 626.95 | E97: 620.90 | F97: 613.70 | G97: 607.65 | H97: 634.15 | I97: 640.20 | J97: 647.40 | K97: 633 | L97: 619.75 | M97: 70.898
A98: 88 | B98: CANFINHOME | C98: 538.95 | D98: 534.27 | E98: 527.08 | F98: 515.22 | G98: 508.03 | H98: 546.13 | I98: 553.32 | J98: 565.18 | K98: 541.45 | L98: 522.4 | M98: 3.29298
A99: 89 | B99: CANBK | C99: 149.55 | D99: 150.33 | E99: 148.42 | F99: 147.28 | G99: 145.37 | H99: 151.47 | I99: 153.38 | J99: 154.52 | K99: 152.25 | L99: 149.2 | M99: 154.94451
A100: 90 | B100: CAPLIPOINT | C100: 601.2 | D100: 605.57 | E100: 594.13 | F100: 587.07 | G100: 575.63 | H100: 612.63 | I100: 624.07 | J100: 631.13 | K100: 617 | L100: 598.5 | M100: 2.30739
A101: 91 | B101: CGCL | C101: 460.05 | D101: 460.68 | E101: 454.37 | F101: 448.68 | G101: 442.37 | H101: 466.37 | I101: 472.68 | J101: 478.37 | K101: 467 | L101: 455 | M101: 0.37185
A102: 92 | B102: CARBORUNIV | C102: 599.75 | D102: 601.92 | E102: 593.93 | F102: 588.12 | G102: 580.13 | H102: 607.73 | I102: 615.72 | J102: 621.53 | K102: 609.9 | L102: 596.1 | M102: 1.14558
A103: 93 | B103: CASTROLIND | C103: 133.65 | D103: 133.65 | E103: 132.65 | F103: 131.65 | G103: 130.65 | H103: 134.65 | I103: 135.65 | J103: 136.65 | K103: 134.65 | L103: 132.65 | M103: 11.38092
A104: 94 | B104: CEATLTD | C104: 1307.35 | D104: 1320.85 | E104: 1288.70 | F104: 1270.05 | G104: 1237.90 | H104: 1339.50 | I104: 1371.65 | J104: 1390.30 | K104: 1353 | L104: 1302.2 | M104: 4.31885
A105: 95 | B105: CENTRALBK | C105: 19.1 | D105: 19.20 | E105: 18.95 | F105: 18.80 | G105: 18.55 | H105: 19.35 | I105: 19.60 | J105: 19.75 | K105: 19.45 | L105: 19.05 | M105: 53.82442
A106: 96 | B106: CDSL | C106: 887.6 | D106: 890.38 | E106: 881.22 | F106: 874.83 | G106: 865.67 | H106: 896.77 | I106: 905.93 | J106: 912.32 | K106: 899.55 | L106: 884 | M106: 5.04122
A107: 97 | B107: CENTURYPLY | C107: 417.7 | D107: 416.17 | E107: 411.33 | F107: 404.97 | G107: 400.13 | H107: 422.53 | I107: 427.37 | J107: 433.73 | K107: 421 | L107: 409.8 | M107: 2.90638
A108: 98 | B108: CENTURYTEX | C108: 512.7 | D108: 512.47 | E108: 507.33 | F108: 501.97 | G108: 496.83 | H108: 517.83 | I108: 522.97 | J108: 528.33 | K108: 517.6 | L108: 507.1 | M108: 5.55083
A109: 99 | B109: CERA | C109: 4084.75 | D109: 4085.25 | E109: 4026.50 | F109: 3968.25 | G109: 3909.50 | H109: 4143.50 | I109: 4202.25 | J109: 4260.50 | K109: 4144 | L109: 4027 | M109: 0.07076
A110: 100 | B110: CHALET | C110: 171.55 | D110: 172.17 | E110: 169.38 | F110: 167.22 | G110: 164.43 | H110: 174.33 | I110: 177.12 | J110: 179.28 | K110: 174.95 | L110: 170 | M110: 4.55028
A111: 101 | B111: CHAMBLFERT | C111: 298.85 | D111: 299.25 | E111: 293.60 | F111: 288.35 | G111: 282.70 | H111: 304.50 | I111: 310.15 | J111: 315.40 | K111: 304.9 | L111: 294 | M111: 15.48561
A112: 102 | B112: CHENNPETRO | C112: 131.7 | D112: 132.22 | E112: 128.68 | F112: 125.67 | G112: 122.13 | H112: 135.23 | I112: 138.77 | J112: 141.78 | K112: 135.75 | L112: 129.2 | M112: 21.36665
A113: 103 | B113: CHOLAHLDNG | C113: 643.85 | D113: 643.28 | E113: 636.57 | F113: 629.28 | G113: 622.57 | H113: 650.57 | I113: 657.28 | J113: 664.57 | K113: 650 | L113: 636 | M113: 1.08913
A114: 104 | B114: CHOLAFIN | C114: 544.1 | D114: 547.62 | E114: 538.68 | F114: 533.27 | G114: 524.33 | H114: 553.03 | I114: 561.97 | J114: 567.38 | K114: 556.55 | L114: 542.2 | M114: 35.60232
A115: 105 | B115: CIPLA | C115: 945.15 | D115: 945.38 | E115: 938.82 | F115: 932.48 | G115: 925.92 | H115: 951.72 | I115: 958.28 | J115: 964.62 | K115: 951.95 | L115: 939.05 | M115: 54.45187
A116: 106 | B116: CUB | C116: 174.35 | D116: 172.98 | E116: 171.22 | F116: 168.08 | G116: 166.32 | H116: 176.12 | I116: 177.88 | J116: 181.02 | K116: 174.75 | L116: 169.85 | M116: 18.55668
A117: 107 | B117: COALINDIA | C117: 145.7 | D117: 146.30 | E117: 144.60 | F117: 143.50 | G117: 141.80 | H117: 147.40 | I117: 149.10 | J117: 150.20 | K117: 148 | L117: 145.2 | M117: 99.48786
A118: 108 | B118: COCHINSHIP | C118: 383.3 | D118: 384.60 | E118: 381.30 | F118: 379.30 | G118: 376.00 | H118: 386.60 | I118: 389.90 | J118: 391.90 | K118: 387.9 | L118: 382.6 | M118: 2.26016
A119: 109 | B119: COFORGE | C119: 3484.65 | D119: 3444.88 | E119: 3384.77 | F119: 3284.88 | G119: 3224.77 | H119: 3544.77 | I119: 3604.88 | J119: 3704.77 | K119: 3505 | L119: 3345 | M119: 13.5817
A120: 110 | B120: COLPAL | C120: 1679.15 | D120: 1691.88 | E120: 1663.02 | F120: 1646.88 | G120: 1618.02 | H120: 1708.02 | I120: 1736.88 | J120: 1753.02 | K120: 1720.75 | L120: 1675.75 | M120: 7.4112
A121: 111 | B121: CONCOR | C121: 666.6 | D121: 670.20 | E121: 659.45 | F121: 652.30 | G121: 641.55 | H121: 677.35 | I121: 688.10 | J121: 695.25 | K121: 680.95 | L121: 663.05 | M121: 61.01756
A122: 112 | B122: COROMANDEL | C122: 834 | D122: 838.20 | E122: 823.95 | F122: 813.90 | G122: 799.65 | H122: 848.25 | I122: 862.50 | J122: 872.55 | K122: 852.45 | L122: 828.15 | M122: 2.57646
A123: 113 | B123: CREDITACC | C123: 628.25 | D123: 628.75 | E123: 619.50 | F123: 610.75 | G123: 601.50 | H123: 637.50 | I123: 646.75 | J123: 655.50 | K123: 638 | L123: 620 | M123: 0.94506
A124: 114 | B124: CROMPTON | C124: 396 | D124: 398.50 | E124: 390.00 | F124: 384.00 | G124: 375.50 | H124: 404.50 | I124: 413.00 | J124: 419.00 | K124: 407 | L124: 392.5 | M124: 13.14545
A125: 115 | B125: CUMMINSIND | C125: 802.65 | D125: 810.47 | E125: 788.98 | F125: 775.32 | G125: 753.83 | H125: 824.13 | I125: 845.62 | J125: 859.28 | K125: 831.95 | L125: 796.8 | M125: 18.00521
A126: 116 | B126: CYIENT | C126: 813.95 | D126: 815.95 | E126: 807.45 | F126: 800.95 | G126: 792.45 | H126: 822.45 | I126: 830.95 | J126: 837.45 | K126: 824.45 | L126: 809.45 | M126: 2.18011
A127: 117 | B127: DBCORP | C127: 97.8 | D127: 98.47 | E127: 95.33 | F127: 92.87 | G127: 89.73 | H127: 100.93 | I127: 104.07 | J127: 106.53 | K127: 101.6 | L127: 96 | M127: 7.68768
A128: 118 | B128: DCBBANK | C128: 105.3 | D128: 105.33 | E128: 104.47 | F128: 103.63 | G128: 102.77 | H128: 106.17 | I128: 107.03 | J128: 107.87 | K128: 106.2 | L128: 104.5 | M128: 25.54808
A129: 119 | B129: DCMSHRIRAM | C129: 648.5 | D129: 656.58 | E129: 635.57 | F129: 622.63 | G129: 601.62 | H129: 669.52 | I129: 690.53 | J129: 703.47 | K129: 677.6 | L129: 643.65 | M129: 3.35339
A130: 120 | B130: DLF | C130: 291.2 | D130: 287.47 | E130: 282.08 | F130: 272.97 | G130: 267.58 | H130: 296.58 | I130: 301.97 | J130: 311.08 | K130: 292.85 | L130: 278.35 | M130: 171.84211
A131: 121 | B131: DABUR | C131: 532.2 | D131: 531.30 | E131: 529.65 | F131: 527.10 | G131: 525.45 | H131: 533.85 | I131: 535.50 | J131: 538.05 | K131: 532.95 | L131: 528.75 | M131: 15.33553
A132: 122 | B132: DALBHARAT | C132: 1845.65 | D132: 1850.50 | E132: 1820.15 | F132: 1794.65 | G132: 1764.30 | H132: 1876.00 | I132: 1906.35 | J132: 1931.85 | K132: 1880.85 | L132: 1825 | M132: 0.32038
A133: 123 | B133: DEEPAKNTR | C133: 1784.85 | D133: 1793.98 | E133: 1770.07 | F133: 1755.28 | G133: 1731.37 | H133: 1808.77 | I133: 1832.68 | J133: 1847.47 | K133: 1817.9 | L133: 1779.2 | M133: 4.97889
A134: 124 | B134: DELTACORP | C134: 176.05 | D134: 177.42 | E134: 172.83 | F134: 169.62 | G134: 165.03 | H134: 180.63 | I134: 185.22 | J134: 188.43 | K134: 182 | L134: 174.2 | M134: 50.94891
A135: 125 | B135: DHANI | C135: 178.75 | D135: 177.73 | E135: 175.32 | F135: 171.88 | G135: 169.47 | H135: 181.17 | I135: 183.58 | J135: 187.02 | K135: 180.15 | L135: 174.3 | M135: 9.75992
A136: 126 | B136: DHANUKA | C136: 864.35 | D136: 863.03 | E136: 853.32 | F136: 842.28 | G136: 832.57 | H136: 874.07 | I136: 883.78 | J136: 894.82 | K136: 872.75 | L136: 852 | M136: 1.4291
A137: 127 | B137: DBL | C137: 559.8 | D137: 554.85 | E137: 542.25 | F137: 524.70 | G137: 512.10 | H137: 572.40 | I137: 585.00 | J137: 602.55 | K137: 567.45 | L137: 537.3 | M137: 8.63242
A138: 128 | B138: DISHTV | C138: 17 | D138: 17.00 | E138: 16.30 | F138: 15.60 | G138: 14.90 | H138: 17.70 | I138: 18.40 | J138: 19.10 | K138: 17.7 | L138: 16.3 | M138: 1173.74918
A139: 129 | B139: DCAL | C139: 211.05 | D139: 214.42 | E139: 204.83 | F139: 198.62 | G139: 189.03 | H139: 220.63 | I139: 230.22 | J139: 236.43 | K139: 224 | L139: 208.2 | M139: 36.9982
A140: 130 | B140: DIVISLAB | C140: 4098.6 | D140: 4091.20 | E140: 4062.40 | F140: 4026.20 | G140: 3997.40 | H140: 4127.40 | I140: 4156.20 | J140: 4192.40 | K140: 4120 | L140: 4055 | M140: 3.44734
A141: 131 | B141: DIXON | C141: 3902.55 | D141: 3921.77 | E141: 3875.78 | F141: 3849.02 | G141: 3803.03 | H141: 3948.53 | I141: 3994.52 | J141: 4021.28 | K141: 3967.75 | L141: 3895 | M141: 1.16664
A142: 132 | B142: LALPATHLAB | C142: 2788.4 | D142: 2782.15 | E142: 2756.30 | F142: 2724.20 | G142: 2698.35 | H142: 2814.25 | I142: 2840.10 | J142: 2872.20 | K142: 2808 | L142: 2750.05 | M142: 2.22254
A143: 133 | B143: DRREDDY | C143: 5285.2 | D143: 5298.40 | E143: 5261.80 | F143: 5238.40 | G143: 5201.80 | H143: 5321.80 | I143: 5358.40 | J143: 5381.80 | K143: 5335 | L143: 5275 | M143: 5.0748
A144: 134 | B144: EIDPARRY | C144: 419.85 | D144: 421.08 | E144: 415.17 | F144: 410.48 | G144: 404.57 | H144: 425.77 | I144: 431.68 | J144: 436.37 | K144: 427 | L144: 416.4 | M144: 2.39783
A145: 135 | B145: EIHOTEL | C145: 107.15 | D145: 108.10 | E145: 105.20 | F145: 103.25 | G145: 100.35 | H145: 110.05 | I145: 112.95 | J145: 114.90 | K145: 111 | L145: 106.15 | M145: 11.00103
A146: 136 | B146: EPL | C146: 232.5 | D146: 235.53 | E146: 228.97 | F146: 225.43 | G146: 218.87 | H146: 239.07 | I146: 245.63 | J146: 249.17 | K146: 242.1 | L146: 232 | M146: 2.54454
A147: 137 | B147: ESABINDIA | C147: 1839.6 | D147: 1849.22 | E147: 1810.43 | F147: 1781.27 | G147: 1742.48 | H147: 1878.38 | I147: 1917.17 | J147: 1946.33 | K147: 1888 | L147: 1820.05 | M147: 0.48815
A148: 138 | B148: EDELWEISS | C148: 66.45 | D148: 67.32 | E148: 65.13 | F148: 63.82 | G148: 61.63 | H148: 68.63 | I148: 70.82 | J148: 72.13 | K148: 69.5 | L148: 66 | M148: 64.06795
A149: 139 | B149: EICHERMOT | C149: 2633.5 | D149: 2632.23 | E149: 2608.32 | F149: 2583.13 | G149: 2559.22 | H149: 2657.42 | I149: 2681.33 | J149: 2706.52 | K149: 2656.15 | L149: 2607.05 | M149: 10.2604
A150: 140 | B150: ELGIEQUIP | C150: 214.55 | D150: 215.45 | E150: 212.90 | F150: 211.25 | G150: 208.70 | H150: 217.10 | I150: 219.65 | J150: 221.30 | K150: 218 | L150: 213.8 | M150: 1.16948
A151: 141 | B151: EMAMILTD | C151: 504.25 | D151: 503.53 | E151: 496.37 | F151: 488.48 | G151: 481.32 | H151: 511.42 | I151: 518.58 | J151: 526.47 | K151: 510.7 | L151: 495.65 | M151: 6.55345
A152: 142 | B152: ENDURANCE | C152: 1492.65 | D152: 1474.22 | E152: 1448.43 | F152: 1404.22 | G152: 1378.43 | H152: 1518.43 | I152: 1544.22 | J152: 1588.43 | K152: 1500 | L152: 1430 | M152: 2.31651
A153: 143 | B153: ENGINERSIN | C153: 85.2 | D153: 85.30 | E153: 84.20 | F153: 83.20 | G153: 82.10 | H153: 86.30 | I153: 87.40 | J153: 88.40 | K153: 86.4 | L153: 84.3 | M153: 88.15972
A154: 144 | B154: EQUITAS | C154: 91.35 | D154: 92.67 | E154: 89.53 | F154: 87.72 | G154: 84.58 | H154: 94.48 | I154: 97.62 | J154: 99.43 | K154: 95.8 | L154: 90.85 | M154: 50.5567
A155: 145 | B155: ERIS | C155: 697.65 | D155: 703.12 | E155: 689.53 | F155: 681.42 | G155: 667.83 | H155: 711.23 | I155: 724.82 | J155: 732.93 | K155: 716.7 | L155: 695 | M155: 0.5598
A156: 146 | B156: ESCORTS | C156: 1137.9 | D156: 1142.43 | E156: 1130.47 | F156: 1123.03 | G156: 1111.07 | H156: 1149.87 | I156: 1161.83 | J156: 1169.27 | K156: 1154.4 | L156: 1135 | M156: 16.81362
A157: 147 | B157: EXIDEIND | C157: 190.2 | D157: 190.70 | E157: 189.00 | F157: 187.80 | G157: 186.10 | H157: 191.90 | I157: 193.60 | J157: 194.80 | K157: 192.4 | L157: 189.5 | M157: 27.82917
A158: 148 | B158: FDC | C158: 347.55 | D158: 345.35 | E158: 337.20 | F158: 326.85 | G158: 318.70 | H158: 355.70 | I158: 363.85 | J158: 374.20 | K158: 353.5 | L158: 335 | M158: 5.91466
A159: 149 | B159: FEDERALBNK | C159: 87 | D159: 87.10 | E159: 86.50 | F159: 86.00 | G159: 85.40 | H159: 87.60 | I159: 88.20 | J159: 88.70 | K159: 87.7 | L159: 86.6 | M159: 208.4485
A160: 150 | B160: FINEORG | C160: 3258.55 | D160: 3312.87 | E160: 3191.73 | F160: 3124.92 | G160: 3003.78 | H160: 3379.68 | I160: 3500.82 | J160: 3567.63 | K160: 3434 | L160: 3246.05 | M160: 0.64438
A161: 151 | B161: FINCABLES | C161: 453.55 | D161: 458.73 | E161: 437.47 | F161: 421.38 | G161: 400.12 | H161: 474.82 | I161: 496.08 | J161: 512.17 | K161: 480 | L161: 442.65 | M161: 48.91416
A162: 152 | B162: FINPIPE | C162: 171.05 | D162: 170.23 | E162: 167.32 | F162: 163.58 | G162: 160.67 | H162: 173.97 | I162: 176.88 | J162: 180.62 | K162: 173.15 | L162: 166.5 | M162: 20.74074
A163: 153 | B163: FSL | C163: 138.95 | D163: 139.43 | E163: 136.52 | F163: 134.08 | G163: 131.17 | H163: 141.87 | I163: 144.78 | J163: 147.22 | K163: 142.35 | L163: 137 | M163: 36.03682
A164: 154 | B164: FORTIS | C164: 227.25 | D164: 226.83 | E164: 224.92 | F164: 222.58 | G164: 220.67 | H164: 229.17 | I164: 231.08 | J164: 233.42 | K164: 228.75 | L164: 224.5 | M164: 16.18623
A165: 155 | B165: FCONSUMER | C165: 6.9 | D165: 6.95 | E165: 6.80 | F165: 6.70 | G165: 6.55 | H165: 7.05 | I165: 7.20 | J165: 7.30 | K165: 7.1 | L165: 6.85 | M165: 47.04738
A166: 156 | B166: FRETAIL | C166: 45.95 | D166: 46.02 | E166: 45.63 | F166: 45.32 | G166: 44.93 | H166: 46.33 | I166: 46.72 | J166: 47.03 | K166: 46.4 | L166: 45.7 | M166: 15.51886
A167: 157 | B167: GAIL | C167: 152.1 | D167: 153.20 | E167: 150.60 | F167: 149.10 | G167: 146.50 | H167: 154.70 | I167: 157.30 | J167: 158.80 | K167: 155.8 | L167: 151.7 | M167: 86.74635
A168: 158 | B168: GEPIL | C168: 289.2 | D168: 284.65 | E168: 273.80 | F168: 258.40 | G168: 247.55 | H168: 300.05 | I168: 310.90 | J168: 326.30 | K168: 295.5 | L168: 269.25 | M168: 9.54305
A169: 159 | B169: GHCL | C169: 264.95 | D169: 265.05 | E169: 260.15 | F169: 255.35 | G169: 250.45 | H169: 269.85 | I169: 274.75 | J169: 279.55 | K169: 269.95 | L169: 260.25 | M169: 4.65589
A170: 160 | B170: GMMPFAUDLR | C170: 5177 | D170: 5207.62 | E170: 5095.23 | F170: 5013.47 | G170: 4901.08 | H170: 5289.38 | I170: 5401.77 | J170: 5483.53 | K170: 5320 | L170: 5125.85 | M170: 0.83059
A171: 161 | B171: GMRINFRA | C171: 27.2 | D171: 27.17 | E171: 26.58 | F171: 25.97 | G171: 25.38 | H171: 27.78 | I171: 28.37 | J171: 28.98 | K171: 27.75 | L171: 26.55 | M171: 578.63432
A172: 162 | B172: GALAXYSURF | C172: 3058.6 | D172: 3066.65 | E172: 3033.30 | F172: 3008.00 | G172: 2974.65 | H172: 3091.95 | I172: 3125.30 | J172: 3150.60 | K172: 3100 | L172: 3041.35 | M172: 0.45728
A173: 163 | B173: GRSE | C173: 187.8 | D173: 186.55 | E173: 184.10 | F173: 180.40 | G173: 177.95 | H173: 190.25 | I173: 192.70 | J173: 196.40 | K173: 189 | L173: 182.85 | M173: 5.42811
A174: 164 | B174: GARFIBRES | C174: 2813.25 | D174: 2840.77 | E174: 2752.53 | F174: 2691.82 | G174: 2603.58 | H174: 2901.48 | I174: 2989.72 | J174: 3050.43 | K174: 2929 | L174: 2780.05 | M174: 0.23369
A175: 165 | B175: GICRE | C175: 193.4 | D175: 193.92 | E175: 192.48 | F175: 191.57 | G175: 190.13 | H175: 194.83 | I175: 196.27 | J175: 197.18 | K175: 195.35 | L175: 193 | M175: 1.87815
A176: 166 | B176: GILLETTE | C176: 5574.6 | D176: 5566.45 | E176: 5498.85 | F176: 5423.10 | G176: 5355.50 | H176: 5642.20 | I176: 5709.80 | J176: 5785.55 | K176: 5634.05 | L176: 5490.7 | M176: 0.22755
A177: 167 | B177: GLAXO | C177: 1464.05 | D177: 1465.35 | E177: 1455.70 | F177: 1447.35 | G177: 1437.70 | H177: 1473.70 | I177: 1483.35 | J177: 1491.70 | K177: 1475 | L177: 1457 | M177: 0.22466
A178: 168 | B178: GLENMARK | C178: 608.4 | D178: 606.82 | E178: 598.68 | F178: 588.97 | G178: 580.83 | H178: 616.53 | I178: 624.67 | J178: 634.38 | K178: 614.95 | L178: 597.1 | M178: 22.51359
A179: 169 | B179: GODFRYPHLP | C179: 905.25 | D179: 905.77 | E179: 901.53 | F179: 897.82 | G179: 893.58 | H179: 909.48 | I179: 913.72 | J179: 917.43 | K179: 910 | L179: 902.05 | M179: 0.25982
A180: 170 | B180: GODREJAGRO | C180: 548.3 | D180: 551.47 | E180: 542.93 | F180: 537.57 | G180: 529.03 | H180: 556.83 | I180: 565.37 | J180: 570.73 | K180: 560 | L180: 546.1 | M180: 1.31712
A181: 171 | B181: GODREJCP | C181: 824.9 | D181: 818.12 | E181: 808.83 | F181: 792.77 | G181: 783.48 | H181: 834.18 | I181: 843.47 | J181: 859.53 | K181: 827.4 | L181: 802.05 | M181: 17.98172
A182: 172 | B182: GODREJIND | C182: 552.8 | D182: 556.07 | E182: 547.73 | F182: 542.67 | G182: 534.33 | H182: 561.13 | I182: 569.47 | J182: 574.53 | K182: 564.4 | L182: 551 | M182: 2.3712
A183: 173 | B183: GODREJPROP | C183: 1348.55 | D183: 1347.60 | E183: 1335.50 | F183: 1322.45 | G183: 1310.35 | H183: 1360.65 | I183: 1372.75 | J183: 1385.80 | K183: 1359.7 | L183: 1334.55 | M183: 7.95763
A184: 174 | B184: GRANULES | C184: 318.85 | D184: 320.12 | E184: 316.88 | F184: 314.92 | G184: 311.68 | H184: 322.08 | I184: 325.32 | J184: 327.28 | K184: 323.35 | L184: 318.15 | M184: 16.44159
A185: 175 | B185: GRAPHITE | C185: 758.65 | D185: 769.20 | E185: 744.10 | F185: 729.55 | G185: 704.45 | H185: 783.75 | I185: 808.85 | J185: 823.40 | K185: 794.3 | L185: 754.65 | M185: 16.57086
A186: 176 | B186: GRASIM | C186: 1409.4 | D186: 1407.47 | E186: 1382.98 | F186: 1356.57 | G186: 1332.08 | H186: 1433.88 | I186: 1458.37 | J186: 1484.78 | K186: 1431.95 | L186: 1381.05 | M186: 43.02562
A187: 177 | B187: GESHIP | C187: 411.5 | D187: 410.00 | E187: 406.00 | F187: 400.50 | G187: 396.50 | H187: 415.50 | I187: 419.50 | J187: 425.00 | K187: 414 | L187: 404.5 | M187: 2.21261
A188: 178 | B188: GREAVESCOT | C188: 130.4 | D188: 130.90 | E188: 129.50 | F188: 128.60 | G188: 127.20 | H188: 131.80 | I188: 133.20 | J188: 134.10 | K188: 132.3 | L188: 130 | M188: 5.99611
A189: 179 | B189: GRINDWELL | C189: 1204.7 | D189: 1203.52 | E189: 1183.48 | F189: 1162.27 | G189: 1142.23 | H189: 1224.73 | I189: 1244.77 | J189: 1265.98 | K189: 1223.55 | L189: 1182.3 | M189: 0.91438
A190: 180 | B190: GUJALKALI | C190: 415.05 | D190: 415.78 | E190: 407.57 | F190: 400.08 | G190: 391.87 | H190: 423.27 | I190: 431.48 | J190: 438.97 | K190: 424 | L190: 408.3 | M190: 4.46289
A191: 181 | B191: GAEL | C191: 175.4 | D191: 175.55 | E191: 172.45 | F191: 169.50 | G191: 166.40 | H191: 178.50 | I191: 181.60 | J191: 184.55 | K191: 178.65 | L191: 172.6 | M191: 8.13515
A192: 182 | B192: FLUOROCHEM | C192: 848.05 | D192: 851.42 | E192: 814.03 | F192: 780.02 | G192: 742.63 | H192: 885.43 | I192: 922.82 | J192: 956.83 | K192: 888.8 | L192: 817.4 | M192: 3.52815
A193: 183 | B193: GUJGASLTD | C193: 513.9 | D193: 515.10 | E193: 509.80 | F193: 505.70 | G193: 500.40 | H193: 519.20 | I193: 524.50 | J193: 528.60 | K193: 520.4 | L193: 511 | M193: 7.56861
A194: 184 | B194: GMDCLTD | C194: 72.6 | D194: 73.23 | E194: 71.72 | F194: 70.83 | G194: 69.32 | H194: 74.12 | I194: 75.63 | J194: 76.52 | K194: 74.75 | L194: 72.35 | M194: 14.98453
A195: 185 | B195: GNFC | C195: 375.85 | D195: 374.13 | E195: 367.82 | F195: 359.78 | G195: 353.47 | H195: 382.17 | I195: 388.48 | J195: 396.52 | K195: 380.45 | L195: 366.1 | M195: 7.29748
A196: 186 | B196: GPPL | C196: 103.9 | D196: 104.50 | E196: 102.40 | F196: 100.90 | G196: 98.80 | H196: 106.00 | I196: 108.10 | J196: 109.60 | K196: 106.6 | L196: 103 | M196: 11.31865
A197: 187 | B197: GSFC | C197: 120.85 | D197: 121.55 | E197: 119.45 | F197: 118.05 | G197: 115.95 | H197: 122.95 | I197: 125.05 | J197: 126.45 | K197: 123.65 | L197: 120.15 | M197: 42.61591
A198: 188 | B198: GSPL | C198: 277.5 | D198: 275.88 | E198: 272.82 | F198: 268.13 | G198: 265.07 | H198: 280.57 | I198: 283.63 | J198: 288.32 | K198: 278.95 | L198: 271.2 | M198: 4.53322
A199: 189 | B199: GULFOILLUB | C199: 713.05 | D199: 714.25 | E199: 703.50 | F199: 693.95 | G199: 683.20 | H199: 723.80 | I199: 734.55 | J199: 744.10 | K199: 725 | L199: 704.7 | M199: 0.27617
A200: 190 | B200: HEG | C200: 2353.25 | D200: 2374.12 | E200: 2320.23 | F200: 2287.22 | G200: 2233.33 | H200: 2407.13 | I200: 2461.02 | J200: 2494.03 | K200: 2428 | L200: 2341.1 | M200: 3.19315
A201: 191 | B201: HCLTECH | C201: 945.8 | D201: 942.43 | E201: 935.92 | F201: 926.03 | G201: 919.52 | H201: 952.32 | I201: 958.83 | J201: 968.72 | K201: 948.95 | L201: 932.55 | M201: 50.17674
A202: 192 | B202: HDFCAMC | C202: 2819.95 | D202: 2823.32 | E202: 2811.63 | F202: 2803.32 | G202: 2791.63 | H202: 2831.63 | I202: 2843.32 | J202: 2851.63 | K202: 2835 | L202: 2815 | M202: 0.87468
A203: 193 | B203: HDFCBANK | C203: 1477.05 | D203: 1478.02 | E203: 1469.03 | F203: 1461.02 | G203: 1452.03 | H203: 1486.03 | I203: 1495.02 | J203: 1503.03 | K203: 1487 | L203: 1470 | M203: 61.41995
A204: 194 | B204: HDFCLIFE | C204: 658.5 | D204: 660.68 | E204: 654.97 | F204: 651.43 | G204: 645.72 | H204: 664.22 | I204: 669.93 | J204: 673.47 | K204: 666.4 | L204: 657.15 | M204: 19.3868
A205: 195 | B205: HFCL | C205: 47.65 | D205: 48.53 | E205: 45.67 | F205: 43.68 | G205: 40.82 | H205: 50.52 | I205: 53.38 | J205: 55.37 | K205: 51.4 | L205: 46.55 | M205: 496.5391
A206: 196 | B206: HATHWAY | C206: 25.8 | D206: 25.97 | E206: 25.48 | F206: 25.17 | G206: 24.68 | H206: 26.28 | I206: 26.77 | J206: 27.08 | K206: 26.45 | L206: 25.65 | M206: 62.08183
... 321 more rows

Sheet Bulk Deals
E6: Back To Main Page
A7: Subject : | B7: BULK DEAL | D7: =Main!B10 -> 2021-05-27
A9: Date | B9: Scrip code | C9: Scrip Name | D9: Client Name | E9: Buy / Sell | F9: Quantity Traded | G9: Trade Price / Wt.Avg.trade price | H9: Exchange
A10: 2021-05-26 | B10: 543210 | C10: AARTISURF | D10: JAYA CHANDRAKANT GOGRI | E10: SELL | F10: 370,000 | G10: 1249.11 | H10: BSE
A11: 2021-05-26 | B11: 543210 | C11: AARTISURF | D11: SETU SECURITIES PVT LTD | E11: BUY | F11: 47,411 | G11: 1250.48 | H11: BSE
A12: 2021-05-26 | B12: 543210 | C12: AARTISURF | D12: SETU SECURITIES PVT LTD | E12: SELL | F12: 15,167 | G12: 1342.48 | H12: BSE
A13: 2021-05-26 | B13: 543210 | C13: AARTISURF | D13: NIKHIL PARIMAL DESAI | E13: BUY | F13: 40,000 | G13: 1283.13 | H13: BSE
A14: 2021-05-26 | B14: 543210 | C14: AARTISURF | D14: NIKHIL HOLDINGS PRIVATE LIMITED | E14: BUY | F14: 97,500 | G14: 1399.65 | H14: BSE
A15: 2021-05-26 | B15: 543210 | C15: AARTISURF | D15: ALPHA LEON ENTERPRISES LLP | E15: BUY | F15: 110,613 | G15: 1251.92 | H15: BSE
A16: 2021-05-26 | B16: 543210 | C16: AARTISURF | D16: ALPHA LEON ENTERPRISES LLP | E16: SELL | F16: 27,392 | G16: 1304.52 | H16: BSE
A17: 2021-05-26 | B17: 543210 | C17: AARTISURF | D17: MATALIA STOCK BROKING PRIVATE LIMITED | E17: BUY | F17: 52,565 | G17: 1268.06 | H17: BSE
A18: 2021-05-26 | B18: 543210 | C18: AARTISURF | D18: MATALIA STOCK BROKING PRIVATE LIMITED | E18: SELL | F18: 35,930 | G18: 1336.13 | H18: BSE
A19: 2021-05-26 | B19: 500009 | C19: AMBALALSA | D19: MONET SECURITIES PRIVATE LTD | E19: SELL | F19: 500,000 | G19: 60.8 | H19: BSE
A20: 2021-05-26 | B20: 531752 | C20: BIOGEN | D20: TOPGAIN FINANCE PRIVATE LIMITED | E20: BUY | F20: 7,114,681 | G20: 0.23 | H20: BSE
A21: 2021-05-26 | B21: 531752 | C21: BIOGEN | D21: TOPGAIN FINANCE PRIVATE LIMITED | E21: SELL | F21: 4,633 | G21: 0.23 | H21: BSE
A22: 2021-05-26 | B22: 538521 | C22: CROWNTOURS | D22: RAJANIBEN JAYESHBHAI PANSAL | E22: BUY | F22: 15,707 | G22: 18.53 | H22: BSE
A23: 2021-05-26 | B23: 540811 | C23: DML | D23: VIJAY HARISHANKAR PATIL | E23: SELL | F23: 60,000 | G23: 11.5 | H23: BSE
A24: 2021-05-26 | B24: 541627 | C24: HITECHWIND | D24: SIMANTI BAGCHI | E24: SELL | F24: 26,100 | G24: 4.8 | H24: BSE
A25: 2021-05-26 | B25: 541627 | C25: HITECHWIND | D25: SWETA GAURANG VORA | E25: SELL | F25: 31,500 | G25: 4.94 | H25: BSE
A26: 2021-05-26 | B26: 541627 | C26: HITECHWIND | D26: GAURANG GIRDHARLAL VORA | E26: SELL | F26: 35,000 | G26: 4.94 | H26: BSE
A27: 2021-05-26 | B27: 541627 | C27: HITECHWIND | D27: SAIKUMARTV | E27: BUY | F27: 32,813 | G27: 4.8 | H27: BSE
A28: 2021-05-26 | B28: 539097 | C28: HKG | D28: HARSHAD JITENDRA CHANDE | E28: BUY | F28: 110,000 | G28: 55 | H28: BSE
A29: 2021-05-26 | B29: 539097 | C29: HKG | D29: HARSHAD JITENDRA CHANDE | E29: SELL | F29: 45,000 | G29: 55.91 | H29: BSE
A30: 2021-05-26 | B30: 531337 | C30: JUMPNET | D30: ARBINA MAQBOOL DHOKI | E30: BUY | F30: 720,000 | G30: 7.36 | H30: BSE
A31: 2021-05-26 | B31: 522287 | C31: KALPATPOWR | D31: SBI MUTUAL FUND | E31: BUY | F31: 2,827,724 | G31: 425 | H31: BSE
A32: 2021-05-26 | B32: 522287 | C32: KALPATPOWR | D32: KALPATARU PROPERTIES PRIVATE LIMITED | E32: SELL | F32: 2,888,800 | G32: 425.01 | H32: BSE
A33: 2021-05-26 | B33: 505523 | C33: MAHACORP | D33: TURBOT TRADERS PRIVATE LIMITED | E33: SELL | F33: 1,200,000 | G33: 0.57 | H33: BSE
A34: 2021-05-26 | B34: 539519 | C34: MAYUKH | D34: KESHAV PRASAD MUNDHRA | E34: BUY | F34: 35,000 | G34: 18.15 | H34: BSE
A35: 2021-05-26 | B35: 539519 | C35: MAYUKH | D35: PRANESH DEALMARK PRIVATE LIMITED | E35: SELL | F35: 56,465 | G35: 18.21 | H35: BSE
A36: 2021-05-26 | B36: 539519 | C36: MAYUKH | D36: VIDHAN KOTHARI | E36: BUY | F36: 50,000 | G36: 18.2 | H36: BSE
A37: 2021-05-26 | B37: 539519 | C37: MAYUKH | D37: SHAILESH PRABHAKAR DALVI | E37: SELL | F37: 40,000 | G37: 18.2 | H37: BSE
A38: 2021-05-26 | B38: 526723 | C38: NTCIND | D38: KALIMATA INVESTMENT CONSULTANCY PRIVATE LIMITED | E38: SELL | F38: 60,000 | G38: 60.14 | H38: BSE
A39: 2021-05-26 | B39: 539287 | C39: ORTINLAABS | D39: RAHUL GUPTA | E39: SELL | F39: 55,212 | G39: 28.13 | H39: BSE
A40: 2021-05-26 | B40: 506852 | C40: PACL | D40: ALPHA LEON ENTERPRISES LLP | E40: BUY | F40: 149,475 | G40: 83.35 | H40: BSE
A41: 2021-05-26 | B41: 506852 | C41: PACL | D41: ALPHA LEON ENTERPRISES LLP | E41: SELL | F41: 167,216 | G41: 83.18 | H41: BSE
A42: 2021-05-26 | B42: 506122 | C42: PANKAJPIYUS | D42: LALITKUMARGOPILAL | E42: BUY | F42: 2,065 | G42: 59.94 | H42: BSE
A43: 2021-05-26 | B43: 539561 | C43: REMLIFE | D43: MADESWARAN SENTHAMARAI | E43: SELL | F43: 25,000 | G43: 88.29 | H43: BSE
A44: 2021-05-26 | B44: 532527 | C44: RKFORGE | D44: KIRTAN MANEKLAL RUPARELIYA (HUF) | E44: BUY | F44: 208,498 | G44: 663.75 | H44: BSE
A45: 2021-05-26 | B45: 532527 | C45: RKFORGE | D45: KIRTAN MANEKLAL RUPARELIYA (HUF) | E45: SELL | F45: 57,488 | G45: 667.9 | H45: BSE
A46: 2021-05-26 | B46: 540259 | C46: SHANGAR | D46: OLGA TRADING PRIVATE LIMITED | E46: BUY | F46: 10,136 | G46: 11.55 | H46: BSE
A47: 2021-05-26 | B47: 540259 | C47: SHANGAR | D47: OLGA TRADING PRIVATE LIMITED | E47: SELL | F47: 81,478 | G47: 11.26 | H47: BSE
A48: 2021-05-26 | B48: 540259 | C48: SHANGAR | D48: SHREE SHIVSHAKTI PROJECT CONSULTANT PRIVATE LIMITED | E48: BUY | F48: 82,010 | G48: 11.15 | H48: BSE
A49: 2021-05-26 | B49: 540259 | C49: SHANGAR | D49: SHREE SHIVSHAKTI PROJECT CONSULTANT PRIVATE LIMITED | E49: SELL | F49: 109,985 | G49: 11.21 | H49: BSE
A50: 2021-05-26 | B50: 540259 | C50: SHANGAR | D50: JYOTIBEN CHANDULAL SANGHVI | E50: SELL | F50: 100,000 | G50: 11.15 | H50: BSE
A51: 2021-05-26 | B51: 532070 | C51: SUPRBPA | D51: AKASH ARUNKUMAR SHAH | E51: SELL | F51: 47,567 | G51: 12.07 | H51: BSE
A52: 2021-05-26 | B52: AARTISURF | C52: Aarti Surfactants Limited | D52: MATALIA STOCK BROKING TRADING A/C | E52: BUY | F52: 66,312 | G52: 1356.58 | H52: NSE
A53: 2021-05-26 | B53: AARTISURF | C53: Aarti Surfactants Limited | D53: ALPHA LEON ENTERPRISES LLP | E53: BUY | F53: 23,384 | G53: 1329.82 | H53: NSE
A54: 2021-05-26 | B54: AARTISURF | C54: Aarti Surfactants Limited | D54: DESAI PARIMAL HASMUKHLAL | E54: BUY | F54: 101,646 | G54: 1372.22 | H54: NSE
A55: 2021-05-26 | B55: AARTISURF | C55: Aarti Surfactants Limited | D55: DESAI TARLA PARIMAL | E55: BUY | F55: 100,000 | G55: 1280.99 | H55: NSE
A56: 2021-05-26 | B56: AARTISURF | C56: Aarti Surfactants Limited | D56: MANSI SHARES & STOCK ADVISORS PVT LTD | E56: BUY | F56: 45,057 | G56: 1269.06 | H56: NSE
A57: 2021-05-26 | B57: BODALCHEM | C57: Bodal Chemicals Ltd | D57: GRAVITON RESEARCH CAPITAL LLP | E57: BUY | F57: 671,648 | G57: 109.91 | H57: NSE
A58: 2021-05-26 | B58: BOMDYEING | C58: Bombay Dyeing & Mfg Co. | D58: GRAVITON RESEARCH CAPITAL LLP | E58: BUY | F58: 1,086,293 | G58: 84.25 | H58: NSE
A59: 2021-05-26 | B59: BSE | C59: BSE Limited | D59: GRAVITON RESEARCH CAPITAL LLP | E59: BUY | F59: 420,555 | G59: 874.44 | H59: NSE
A60: 2021-05-26 | B60: BSE | C60: BSE Limited | D60: XTX MARKETS LLP | E60: BUY | F60: 296,147 | G60: 878.78 | H60: NSE
A61: 2021-05-26 | B61: CALSOFT | C61: California Soft Ltd. | D61: CHEMOIL ADVANCED MANAGEMENT SERVICES PVT LTD | E61: BUY | F61: 11,400 | G61: 9.54 | H61: NSE
A62: 2021-05-26 | B62: COFFEEDAY | C62: Coffee Day Enterprise Ltd | D62: ALPHA LEON ENTERPRISES LLP | E62: BUY | F62: 1,486,813 | G62: 34.69 | H62: NSE
A63: 2021-05-26 | B63: DISHTV | C63: Dish TV India Limited | D63: SANTOSH INDUSTRIES LTD | E63: BUY | F63: 9,528,348 | G63: 17.26 | H63: NSE
A64: 2021-05-26 | B64: GSS | C64: GSS Infotech Limited | D64: KARAN SURESH MAJITHIA | E64: BUY | F64: 90,000 | G64: 62.67 | H64: NSE
A65: 2021-05-26 | B65: HSCL | C65: Himadri Speciality Chem L | D65: GRAVITON RESEARCH CAPITAL LLP | E65: BUY | F65: 2,421,829 | G65: 53.43 | H65: NSE
A66: 2021-05-26 | B66: JUMPNET | C66: Jump Networks Limited | D66: SHARE INDIA SECURITIES LIMITED | E66: BUY | F66: 610,875 | G66: 7.18 | H66: NSE
A67: 2021-05-26 | B67: JUMPNET | C67: Jump Networks Limited | D67: ARBINA MAQBOOL DHOKI | E67: BUY | F67: 1,202,000 | G67: 7.05 | H67: NSE
A68: 2021-05-26 | B68: JUSTDIAL | C68: Justdial Ltd. | D68: GRAVITON RESEARCH CAPITAL LLP | E68: BUY | F68: 719,359 | G68: 831.71 | H68: NSE
A69: 2021-05-26 | B69: LOVABLE | C69: Lovable Lingerie Ltd | D69: GRAVITON RESEARCH CAPITAL LLP | E69: BUY | F69: 136,439 | G69: 124.61 | H69: NSE
A70: 2021-05-26 | B70: LOVABLE | C70: Lovable Lingerie Ltd | D70: NK SECURITIES RESEARCH PRIVATE LIMITED | E70: BUY | F70: 100,604 | G70: 126.66 | H70: NSE
A71: 2021-05-26 | B71: LUXIND | C71: Lux Industries Limited | D71: WHV-EAM INTERNATIONAL SMALL CAP EQUITY FUND | E71: BUY | F71: 144,080 | G71: 2537.72 | H71: NSE
A72: 2021-05-26 | B72: MITTAL | C72: Mittal Life Style Limited | D72: GAURAV PALIWAL | E72: BUY | F72: 80,000 | G72: 12 | H72: NSE
A73: 2021-05-26 | B73: NECCLTD | C73: North East Carry Corp Ltd | D73: VINEY PARKASH AGARWAL | E73: BUY | F73: 1,000,000 | G73: 12.1 | H73: NSE
A74: 2021-05-26 | B74: PITTIENG | C74: Pitti Engineering Limited | D74: MANSI SHARES & STOCK ADVISORS PVT LTD | E74: BUY | F74: 250,050 | G74: 90.6 | H74: NSE
A75: 2021-05-26 | B75: SELAN | C75: Selan Exploration Technol | D75: GRAVITON RESEARCH CAPITAL LLP | E75: BUY | F75: 94,775 | G75: 153.1 | H75: NSE
A76: 2021-05-26 | B76: TEXMOPIPES | C76: Texmo Pipe & Products Ltd | D76: ALPHA LEON ENTERPRISES LLP | E76: BUY | F76: 198,991 | G76: 62.7 | H76: NSE
A77: 2021-05-26 | B77: VERTOZ | C77: Vertoz Advertising Ltd | D77: OLGA TRADING PRIVATE LIMITED | E77: BUY | F77: 95,432 | G77: 239.54 | H77: NSE
A78: 2021-05-26 | B78: VIVIDHA | C78: Visagar Polytex Ltd | D78: OLGA TRADING PRIVATE LIMITED | E78: BUY | F78: 5,800,000 | G78: 1.05 | H78: NSE
A79: 2021-05-26 | B79: AARTISURF | C79: Aarti Surfactants Limited | D79: ALPHA LEON ENTERPRISES LLP | E79: SELL | F79: 105,903 | G79: 1309.73 | H79: NSE
A80: 2021-05-26 | B80: AARTISURF | C80: Aarti Surfactants Limited | D80: MATALIA STOCK BROKING TRADING A/C | E80: SELL | F80: 82,947 | G80: 1317.57 | H80: NSE
A81: 2021-05-26 | B81: AARTISURF | C81: Aarti Surfactants Limited | D81: MANSI SHARES & STOCK ADVISORS PVT LTD | E81: SELL | F81: 72,169 | G81: 1320.74 | H81: NSE
A82: 2021-05-26 | B82: AARVI | C82: Aarvi Encon Limited | D82: GITA KIRTI AMBANI | E82: SELL | F82: 304,976 | G82: 69.99 | H82: NSE
A83: 2021-05-26 | B83: AMBICAAGAR | C83: Ambica Agarbathies & Arom | D83: ALPHA LEON ENTERPRISES LLP | E83: SELL | F83: 86,198 | G83: 24.05 | H83: NSE
A84: 2021-05-26 | B84: BODALCHEM | C84: Bodal Chemicals Ltd | D84: GRAVITON RESEARCH CAPITAL LLP | E84: SELL | F84: 671,648 | G84: 109.99 | H84: NSE
A85: 2021-05-26 | B85: BOMDYEING | C85: Bombay Dyeing & Mfg Co. | D85: GRAVITON RESEARCH CAPITAL LLP | E85: SELL | F85: 1,086,293 | G85: 84.21 | H85: NSE
A86: 2021-05-26 | B86: BSE | C86: BSE Limited | D86: GRAVITON RESEARCH CAPITAL LLP | E86: SELL | F86: 420,555 | G86: 875.67 | H86: NSE
A87: 2021-05-26 | B87: BSE | C87: BSE Limited | D87: XTX MARKETS LLP | E87: SELL | F87: 293,149 | G87: 881.02 | H87: NSE
A88: 2021-05-26 | B88: CALSOFT | C88: California Soft Ltd. | D88: CHEMOIL ADVANCED MANAGEMENT SERVICES PVT LTD | E88: SELL | F88: 84,100 | G88: 9.8 | H88: NSE
A89: 2021-05-26 | B89: COFFEEDAY | C89: Coffee Day Enterprise Ltd | D89: ALPHA LEON ENTERPRISES LLP | E89: SELL | F89: 1,452,475 | G89: 34.9 | H89: NSE
A90: 2021-05-26 | B90: DISHTV | C90: Dish TV India Limited | D90: SANTOSH INDUSTRIES LTD | E90: SELL | F90: 2,028,348 | G90: 17.31 | H90: NSE
A91: 2021-05-26 | B91: GSS | C91: GSS Infotech Limited | D91: RAISONNEUR CAPITAL LTD | E91: SELL | F91: 388,710 | G91: 62.35 | H91: NSE
A92: 2021-05-26 | B92: GSS | C92: GSS Infotech Limited | D92: UNION BANK OF INDIA TREASURY BRANCH | E92: SELL | F92: 241,500 | G92: 63.95 | H92: NSE
A93: 2021-05-26 | B93: HSCL | C93: Himadri Speciality Chem L | D93: GRAVITON RESEARCH CAPITAL LLP | E93: SELL | F93: 2,421,829 | G93: 53.31 | H93: NSE
A94: 2021-05-26 | B94: JUMPNET | C94: Jump Networks Limited | D94: SHARE INDIA SECURITIES LIMITED | E94: SELL | F94: 447,660 | G94: 7.19 | H94: NSE
A95: 2021-05-26 | B95: JUMPNET | C95: Jump Networks Limited | D95: UNION BANK OF INDIA | E95: SELL | F95: 700,000 | G95: 7.23 | H95: NSE
A96: 2021-05-26 | B96: JUMPNET | C96: Jump Networks Limited | D96: UNION BANK OF INDIA TREASURY BRANCH | E96: SELL | F96: 2,550,000 | G96: 7.19 | H96: NSE
A97: 2021-05-26 | B97: JUSTDIAL | C97: Justdial Ltd. | D97: GRAVITON RESEARCH CAPITAL LLP | E97: SELL | F97: 719,359 | G97: 831.86 | H97: NSE
A98: 2021-05-26 | B98: LOVABLE | C98: Lovable Lingerie Ltd | D98: NK SECURITIES RESEARCH PRIVATE LIMITED | E98: SELL | F98: 100,668 | G98: 126.8 | H98: NSE
A99: 2021-05-26 | B99: LOVABLE | C99: Lovable Lingerie Ltd | D99: GRAVITON RESEARCH CAPITAL LLP | E99: SELL | F99: 136,439 | G99: 124.71 | H99: NSE
A100: 2021-05-26 | B100: NECCLTD | C100: North East Carry Corp Ltd | D100: DHANAASHA MARKETING PRIVATE LIMITED | E100: SELL | F100: 360,593 | G100: 12.1 | H100: NSE
A101: 2021-05-26 | B101: NECCLTD | C101: North East Carry Corp Ltd | D101: ECOTEK GENERAL TRADING L.L.C | E101: SELL | F101: 900,000 | G101: 12.1 | H101: NSE
A102: 2021-05-26 | B102: PENIND | C102: Pennar Industries Ltd | D102: SAIF INDIA IV FII HOLDINGS LIMITED | E102: SELL | F102: 1,113,529 | G102: 21.14 | H102: NSE
A103: 2021-05-26 | B103: PITTIENG | C103: Pitti Engineering Limited | D103: MANSI SHARES & STOCK ADVISORS PVT LTD | E103: SELL | F103: 150,042 | G103: 90.65 | H103: NSE
A104: 2021-05-26 | B104: PITTIENG | C104: Pitti Engineering Limited | D104: SATISH KUMAR AGARWAL | E104: SELL | F104: 275,000 | G104: 90.65 | H104: NSE
A105: 2021-05-26 | B105: PPL | C105: Prakash Pipes Limited | D105: AMARJOTI VANIJYA LLP | E105: SELL | F105: 150,000 | G105: 167.51 | H105: NSE
A106: 2021-05-26 | B106: RELINFRA | C106: Reliance Infrastructu Ltd | D106: HDFC LTD. | E106: SELL | F106: 3,186,811 | G106: 58.92 | H106: NSE
A107: 2021-05-26 | B107: RPPL | C107: Rajshree PolyPack Ltd | D107: UNIFI CAPITAL PVT. LTD - BCAD | E107: SELL | F107: 57,000 | G107: 108.88 | H107: NSE
A108: 2021-05-26 | B108: RUPA | C108: Rupa & Company Ltd | D108: GIRIKA ADVISORY SERVICES LLP | E108: SELL | F108: 416,717 | G108: 338.14 | H108: NSE
A109: 2021-05-26 | B109: SELAN | C109: Selan Exploration Technol | D109: GRAVITON RESEARCH CAPITAL LLP | E109: SELL | F109: 94,775 | G109: 153.19 | H109: NSE
A110: 2021-05-26 | B110: TEXMOPIPES | C110: Texmo Pipe & Products Ltd | D110: ALPHA LEON ENTERPRISES LLP | E110: SELL | F110: 300,000 | G110: 62.7 | H110: NSE
A111: 2021-05-26 | B111: VADILALIND | C111: Vadilal Industries Ltd | D111: KIFS ENTERPRISE | E111: SELL | F111: 48,000 | G111: 1006.92 | H111: NSE
A112: 2021-05-26 | B112: VERTOZ | C112: Vertoz Advertising Ltd | D112: OLGA TRADING PRIVATE LIMITED | E112: SELL | F112: 60,562 | G112: 237.42 | H112: NSE
A113: 2021-05-26 | B113: VIVIDHA | C113: Visagar Polytex Ltd | D113: LAXMIRAMUNA INVESTMENTS PVT LTD | E113: SELL | F113: 2,000,000 | G113: 1.05 | H113: NSE
A114: 2021-05-26 | B114: VIVIDHA | C114: Visagar Polytex Ltd | D114: HIITESH M RITAA | E114: SELL | F114: 1,500,000 | G114: 1.05 | H114: NSE
A115: 2021-05-26 | B115: VIVIDHA | C115: Visagar Polytex Ltd | D115: ATTRIBUTE SHARES & SEC. PVT. LTD. | E115: SELL | F115: 2,500,000 | G115: 1.05 | H115: NSE

Sheet Call Tracker (Equity & F&O)
M5: Back To Main Page
A6: Retail Research Technical Calls & Fundamental Performance Report for the month of May-2021
M7: =Main!B10 -> 2021-05-27
B8: Positional Call
A9: Sr.no | B9: Date | D9: Company | E9: Rec | F9: Rec Price | G9: Stop Loss*** | H9: Call Closed At | I9: Target | J9: Remark | K9: Profit / Loss per Share | L9: All charges | M9: Net Gain / Loss % | N9: Status | O9: Closed Date
A10: 1 | B10: 2021-04-05 | D10: HDFCBANK | E10: Buy | F10: 1465-1475 | G10: 1370 | I10: 1600-1700 | J10: Open | R10: H
A11: 2 | B11: 2021-04-09 | D11: GLAXO | E11: Buy | F11: 1440 | G11: 1370 | H11: 1,545.00 | I11: 1550-1600 | J11: Profit of Rs.105/- | K11: =H11-F11 -> 105 | L11: =(F11*-0.8)/100 -> -11.52 | M11: =(K11+L11)/F11 -> 6.49% | N11: Successful | O11: 2021-05-18 | R11: H
A12: 3 | B12: 2021-04-15 | D12: GMMPFAUDLR | E12: Buy | F12: 4125 | G12: 3850 | H12: 4,390.00 | I12: 4500-4600 | J12: Profit of Rs.265/- | K12: =H12-F12 -> 265 | L12: =(F12*-0.8)/100 -> -33.00 | M12: =(K12+L12)/F12 -> 5.62% | N12: Successful | O12: 2021-05-10 | R12: N
A13: 4 | B13: 2021-04-27 | D13: GODREJAGRO | E13: Buy | F13: 492.5 | G13: 460 | H13: 524.00 | I13: 550 | J13: Profit of Rs.31.50/- | K13: =H13-F13 -> 31.5 | L13: =(F13*-0.8)/100 -> -3.94 | M13: =(K13+L13)/F13 -> 5.60% | N13: Successful | O13: 2021-05-05 | R13: N
A14: 5 | B14: 2021-04-28 | D14: HDFCAMC | E14: Buy | F14: 2790-2810 | G14: 2600 | I14: 3200 | J14: Open | R14: N
A15: 6 | B15: 2021-04-29 | D15: SUMICHEM | E15: Buy | F15: 300 | G15: 278 | H15: 318.00 | I15: 330-340 | J15: Profit of Rs.18/- | K15: =H15-F15 -> 18 | L15: =(F15*-0.8)/100 -> -2.40 | M15: =(K15+L15)/F15 -> 5.20% | N15: Successful | O15: 2021-05-17 | R15: H
A16: 7 | B16: 2021-05-03 | D16: BALKRISIND | E16: Buy | F16: 1750 | G16: 1635 | H16: 1,857.50 | I16: 1950 | J16: Profit of Rs.107.5/- | K16: =H16-F16 -> 107.5 | L16: =(F16*-0.8)/100 -> -14.00 | M16: =(K16+L16)/F16 -> 5.34% | N16: Successful | O16: 2021-05-10 | R16: N
A17: 8 | B17: 2021-05-03 | D17: HDFCLIFE | E17: Buy | F17: 660-666 | G17: 619 | I17: 720-740 | J17: Open | R17: H
A18: 9 | B18: 2021-05-17 | D18: LTI | E18: Buy | F18: 3535 | G18: 3340 | H18: 3,752.50 | I18: 3750-3850 | J18: Profit of Rs.217.5/- | K18: =H18-F18 -> 217.5 | L18: =(F18*-0.8)/100 -> -28.28 | M18: =(K18+L18)/F18 -> 5.35% | N18: Successful | O18: 2021-05-19 | R18: H
A19: 10 | B19: 2021-05-19 | D19: BURGERKING | E19: Buy | F19: 141.5 | G19: 129 | H19: 155.00 | I19: 155-160 | J19: Profit of Rs.13.5/- | K19: =H19-F19 -> 13.5 | L19: =(F19*-0.8)/100 -> -1.13 | M19: =(K19+L19)/F19 -> 8.74% | N19: Successful | O19: 2021-05-25 | R19: H
A20: 11 | B20: 2021-05-21 | D20: RADICO | E20: Buy | F20: 590-595 | G20: 555 | I20: 650-680 | J20: Open | R20: H
A21: 12 | B21: 2021-05-24 | D21: KNRCON | E21: Buy | F21: 230-232 | G21: 217.5 | I21: 255-265 | J21: Open | R21: N
A22: 13 | B22: 2021-05-26 | D22: JKCEMENT | E22: Buy | F22: 2830-2850 | G22: 2650 | I22: 3100-3200 | J22: Open | R22: H
A26: CLBS = Closing Basis ***
A27: Dividend adjusted <> | F27: Reinitiated $
A28: Part book {} | F28: Revised stoploss #
B30: Momentum Call
A31: Sr.no | B31: Date | D31: Company | E31: Rec | F31: Rec Price | G31: Stop Loss | H31: Call Closed At | I31: Target | J31: Remark | K31: Profit / Loss per Share/Lot | L31: All charges | M31: Net Gain / Loss % | N31: Status | O31: Closed Date
A32: 1 | B32: 2021-04-20 | D32: IGL | E32: Buy | F32: 510 | G32: 494 | H32: 526 | I32: 535-545 | J32: Profit of Rs.16/- | K32: =H32-F32 -> 16 | L32: =(F32*-0.7)/100 -> -3.57 | M32: =(K32+L32)/F32 -> 2.44% | N32: Successful | O32: 2021-05-07 | R32: H
A33: 2 | B33: 2021-04-28 | D33: COLPAL | E33: Buy | F33: 1500 | G33: 1450 | H33: 1541 | I33: 1600 | J33: Profit of Rs.41/- | K33: =H33-F33 -> 41 | L33: =(F33*-0.7)/100 -> -10.50 | M33: =(K33+L33)/F33 -> 2.03% | N33: Successful | O33: 2021-05-12 | R33: N
A34: 3 | B34: 2021-04-30 | D34: GUJGASLTD | E34: Buy | F34: 533.5 | G34: 517 | H34: 548.5 | I34: 560-565 | J34: Profit of Rs.15/- | K34: =H34-F34 -> 15 | L34: =(F34*-0.7)/100 -> -3.73 | M34: =(K34+L34)/F34 -> 2.11% | N34: Successful | O34: 2021-05-07 | R34: N
A35: 4 | B35: 2021-05-03 | D35: SUNPHARMA | E35: Buy | F35: 651 | G35: 630 | H35: 663 | I35: 690 | J35: Profit of Rs.12/- | K35: 12 | L35: =(F35*-0.07)/100 -> -0.46 | M35: =(K35+L35)/F35 -> 1.77% | N35: Successful | O35: 2021-05-03 | R35: H
A36: 5 | B36: 2021-05-03 | D36: DABUR | E36: Buy | F36: 543 | G36: 524 | H36: 524 | I36: 570-575 | J36: Loss of Rs. 19/- | K36: -19 | L36: =(F36*-0.7)/100 -> -3.80 | M36: -4.20% | N36: Unsuccessful | O36: 2021-05-10 | R36: H
A37: 6 | B37: 2021-05-04 | D37: BHARTIARTL | E37: Buy | F37: 558.5 | G37: 544 | H37: 574 | I37: 580-590 | J37: Profit of Rs.15.5/- | K37: 15.5 | L37: -3.91 | M37: =(K37+L37)/F37 -> 2.08% | N37: Successful | O37: 2021-05-10 | R37: H
A38: 7 | B38: 2021-05-05 | D38: CAPLIPOINT | E38: Buy | F38: 526 | G38: 510 | H38: 535 | I38: 550 | J38: Profit of Rs.9/- | K38: 9 | L38: -3.68 | M38: =(K38+L38)/F38 -> 1.01% | N38: Successful | O38: 2021-05-06 | R38: N
A39: 8 | B39: 2021-05-05 | D39: AEGISCHEM | E39: Buy | F39: 326.5 | G39: 317 | H39: 338 | I39: 345 | J39: Profit of Rs.11.5/- | K39: 11.5 | L39: -2.29 | M39: 2.82% | N39: Successful | O39: 2021-05-10 | R39: H
A40: 9 | B40: 2021-05-07 | D40: CADILAHC | E40: Buy | F40: 609 | G40: 590 | H40: 628 | I40: 650 | J40: Profit of Rs.19/- | K40: 19 | L40: -4.26 | M40: =(K40+L40)/F40 -> 2.42% | N40: Successful | O40: 2021-05-10 | R40: N
A41: 10 | B41: 2021-05-07 | D41: DHANUKA | E41: Buy | F41: 802.5 | G41: 778 | H41: 825 | I41: 840-850 | J41: Profit of Rs.22.5/- | K41: 22.5 | L41: -5.62 | M41: =(K41+L41)/F41 -> 2.10% | N41: Successful | O41: 2021-05-10 | R41: H
A42: 11 | B42: 2021-05-10 | D42: GUJGASLTD | E42: Buy | F42: 530 | G42: 515 | H42: 530 | I42: 560-565 | J42: Neutral | K42: 0 | L42: -3.71 | M42: =(K42+L42)/F42 -> -0.70% | N42: Neutral | O42: 2021-05-11 | R42: H
A43: 12 | B43: 2021-05-10 | D43: ASIANPAINT | E43: Buy | F43: 2550 | G43: 2475 | H43: 2620 | I43: 2700-2720 | J43: Profit of Rs.70/- | K43: =H43-F43 -> 70 | L43: =(F43*-0.7)/100 -> -17.85 | M43: 2.05% | N43: Successful | O43: 2021-05-14 | R43: H
A44: 13 | B44: 2021-05-11 | D44: PIDILITIND | E44: Buy | F44: 1837 | G44: 1780 | H44: 1877.5 | I44: 1900-1920 | J44: Profit of Rs.40.5/- | K44: =H44-F44 -> 40.5 | L44: =(F44*-0.07)/100 -> -1.29 | M44: =(K44+L44)/F44 -> 2.13% | N44: Successful | O44: 2021-05-11 | R44: H
A45: 14 | B45: 2021-05-11 | D45: STAR | E45: Buy | F45: 846.5 | G45: 820 | H45: 820 | I45: 895 | J45: Loss of Rs. 26.5/- | K45: =H45-F45 -> -26.5 | L45: =(F45*-0.7)/100 -> -5.93 | M45: -3.83% | N45: Unsuccessful | O45: 2021-05-12 | R45: N
A46: 15 | B46: 2021-05-12 | D46: GUJGASLTD | E46: Buy | F46: 524 | G46: 507 | H46: 507 | I46: 560 | J46: Loss of Rs. 17/- | K46: =H46-F46 -> -17 | L46: =(F46*-0.7)/100 -> -3.67 | M46: =(K46+L46)/F46 -> -3.94% | N46: Unsuccessful | O46: 2021-05-14 | R46: N
A47: 16 | B47: 2021-05-14 | D47: IGL | E47: Buy | F47: 514-517 | G47: 497 | I47: 540-550 | J47: Open | R47: H
A48: 17 | B48: 2021-05-14 | D48: CCL | E48: Buy | F48: 292 | G48: 284 | H48: 298.5 | I48: 310 | J48: Profit of Rs.6.5/- | K48: =H48-F48 -> 6.5 | L48: =(F48*-0.07)/100 -> -0.20 | M48: =(K48+L48)/F48 -> 2.16% | N48: Successful | O48: 2021-05-14 | R48: H
A49: 18 | B49: 2021-05-14 | D49: IPCALAB | E49: Buy | F49: 2160 | G49: 2090 | H49: 2225 | I49: 2250-2260 | J49: Profit of Rs.65/- | K49: =H49-F49 -> 65 | L49: =(F49*-0.7)/100 -> -15.12 | M49: 2.31% | N49: Successful | O49: 2021-05-20 | R49: N
A50: 19 | B50: 2021-05-18 | D50: BHARTIARTL | E50: Buy | F50: 541 | G50: 524 | H50: 523 | I50: 570-575 | J50: Loss of Rs. 18/- | K50: =H50-F50 -> -18 | L50: =(F50*-0.7)/100 -> -3.79 | M50: -4.03% | N50: Unsuccessful | O50: 2021-05-20 | R50: H
A51: 20 | B51: 2021-05-18 | D51: BEML | E51: Buy | F51: 1321.5 | G51: 1280 | H51: 1357 | I51: 1380-1400 | J51: Profit of Rs.35.50/- | K51: =H51-F51 -> 35.5 | L51: =(F51*-0.7)/100 -> -9.25 | M51: =(K51+L51)/F51 -> 1.99% | N51: Successful | O51: 2021-05-21 | R51: N
A52: 21 | B52: 2021-05-18 | D52: GUJGASLTD | E52: Buy | F52: 527-530 | G52: 514 | I52: 560 | J52: Open | R52: H
A53: 22 | B53: 2021-05-20 | D53: SUNTV | E53: Buy | F53: 535.5 | G53: 518 | H53: 517 | I53: 555 | J53: Loss of Rs. 18.5/- | K53: =H53-F53 -> -18.5 | L53: =(F53*-0.7)/100 -> -3.75 | M53: =(K53+L53)/F53 -> -4.15% | N53: Unsuccessful | O53: 2021-05-24 | R53: N
A54: 23 | B54: 2021-05-20 | D54: SBIN | E54: Buy | F54: 384 | G54: 369 | H54: 397 | I54: 405-415 | J54: Profit of Rs.13/- | K54: =H54-F54 -> 13 | L54: =(F54*-0.7)/100 -> -2.69 | M54: =(K54+L54)/F54 -> 2.69% | N54: Successful | O54: 2021-05-21 | R54: H
A55: 24 | B55: 2021-05-20 | D55: HCLTECH | E55: Buy | F55: 923-927 | G55: 889 | I55: 970-980 | J55: Open | R55: H
A56: 25 | B56: 2021-05-21 | D56: BEML | E56: Buy | F56: 1312-1316 | G56: 1275 | I56: 1380-1400 | J56: Open | R56: N
A57: 26 | B57: 2021-05-25 | D57: EXIDEIND | E57: Buy | F57: 190-191 | G57: 185 | I57: 200-205 | J57: Open | R57: H
A58: 27 | B58: 2021-05-26 | D58: TVSMOTOR | E58: Buy | F58: 639 | G58: 619 | H58: 653 | I58: 670-680 | J58: Profit of Rs.14/- | K58: =H58-F58 -> 14 | L58: =(F58*-0.07)/100 -> -0.45 | M58: =(K58+L58)/F58 -> 2.12% | N58: Successful | O58: 2021-05-26 | R58: N
A62: CLBS = Closing Basis *** | H62: *
A63: Dividend adjusted <> | F63: Reinitiated $
F64: Revised stoploss #
A66: Master Trade High Risk
A67: Sr.no | B67: Date | D67: Company | E67: Rec | F67: Rec Price | G67: Stop Loss | H67: Call Closed At | I67: Target | J67: Remark | K67: Profit / Loss per share | L67: All charges | M67: Gain / Loss per Lot | N67: Lot | O67: Status | P67: Closed Date
A68: 1 | B68: 2021-05-05 | D68: CIPLA MAY FUT | E68: Buy | F68: 893 | G68: 871 | H68: 908.5 | I68: 730 | J68: Profit of Rs.15.5/- | K68: =H68-F68 -> 15.5 | L68: =(H68*N68)*0.07% -> 413.37 | M68: =(K68*N68)-L68 -> 9661.6 | N68: 650 | O68: Successful | P68: 2021-05-06 | R68: N
A69: 2 | B69: 2021-05-06 | D69: SUNPHARMA MAY FUT | E69: Buy | F69: 683 | G69: 674 | H69: 692.5 | I69: 705 | J69: Profit of Rs.9.5/- | K69: =H69-F69 -> 9.5 | L69: 678.65 | M69: =(K69*N69)-L69 -> 12621.4 | N69: 1400 | O69: Successful | P69: 2021-05-06 | R69: H
A70: 3 | B70: 2021-05-06 | D70: CIPLA MAY FUT | E70: Buy | F70: 895 | G70: 874 | H70: 906 | I70: 935 | J70: Profit of Rs.11/- | K70: 11 | L70: 412.23 | M70: 6737.8 | N70: 650 | O70: Successful | P70: 2021-05-10 | R70: H
A71: 4 | B71: 2021-05-12 | D71: CIPLA MAY FUT | E71: Buy | F71: 895 | G71: 874 | H71: 908.5 | I71: 935 | J71: Profit of Rs.13.5/- | K71: =H71-F71 -> 13.5 | L71: 413.37 | M71: =(K71*N71)-L71 -> 8361.6 | N71: 650 | O71: Successful | P71: 2021-05-12 | R71: N
A72: 5 | B72: 2021-05-14 | D72: CUMMINSIND MAY FUT | E72: Buy | F72: 826 | G72: 805 | H72: 805 | I72: 850-860 | J72: Loss of Rs.21/- | K72: -21 | L72: 338.10 | M72: -12938.1 | N72: 600 | O72: Unsuccessful | P72: 2021-05-17 | R72: N
A73: 6 | B73: 2021-05-19 | D73: ITC MAY FUT | E73: Buy | F73: 209 | G73: 204 | H73: 212.1 | I73: 217 | J73: Profit of Rs.3.15/- | K73: 3.1 | L73: 475.10 | M73: =(3.15*N73)-575 -> 9505 | N73: 3200 | O73: Successful | P73: 2021-05-24 | R73: H
D74: ITC 215 CE MAY | E74: Buy | F74: 1.5 | H74: 1.45 | K74: =F74-H74 -> 0.05 | L74: 100.00 | R74: H
A78: Master Trade Medium Risk
A79: Sr.no | B79: Date | D79: Company | E79: Rec | F79: Rec Price | G79: Stop Loss | H79: Call Closed At | I79: Target | J79: Remark | K79: Profit/ Loss per lot | L79: All charges | M79: Gain / Loss per Lot | N79: Lot | O79: Status | P79: Closed Date
A80: 1 | B80: 2021-05-03 | D80: ICICIBANK 620 CE MAY | E80: Buy | F80: 12 | G80: 8 | H80: 13.25 | I80: 20 | J80: Profit of Rs.1.25/- | K80: =H80-F80 -> 1.25 | L80: 100 | M80: =(K80*N80)-L80 -> 1618.8 | N80: 1375 | O80: Successful | P80: 2021-05-03 | R80: H
A81: 2 | B81: 2021-05-04 | D81: HINDUNILVR 2440 CE MAY | E81: Buy | F81: 37 | G81: 19 | H81: 45 | I81: 70-75 | J81: Profit of Rs.8/- | K81: 8 | L81: 100 | M81: 2300.0 | N81: 300 | O81: Successful | P81: 2021-05-04 | R81: H
A82: 3 | B82: 2021-05-04 | D82: HINDUNILVR 2460 CE MAY | E82: Buy | F82: 36 | G82: 19 | H82: 40.5 | I82: 70-75 | J82: Profit of Rs.4.5/- | K82: 4.5 | L82: 100 | M82: 1250.0 | N82: 300 | O82: Successful | P82: 2021-05-04 | R82: H
A83: 4 | B83: 2021-05-04 | D83: NIFTY 14500 PE 06-MAY | E83: Buy | F83: 57.5 | G83: 19 | H83: 74 | I83: 120 | J83: Profit of Rs.16.5/- | K83: 16.5 | L83: 100 | M83: 1137.5 | N83: 75 | O83: Successful | P83: 2021-05-04 | R83: N
A84: 5 | B84: 2021-05-05 | D84: HDFC 2500 CE MAY | E84: Buy | F84: 41 | G84: 25 | H84: 47.5 | I84: 70-75 | J84: Profit of Rs.6.5/- | K84: 6.5 | L84: 100 | M84: 1850.0 | N84: 300 | O84: Successful | P84: 2021-05-05 | R84: H
A85: 6 | B85: 2021-05-05 | D85: HDFC 2500 CE MAY | E85: Buy | F85: 39 | G85: 24 | H85: 45 | I85: 70-75 | J85: Profit of Rs.6/- | K85: 6 | L85: 100 | M85: 1700.0 | N85: 300 | O85: Successful | P85: 2021-05-06 | R85: H
A86: 7 | B86: 2021-05-05 | D86: HINDUNILVR 2460 CE MAY | E86: Buy | F86: 36 | G86: 19 | H86: 39.5 | I86: 70-75 | J86: Profit of Rs.3.5/- | K86: =H86-F86 -> 3.5 | L86: 100 | M86: =(K86*N86)-L86 -> 950.0 | N86: 300 | O86: Successful | P86: 2021-05-10 | R86: H
A87: 8 | B87: 2021-05-06 | D87: NIFTY 14650 CE 06-MAY | E87: Buy | F87: 35 | H87: 49 | I87: 90 | J87: Profit of Rs.14/- | K87: =H87-F87 -> 14 | L87: 100 | M87: =(K87*N87)-L87 -> 950.0 | N87: 75 | O87: Successful | P87: 2021-05-06 | R87: N
A88: 9 | B88: 2021-05-06 | D88: HDFCBANK 1420 CE MAY | E88: Buy | F88: 37 | G88: 27 | H88: 41 | I88: 55 | J88: Profit of Rs.4/- | K88: =H88-F88 -> 4 | L88: 100 | M88: =(K88*N88)-L88 -> 2100.0 | N88: 550 | O88: Successful | P88: 2021-05-07 | R88: N
A89: 10 | B89: 2021-05-06 | D89: ICICIBANK 620 CE MAY | E89: Buy | F89: 12.5 | G89: 7.5 | H89: 16 | I89: 20 | J89: Profit of Rs.3.5/- | K89: =H89-F89 -> 3.5 | L89: 100 | M89: =(K89*N89)-L89 -> 4712.5 | N89: 1375 | O89: Successful | P89: 2021-05-07 | R89: H
A90: 11 | B90: 2021-05-07 | D90: NIFTY 14750 PE 12-MAY | E90: Buy | F90: 96 | G90: 58 | H90: 110 | I90: 170 | J90: Profit of Rs.14/- | K90: 14 | L90: 100 | M90: 950.0 | N90: 75 | O90: Successful | P90: 2021-05-07 | R90: N
A91: 12 | B91: 2021-05-07 | D91: DABUR 550 CE MAY | E91: Buy | F91: 12 | G91: 7 | H91: 13 | I91: 18-20 | J91: Profit of Rs.1/- | K91: =H91-F91 -> 1 | L91: 100 | M91: =(K91*N91)-L91 -> 1150.0 | N91: 1250 | O91: Successful | P91: 2021-05-07 | R91: H
A92: 13 | B92: 2021-05-10 | D92: NIFTY 14900 PE 12-MAY | E92: Buy | F92: 69 | G92: 38 | H92: 78 | I92: 130 | J92: Profit of Rs.9/- | K92: =H92-F92 -> 9 | L92: 100 | M92: =(K92*N92)-L92 -> 575.0 | N92: 75 | O92: Successful | P92: 2021-05-10 | R92: N
A93: 14 | B93: 2021-05-11 | D93: ICICIBANK 620 CE MAY | E93: Buy | F93: 9.75 | G93: 5.5 | H93: 11.75 | I93: 15-17 | J93: Profit of Rs.2/- | K93: =H93-F93 -> 2 | L93: 100 | M93: =(K93*N93)-L93 -> 2650.0 | N93: 1375 | O93: Successful | P93: 2021-05-11 | R93: N
A94: 15 | B94: 2021-05-11 | D94: NIFTY 14850 PE 12-MAY | E94: Buy | F94: 61 | G94: 25 | H94: 77 | I94: 120 | J94: Profit of Rs.16/- | K94: =H94-F94 -> 16 | L94: 100 | M94: =(K94*N94)-L94 -> 1100.0 | N94: 75 | O94: Successful | P94: 2021-05-11 | R94: N
A95: 16 | B95: 2021-05-11 | D95: CIPLA 930 CE MAY | E95: Buy | F95: 26.5 | G95: 17 | H95: 32 | I95: 45-50 | J95: Profit of Rs.5.5/- | K95: =H95-F95 -> 5.5 | L95: 100 | M95: =(K95*N95)-L95 -> 3475.0 | N95: 650 | O95: Successful | P95: 2021-05-14 | R95: H
A96: 17 | B96: 2021-05-12 | D96: PIDILITIND 1900 CE MAY | E96: Buy | F96: 34 | G96: 24 | H96: 39.5 | I96: 50-55 | J96: Profit of Rs.5.5/- | K96: =H96-F96 -> 5.5 | L96: 100 | M96: =(K96*N96)-L96 -> 2650.0 | N96: 500 | O96: Successful | P96: 2021-05-12 | R96: H
A97: 18 | B97: 2021-05-12 | D97: DABUR 545 CE MAY | E97: Sell | F97: 6-6.2 | G97: 10.5 | I97: 0.1 | J97: Open | R97: H
A98: 19 | B98: 2021-05-12 | D98: HDFCBANK 1420 CE MAY | E98: Buy | F98: 25 | G98: 15 | H98: 28 | I98: 40-45 | J98: Profit of Rs.3/- | K98: =H98-F98 -> 3 | L98: 100 | M98: =(K98*N98)-L98 -> 1550.0 | N98: 550 | O98: Successful | P98: 2021-05-17 | R98: N
A99: 20 | B99: 2021-05-12 | D99: ICICIBANK 620 CE MAY | E99: Buy | F99: 7.5 | G99: 4 | H99: 9.25 | I99: 14-16 | J99: Profit of Rs.1.75/- | K99: =H99-F99 -> 1.75 | L99: 100 | M99: =(K99*N99)-L99 -> 2306.3 | N99: 1375 | O99: Successful | P99: 2021-05-17 | R99: H
A100: 21 | B100: 2021-05-14 | D100: CIPLA 930 CE MAY | E100: Buy | F100: 28.5 | G100: 19 | H100: 21 | I100: 45-50 | J100: Loss of Rs.7.5/- | K100: -7.5 | L100: 100 | M100: =(K100*N100)-L100 -> -4975.0 | N100: 650 | O100: Unsuccessful | P100: 2021-05-17 | R100: H
A101: 22 | B101: 2021-05-14 | D101: NIFTY 14750 CE 20-MAY | E101: Buy | F101: 86.5 | G101: 40 | H101: 101.5 | I101: 150-170 | J101: Profit of Rs.15/- | K101: =H101-F101 -> 15 | L101: 100 | M101: =(K101*N101)-L101 -> 1025.0 | N101: 75 | O101: Successful | P101: 2021-05-14 | R101: N
A102: 23 | B102: 2021-05-14 | D102: BHARTIARTL 580 CE MAY | E102: Buy | F102: 9 | G102: 6 | H102: 6 | I102: 15-17 | J102: Loss of Rs.3/- | K102: =H102-F102 -> -3 | L102: 100 | M102: =(K102*N102)-L102 -> -5653.0 | N102: 1851 | O102: Unsuccessful | P102: 2021-05-18 | R102: H
A103: 24 | B103: 2021-05-17 | D103: NIFTY 14700 PE 20-MAY | E103: Buy | F103: 79 | G103: 35 | H103: 39 | I103: 150 | J103: Loss of Rs.40/- | K103: =H103-F103 -> -40 | L103: 100 | M103: =(K103*N103)-L103 -> -3100.0 | N103: 75 | O103: Unsuccessful | P103: 2021-05-17 | R103: N
A104: 25 | B104: 2021-05-17 | D104: M&MFIN 170 CE MAY | E104: Sell | F104: 2.5 | G104: 3.75 | H104: 1.35 | I104: 0.1 | J104: Profit of Rs.1.15/- | K104: =F104-H104 -> 1.15 | L104: 100 | M104: =(K104*N104)-L104 -> 4500.0 | N104: 4000 | O104: Successful | P104: 2021-05-24 | R104: N
A105: 26 | B105: 2021-05-17 | D105: BATAINDIA 1420 CE MAY | E105: Buy | F105: 27 | G105: 17 | H105: 31 | I105: 40-45 | J105: Profit of Rs.4/- | K105: =H105-F105 -> 4 | L105: 100 | M105: =(K105*N105)-L105 -> 2100.0 | N105: 550 | O105: Successful | P105: 2021-05-17 | R105: N
A106: 27 | B106: 2021-05-18 | D106: HDFCBANK 1480 CE MAY | E106: Buy | F106: 16 | G106: 6.5 | H106: 20.5 | I106: 30-35 | J106: Profit of Rs.4.5/- | K106: 4.5 | L106: 100 | M106: 2375.0 | N106: 550 | O106: Successful | P106: 2021-05-18 | R106: N
A107: 28 | B107: 2021-05-18 | D107: M&M 800 CE MAY | E107: Buy | F107: 15.5 | G107: 7 | H107: 19.5 | I107: 25-30 | J107: Profit of Rs.4/- | K107: =H107-F107 -> 4 | L107: 100 | M107: =(K107*N107)-L107 -> 2700.0 | N107: 700 | O107: Successful | P107: 2021-05-18 | R107: H
A108: 29 | B108: 2021-05-18 | D108: MARUTI 6900 CE MAY | E108: Buy | F108: 98 | G108: 49 | H108: 109 | I108: 160-190 | J108: Profit of Rs.11/- | K108: 11 | L108: 100 | M108: 1000.0 | N108: 100 | O108: Successful | P108: 2021-05-24 | R108: N
A109: 30 | B109: 2021-05-18 | D109: M&M 800 CE MAY | E109: Buy | F109: 15 | G109: 7 | H109: 19.5 | I109: 25-30 | J109: Profit of Rs.4.5/- | K109: =H109-F109 -> 4.5 | L109: 100 | M109: =(K109*N109)-L109 -> 3050.0 | N109: 700 | O109: Successful | P109: 2021-05-20 | R109: H
A110: 31 | B110: 2021-05-19 | D110: HDFCBANK 1480 CE MAY | E110: Buy | F110: 15.75 | G110: 6.5 | H110: 18.5 | I110: 30-35 | J110: Profit of Rs.2.75/- | K110: =H110-F110 -> 2.75 | L110: 100 | M110: =(K110*N110)-L110 -> 1412.5 | N110: 550 | O110: Successful | P110: 2021-05-21 | R110: H
A111: 32 | B111: 2021-05-19 | D111: NIFTY 15100 CE 20-MAY | E111: Buy | F111: 43.5 | G111: 5 | H111: 5 | I111: 100-120 | J111: Loss of Rs.38.5/- | K111: =H111-F111 -> -38.5 | L111: 100 | M111: =(K111*N111)-L111 -> -2987.5 | N111: 75 | O111: Unsuccessful | P111: 2021-05-20 | R111: H
A112: 33 | B112: 2021-05-20 | D112: M&M 810 CE MAY | E112: Buy | F112: 13.5 | G112: 6 | H112: 17.5 | I112: 25-27 | J112: Profit of Rs.4/- | K112: =H112-F112 -> 4 | L112: 100 | M112: =(K112*N112)-L112 -> 2700.0 | N112: 700 | O112: Successful | P112: 2021-05-21 | R112: H
A113: 34 | B113: 2021-05-21 | D113: RELIANCE 2000 CE MAY | E113: Buy | F113: 28 | G113: 10 | H113: 10 | I113: 50-60 | J113: Loss of Rs.18/- | K113: -18 | L113: 100 | M113: -4600.0 | N113: 250 | O113: Unsuccessful | P113: 2021-05-25 | R113: N
A114: 35 | B114: 2021-05-21 | D114: HDFC 2520 CE MAY | E114: Buy | F114: 28 | G114: 10 | H114: 38 | I114: 50-60 | J114: Profit of Rs.10/- | K114: =H114-F114 -> 10 | L114: 100 | M114: =(K114*N114)-L114 -> 2900.0 | N114: 300 | O114: Successful | P114: 2021-05-24 | R114: H
A115: 36 | B115: 2021-05-24 | D115: M&M 810 CE MAY | E115: Buy | F115: 11.5 | G115: 5 | H115: 15 | I115: 25-30 | J115: Profit of Rs.3.5/- | K115: =H115-F115 -> 3.5 | L115: 100 | M115: =(K115*N115)-L115 -> 2350.0 | N115: 700 | O115: Successful | P115: 2021-05-25 | R115: H
A116: 37 | B116: 2021-05-24 | D116: SBIN 410 CE MAY | E116: Buy | F116: 5.75 | G116: 2 | H116: 7.75 | I116: 12-14.0 | J116: Profit of Rs.2/- | K116: =H116-F116 -> 2 | L116: 100 | M116: =(K116*N116)-L116 -> 2900.0 | N116: 1500 | O116: Successful | P116: 2021-05-24 | R116: N
A117: 38 | B117: 2021-05-24 | D117: BANKNIFTY 35000 CE MAY | E117: Buy | F117: 335 | G117: 150 | H117: 415 | I117: 600-700 | J117: Profit of Rs.80/- | K117: =H117-F117 -> 80 | L117: 100 | M117: =(K117*N117)-L117 -> 1900.0 | N117: 25 | O117: Successful | P117: 2021-05-24 | R117: H
A118: 39 | B118: 2021-05-24 | D118: ESCORTS 1200 CE MAY | E118: Buy | F118: 14.5 | G118: 4.5 | H118: 4.5 | I118: 25-30 | J118: Loss of Rs.10/- | K118: -10 | L118: 100 | M118: -5600.0 | N118: 550 | O118: Unsuccessful | P118: 2021-05-25 | R118: N
A119: 40 | B119: 2021-05-25 | D119: SBIN 410 CE MAY | E119: Buy | F119: 4.5 | H119: 7.4 | I119: 10-12.0 | J119: Profit of Rs.2.9/- | K119: 2.9 | L119: 100 | M119: 4250.0 | N119: 1500 | O119: Successful | P119: 2021-05-25 | R119: H
A120: 41 | B120: 2021-05-26 | D120: NIFTY 15300 PE MAY | E120: Buy | F120: 52-55 | G120: 12 | I120: 100-120 | J120: Open | R120: N
A124: Techno -Funda (positional)
A125: Sr.no | B125: Date | D125: Company | E125: Rec | F125: Rec Price | G125: Stop Loss*** | H125: Call Closed At | I125: Target | J125: Remark | K125: Profit / Loss per Share/Lot | L125: All charges | M125: Net Gain / Loss % | N125: Status | O125: Closed Date
A126: 1 | B126: 2021-02-11 | D126: MCX | E126: Buy | F126: 1515 | G126: 1390 | H126: 1645 | I126: 1800-1850 | J126: Profit of Rs.130/- | K126: =H126-F126 -> 130 | L126: =(F126*-0.8)/100 -> -12.12 | M126: =(K126+L126)/F126 -> 7.78% | N126: Successful | O126: 2021-05-20 | R126: H
A127: 2 | B127: 2021-05-11 | D127: RITES | E127: Buy | F127: 237-241 | G127: 218 | I127: 280-290 | J127: Open | R127: H
A128: 3 | B128: 2021-05-12 | D128: KEC | E128: Buy | F128: 383.5 | G128: 348 | H128: 420.5 | I128: 450-470 | J128: Profit of Rs.37/- | K128: =H128-F128 -> 37 | L128: =(F128*-0.8)/100 -> -3.07 | M128: =(K128+L128)/F128 -> 8.85% | N128: Successful | O128: 2021-05-24 | R128: H
A130: CLBS = Closing Basis *** | F130: Reinitiated $
A131: Dividend adjusted <> | F131: Revised stoploss #
B133: Intrday Call
A134: Sr.no | B134: Date | D134: Company | E134: Rec | F134: Rec Price | G134: Stop Loss | H134: Call Closed At | I134: Target | J134: Remark | K134: Profit / Loss per Share/Lot | L134: Gain / Loss per Lot | M134: Lot | N134: All charges | O134: Net Gain / Loss % | P134: Status | Q134: Closed Date
B147: Investment Idea
A148: Sr.no | B148: Date | D148: Company | E148: Rec | F148: Rec Price | G148: Point of Review | H148: Close Rate | I148: Target | J148: Remark | K148: Profit / Loss per Share | L148: Gain / Loss % | M148: Status | N148: Closed Date
A149: 1 | B149: 2013-11-01 | D149: L&T Finance Holding | E149: Accu | F149: 82.00 | G149: - | H149: 100 | I149: 100.00 | J149: Target Achieved | K149: =H149-F149 -> 18.00 | L149: =K149/F149 -> 21.95% | M149: Successful | N149: 2016-10-14
A150: 2 | B150: 2014-06-04 | D150: Finolex Inds | E150: Buy | F150: 257.00 | G150: - | H150: 300 | I150: 300.00 | J150: Target Achieved | K150: 43.00 | L150: 16.73% | M150: Successful | N150: 2014-07-02
A151: 3 | B151: 2014-07-08 | D151: JK Cement | E151: Buy | F151: 393.00 | G151: - | H151: 468 | I151: 468.00 | J151: Target Achieved | K151: 75.00 | L151: 19.08% | M151: Successful | N151: 2014-08-12
A152: 4 | B152: 2014-08-06 | D152: Finolex Cables | E152: Buy | F152: 205.00 | G152: - | H152: 275 | I152: 250.00 | J152: Target Achieved | K152: 70.00 | L152: 34.15% | M152: Successful | N152: 2014-11-19
A153: 5 | B153: 2014-09-04 | D153: Exide Inds | E153: Buy | F153: 162.00 | G153: - | H153: 190 | I153: 190.00 | J153: Target Achieved | K153: 28.00 | L153: 17.28% | M153: Successful | N153: 2015-01-02
A154: 6 | B154: 2014-09-04 | D154: Deepak Nitrite | E154: Buy | F154: 75.00 | G154: - | H154: 91.5 | I154: 95-100 | J154: Profit of Rs.16.50/- | K154: 16.50 | L154: 22.00% | M154: Successful | N154: 2014-11-11
A155: 7 | B155: 2014-10-01 | D155: Mercks | E155: Buy | F155: 850.00 | G155: - | H155: 982.5 | I155: 1050.00 | J155: Profit of Rs.132.50/- | K155: 132.50 | L155: 15.59% | M155: Successful | N155: 2015-02-04
A156: 8 | B156: 2014-10-01 | D156: Grindwell Norton | E156: Buy | F156: 475.00 | G156: - | H156: 515 | I156: 600.00 | J156: Profit of Rs.40/- | K156: 40.00 | L156: 8.42% | M156: Successful | N156: 2014-10-27
A157: 9 | B157: 2014-10-01 | D157: Snowman Logistics | E157: Buy | F157: 86.00 | G157: - | H157: 99 | I157: 140.00 | J157: Profit of Rs.13.00/- | K157: 13.00 | L157: 15.12% | M157: Successful | N157: 2014-10-27
A158: 10 | B158: 2014-10-14 | D158: Birla Corp | E158: Buy | F158: 496.60 | G158: - | H158: 621 | I158: 580.00 | J158: Target Achieved | K158: 124.40 | L158: 25.05% | M158: Successful | N158: 2016-08-23
A159: 11 | B159: 2014-10-14 | D159: Ultratech Cem | E159: Buy | F159: 2481.90 | G159: - | H159: 2840 | I159: 2870.00 | J159: Profit of Rs.358.10/- | K159: 358.10 | L159: 14.43% | M159: Successful | N159: 2015-01-13
A160: 12 | B160: 2014-10-16 | D160: Sintex Inds | E160: Buy | F160: 84.50 | G160: - | H160: 93 | I160: 110.00 | J160: Profit of Rs.8.50/- | K160: 8.50 | L160: 10.06% | M160: Successful | N160: 2014-10-27
A161: 13 | B161: 2014-10-16 | D161: HSIL | E161: Buy | F161: 401.00 | G161: - | H161: 428 | I161: 450.00 | J161: Profit of Rs.27.00/- | K161: 27.00 | L161: 6.73% | M161: Successful | N161: 2015-01-16
A162: 14 | B162: 2014-10-16 | D162: Eveready Inds | E162: Buy | F162: 101.00 | G162: - | H162: 112 | I162: 120.00 | J162: Profit of Rs.11.00/- | K162: 11.00 | L162: 10.89% | M162: Successful | N162: 2014-10-27
A163: 15 | B163: 2014-11-11 | D163: Pennar Inds | E163: Buy | F163: 59.00 | G163: - | H163: 76 | I163: 76.00 | J163: Target Achieved | K163: 17.00 | L163: 28.81% | M163: Successful | N163: 2017-10-24
A164: 16 | B164: 2014-11-11 | D164: Snowman Logistics | E164: Buy | F164: 99.00 | G164: - | H164: 120 | I164: 120.00 | J164: Profit of Rs.21/- | K164: 21.00 | L164: 21.21% | M164: Successful | N164: 2014-11-17
A165: 17 | B165: 2014-11-13 | D165: Dharamsi Morarji Chem | E165: Buy | F165: 22.00 | G165: - | H165: 33.55 | I165: 32.00 | J165: Profit of Rs 11.55/- | K165: 11.55 | L165: 52.50% | M165: Successful | N165: 2015-07-03
A166: 18 | B166: 2014-12-03 | D166: Tatachem | E166: Buy | F166: 440.00 | G166: - | H166: 520 | I166: 520.00 | J166: Profit of Rs 80.00/- | K166: 80.00 | L166: 18.18% | M166: Successful | N166: 2015-07-23
A167: 19 | B167: 2014-12-03 | D167: Advanta | E167: Buy | F167: 360.00 | G167: - | H167: 427 | I167: 425.00 | J167: Profit of Rs.67.00/- | K167: 67.00 | L167: 18.61% | M167: Successful | N167: 2015-02-23
A168: 20 | B168: 2015-01-08 | D168: GDL | E168: Buy | F168: 360.00 | G168: - | H168: 455 | I168: 420.00 | J168: Profit of Rs.95.00/- | K168: 95.00 | L168: 26.39% | M168: Successful | N168: 2015-01-20
A169: 21 | B169: 2015-01-08 | D169: NRB Bearing | E169: Buy | F169: 130.00 | H169: 175.5 | I169: 165.00 | J169: Profit of Rs 45.50/- | K169: 45.50 | L169: 35.00% | M169: Successful | N169: 2017-12-19
A170: 22 | B170: 2015-02-05 | D170: GSFC | E170: Accu | F170: 98.00 | H170: 120 | I170: 120.00 | J170: Target Achieved | K170: 22.00 | L170: 22.45% | M170: Successful | N170: 2017-01-18
A171: 23 | B171: 2015-02-05 | D171: Sundrmfast | E171: Accu | F171: 196.00 | H171: 262 | I171: 255.00 | J171: Target Achieved | K171: 66.00 | L171: 33.67% | M171: Successful | N171: 2016-08-17
A172: 24 | B172: 2015-03-04 | D172: GPPL | E172: Accu | F172: 235 | H172: 77.00 | I172: 280-285 | J172: Loss of Rs.158/- | K172: -158.00 | L172: -67.23% | M172: Unsuccessful | N172: 2019-02-26
A173: 25 | B173: 2015-03-04 | D173: ORIENTCEM | E173: Accu | F173: 185.00 | H173: 224 | I173: 220-225 | J173: Target Achieved | K173: 39.00 | L173: 21.08% | M173: Successful | N173: 2016-10-04
A174: 26 | B174: 2015-03-27 | D174: PFS | E174: Accu | F174: 49.5 | H174: 15.85 | I174: 67.00 | J174: Loss of Rs.33.65/- | K174: -33.65 | L174: -68% | M174: Unsuccessful | N174: 2019-06-11
A175: 27 | B175: 2015-03-30 | D175: Walchandnagar Ind Ltd | E175: Accu | F175: 183.50 | H175: 219 | I175: 218.00 | J175: Profit of Rs.35.50/- | K175: 35.50 | L175: 19.35% | M175: Successful | N175: 2015-04-09
A176: 28 | B176: 2015-04-20 | D176: Kalpataru Power Transmission Ltd | E176: Accu | F176: =(227+237)/2 -> 232.00 | H176: 298 | I176: 298.00 | J176: Target Achieved | K176: 66.00 | L176: 28.45% | M176: Successful | N176: 2017-03-29
A177: 29 | B177: 2015-05-04 | D177: Mastek Ltd | E177: Buy | F177: 385.00 | H177: =212.5+331 -> 543.5 | I177: 510.00 | J177: Profit of Rs 158.50/- | K177: 158.50 | L177: 41.17% | M177: Successful | N177: 2015-08-19
A178: 30 | B178: 2015-05-04 | D178: Suprajit Eng | E178: Buy | F178: 115.50 | H178: 146 | I178: 142.00 | J178: Profit of Rs 30.50/- | K178: 30.50 | L178: 26.41% | M178: Successful | N178: 2015-07-17
A179: 31 | B179: 2015-05-27 | D179: TCI | E179: Buy | F179: 237.50 | H179: 279.5 | I179: 278.00 | J179: Target Achieved | K179: 42.00 | L179: 17.68% | M179: Successful | N179: 2015-08-06
A180: 32 | B180: 2015-06-19 | D180: HSIL | E180: Accu | F180: 340.00 | H180: 448 | I180: 448.00 | J180: Target Achieved | K180: 108.00 | L180: 31.76% | M180: Successful | N180: 2017-10-10
A181: 33 | B181: 2015-07-06 | D181: Capital First | E181: Accu | F181: 390.00 | H181: 460 | I181: 460.00 | J181: Target Achieved | K181: =H181-F181 -> 70.00 | L181: =K181/F181 -> 17.95% | M181: Successful | N181: 2016-04-18
A182: 34 | B182: 2015-07-10 | D182: Dolphin OffShore | E182: Accu | F182: 122.5 | H182: 61.00 | I182: 172.00 | J182: Loss of Rs.61.50/- | K182: -61.50 | L182: -50.20% | M182: Unsuccessful | N182: 2018-08-21
A183: 35 | B183: 2015-08-03 | D183: Allcargo logistics | E183: Accu | F183: 297.50 | H183: 350 | I183: 360.00 | J183: Profit of Rs 52.50/- | K183: 52.50 | L183: 17.65% | M183: Successful | N183: 2015-08-16
A184: 36 | B184: 2015-08-03 | D184: Camline Fine | E184: Accu | F184: 115.50 | H184: 149 | I184: 140.00 | J184: Profit of Rs 33.50/- | K184: 33.50 | L184: 29.00% | M184: Successful | N184: 2017-01-05
A185: 37 | B185: 2015-09-04 | D185: TCI | E185: Accu | F185: 226.00 | H185: 292 | I185: 292.00 | J185: Target Achieved | K185: 66.00 | L185: 29.20% | M185: Successful | N185: 2015-10-09
A186: 38 | B186: 2015-09-07 | D186: Kalpataru Power Transmission Ltd | E186: Accu | F186: 232.50 | H186: 312.5 | I186: 310.00 | J186: Target Achieved | K186: 80.00 | L186: 34.41% | M186: Successful | N186: 2017-03-29
A187: 39 | B187: 2015-09-21 | D187: LLOYD ELECTRIC & ENG LTD | E187: Accu | F187: 196.50 | H187: 238 | I187: 238.00 | J187: Target Achieved | K187: 41.50 | L187: 21.12% | M187: Successful | N187: 2015-10-14
A188: 40 | B188: 2015-09-24 | D188: L&T Finance Holding | E188: Accu | F188: 65.00 | H188: 82 | I188: 82.00 | J188: Target Achieved | K188: 17.00 | L188: 26.15% | M188: Successful | N188: 2016-07-27
A189: 41 | B189: 2015-10-14 | D189: KEC International ltd | E189: Accu | F189: 144.00 | H189: 182.5 | I189: 181.00 | J189: Target Achieved | K189: 38.50 | L189: 26.74% | M189: Successful | N189: 2017-03-23
A190: 42 | B190: 2015-10-14 | D190: Gruh Finance | E190: Accu | F190: 264.00 | H190: 311 | I190: 311.00 | J190: Target Achieved | K190: 47.00 | L190: 17.80% | M190: Successful | N190: 2016-08-22
A191: 43 | B191: 2015-11-10 | D191: Pidilitind | E191: Buy | F191: 549.50 | H191: 630 | I191: 630.00 | J191: Target Achieved | K191: 80.50 | L191: 14.65% | M191: Successful | N191: 2016-02-19
A192: 44 | B192: 2015-12-04 | D192: Zensar Technology | E192: Accu | F192: 1027.50 | H192: 1315 | I192: 1250.00 | J192: Target Achieved | K192: 287.50 | L192: 27.98% | M192: Successful | N192: 2018-05-24
A193: 45 | B193: 2015-12-29 | D193: Vinati Organics Ltd | E193: Accu | F193: 465.00 | H193: 540 | I193: 540.00 | J193: Target Achieved | K193: 75.00 | L193: 16.13% | M193: Successful | N193: 2016-06-09
A194: 46 | B194: 2016-01-11 | D194: GSFC | E194: Buy | F194: 81.00 | H194: 110 | I194: 110.00 | J194: Target Achieved | K194: 29.00 | L194: 35.80% | M194: Successful | N194: 2017-01-10
A195: 47 | B195: 2016-01-13 | D195: SSWL | E195: Buy | F195: 417.50 | H195: 547 | I195: 535.00 | J195: Target Achieved | K195: 129.50 | L195: 31.02% | M195: Successful | N195: 2016-07-27
A196: 48 | B196: 2016-02-08 | D196: Persistent System Ltd | E196: Accu | F196: 650.00 | H196: 800 | I196: 800.00 | J196: Target Achieved | K196: 150.00 | L196: 23.08% | M196: Successful | N196: 2018-02-23
A197: 49 | B197: 2016-03-04 | D197: UPL | E197: Accu | F197: 437.50 | H197: 504.5 | I197: 522.00 | J197: Profit of Rs.67/- | K197: 67.00 | L197: 15.31% | M197: Successful | N197: 2016-04-20
A198: 50 | B198: 2016-03-09 | D198: Ashoka Buildcon Ltd | E198: Accu | F198: 189.50 | H198: 218 | I198: 218.00 | J198: Target Achieved | K198: 28.50 | L198: 15.04% | M198: Successful | N198: 2017-10-26
A199: 51 | B199: 2016-04-11 | D199: PTC INDIA FIN SERV LTD | E199: Accu | F199: 36.5 | H199: 15.85 | I199: 60.00 | J199: Loss of Rs.20.65/- | K199: -20.65 | L199: -56.58% | M199: Unsuccessful | N199: 2019-06-11
A200: 52 | B200: 2016-04-12 | D200: CAMLINFINE $ | E200: Accu | F200: 93.00 | H200: 149 | I200: 140.00 | J200: Profit of Rs 56/- | K200: 56.00 | L200: 60.22% | M200: Successful | N200: 2017-01-05
A201: 53 | B201: 2016-04-12 | D201: Greaves Cotton Ltd. | E201: Accu | F201: 130.00 | H201: 150 | I201: 150-155 | J201: Target Achieved | K201: 20.00 | L201: 15.38% | M201: Successful | N201: 2016-07-13
A202: 54 | B202: 2016-04-13 | D202: DHFL | E202: Accu | F202: 196.00 | H202: 299 | I202: 299.00 | J202: Target Achieved | K202: 103.00 | L202: 52.55% | M202: Successful | N202: 2016-09-07
A203: 55 | B203: 2016-04-13 | D203: Magma | E203: Accu | F203: 88.00 | H203: 103 | I203: 103.00 | J203: Target Achieved | K203: 15.00 | L203: 17.05% | M203: Successful | N203: 2016-06-09
A204: 56 | B204: 2016-05-02 | D204: KEC International ltd $ | E204: Accu | F204: 127.50 | H204: 148 | I204: 148-150 | J204: Target Achieved | K204: =H204-F204 -> 20.50 | L204: =K204/F204 -> 16.08% | M204: Successful | N204: 2016-07-13
A205: 57 | B205: 2016-05-03 | D205: Mindtree | E205: Accu | F205: 675.00 | H205: 815 | I205: 790-800 | J205: Target Achieved | K205: =H205-F205 -> 140.00 | L205: =K205/F205 -> 20.74% | M205: Successful | N205: 2018-02-23
A206: 58 | B206: 2016-06-01 | D206: Atulauto | E206: Accu | F206: 500 | H206: 232.50 | I206: 565-570 | J206: Loss of Rs.267.50 /- | K206: =H206-F206 -> -267.50 | L206: =K206/F206 -> -53.50% | M206: Unsuccessful | N206: 2019-09-27
A207: 59 | B207: 2016-06-06 | D207: TRITURBINE | E207: Accu | F207: 110.00 | H207: 126.5 | I207: 125.00 | J207: Profit of Rs.16.50/- | K207: =H207-F207 -> 16.50 | L207: =K207/F207 -> 15.00% | M207: Successful | N207: 2016-07-01
A208: 60 | B208: 2016-06-17 | D208: Pennar Industries Ltd | E208: Accu | F208: 44.00 | H208: 69.5 | I208: 69.50 | J208: Profit of Rs.25.50/- | K208: =H208-F208 -> 25.50 | L208: =K208/F208 -> 57.95% | M208: Successful | N208: 2017-08-30
A209: 61 | B209: 2016-06-28 | D209: EVEREADY | E209: Accu | F209: 262.50 | H209: 340 | I209: 333.00 | J209: Profit of Rs.77.50/- | K209: 77.50 | L209: 29.52% | M209: Successful | N209: 2017-10-09
A210: 62 | B210: 2016-06-28 | D210: FIEMIND | E210: Accu | F210: 840.00 | H210: 1230 | I210: 1230.00 | J210: Target Achieved | K210: 390.00 | L210: 46.43% | M210: Successful | N210: 2016-10-06
A211: 63 | B211: 2016-07-05 | D211: Bajaj Corp Ltd | E211: Accu | F211: 395 | H211: =(468.5+342.5)/2 -> 405.50 | I211: 510.00 | J211: Profit of Rs.10.50/- | K211: =H211-F211 -> 10.50 | L211: =K211/F211 -> 3% | M211: Neutral | N211: 2019-05-21
A212: 64 | B212: 2016-08-02 | D212: GPPL $ | E212: Buy | F212: =169.5-12.8 -> 156.7 | H212: 77.00 | I212: 198-200 | J212: Loss of Rs.79.7/- | K212: -79.70 | L212: -50.86% | M212: Unsuccessful | N212: 2019-02-26
A213: 65 | B213: 2016-08-04 | D213: WONDERLA HOLIDAYS LTD | E213: Accu | F213: 400 | H213: 305.00 | I213: 475.00 | J213: Loss of Rs.95/- | K213: -95.00 | L213: -23.75% | M213: Unsuccessful | N213: 2019-05-21
A214: 66 | B214: 2016-08-11 | D214: CAMLINFINE | E214: Accu | F214: 86.50 | H214: 130 | I214: 130.00 | J214: Profit of Rs.43.50/- | K214: 43.50 | L214: 50.29% | M214: Successful | N214: 2017-12-22
A215: 67 | B215: 2016-08-18 | D215: GRANULES | E215: Accu | F215: 133.5 | H215: 126.50 | I215: 178.00 | J215: Exit | K215: -7.00 | L215: -5.24% | M215: Unsuccessful | N215: 2016-09-02
A216: 68 | B216: 2016-08-31 | D216: VA TECH WABAG | E216: Accu | F216: 560.00 | H216: 725 | I216: 725.00 | J216: Target Achieved | K216: 165.00 | L216: 29.46% | M216: Successful | N216: 2016-03-27
A217: 69 | B217: 2016-09-01 | D217: SKIPPER LIMITED | E217: Accu | F217: 160.50 | H217: 210 | I217: 210.00 | J217: Target Achieved | K217: 49.50 | L217: 30.84% | M217: Successful | N217: 2017-05-16
A218: 70 | B218: 2016-10-03 | D218: IFBIND | E218: Accu | F218: 430.00 | H218: 596 | I218: 575.00 | J218: Profit of Rs.166/- | K218: 166.00 | L218: 38.60% | M218: Successful | N218: 2017-02-03
A219: 71 | B219: 2016-10-14 | D219: ASIANTILES | E219: Accu | F219: 280.00 | H219: 345 | I219: 345.00 | J219: Target Achieved | K219: =H219-F219 -> 65.00 | L219: =K219/F219 -> 23.21% | M219: Successful | N219: 2017-03-20
A220: 72 | B220: 2016-10-14 | D220: DEEPIND | E220: Accu | F220: 245.00 | H220: 325.5 | I220: 330.00 | J220: Profit of Rs.80.5/- | K220: 80.50 | L220: =K220/F220 -> 32.86% | M220: Successful | N220: 2017-02-03
A221: 73 | B221: 2016-10-17 | D221: DCBBANK | E221: Accu | F221: 125.00 | H221: 160 | I221: 160.00 | J221: Target Achieved | K221: 35.00 | L221: 28.00% | M221: Successful | N221: 2017-03-09
A222: 74 | B222: 2016-10-17 | D222: ORIENTREF | E222: Accu | F222: 114.00 | H222: 145 | I222: 145.00 | J222: Target Achieved | K222: 31.00 | L222: =K222/F222 -> 27.19% | M222: Successful | N222: 2017-05-04
A223: 75 | B223: 2016-10-17 | D223: GANECOS | E223: Accu | F223: 212.00 | H223: 280 | I223: 276.00 | J223: Profit of Rs.68/- | K223: 68.00 | L223: =K223/F223 -> 32.08% | M223: Successful | N223: 2017-05-03
A224: 76 | B224: 2016-11-04 | D224: NBCC | E224: Accu | F224: 155.00 | H224: 210 | I224: 210.00 | J224: Profit of Rs.55/- | K224: 55.00 | L224: =K224/F224 -> 35.48% | M224: Successful | N224: 2017-07-28
A225: 77 | B225: 2016-12-06 | D225: PRECAM | E225: Accu | F225: 150.5 | H225: 72.50 | I225: 174.00 | J225: Loss of Rs.78/- | K225: -78.00 | L225: -51.83% | M225: Unsuccessful | N225: 2018-08-21
A226: 78 | B226: 2016-12-08 | D226: INFRATEL | E226: Accu | F226: 380.00 | H226: 478 | I226: 468.00 | J226: Target Achieved | K226: =H226-F226 -> 98.00 | L226: =K226/F226 -> 25.79% | M226: Successful | N226: 2017-10-17
A227: 79 | B227: 2016-12-30 | D227: GODREJPROP | E227: Accu | F227: 305.00 | H227: 375 | I227: 375.00 | J227: Target Achieved | K227: =H227-F227 -> 70.00 | L227: =K227/F227 -> 22.95% | M227: Successful | N227: 2017-02-02
A228: 80 | B228: 2017-01-04 | D228: DEEPAKNTR | E228: Accu | F228: 99.50 | H228: 158 | I228: 158.00 | J228: Target Achieved | K228: =H228-F228 -> 58.50 | L228: =K228/F228 -> 58.79% | M228: Successful | N228: 2017-06-12
A229: 81 | B229: 2017-01-04 | D229: DEEPAKNTR | E229: Accu | F229: 99.50 | H229: 158 | I229: 158.00 | J229: Target Achieved | K229: 58.50 | L229: 58.79% | M229: Successful | N229: 2017-06-12
A230: 82 | B230: 2017-02-20 | D230: RECLTD | E230: Accu | F230: 140.50 | H230: 220 | I230: 220.00 | J230: Target Achieved | K230: =H230-F230 -> 79.50 | L230: =K230/F230 -> 56.58% | M230: Successful | N230: 2017-05-09
A231: 83 | B231: 2017-02-20 | D231: SUBROS | E231: Accu | F231: 202.50 | H231: 234 | I231: 234.00 | J231: Target Achieved | K231: 31.50 | L231: 15.56% | M231: Successful | N231: 2017-04-11
A232: 84 | B232: 2017-03-24 | D232: VRLLOG | E232: Accu | F232: 300.50 | H232: 417.5 | I232: 420.00 | J232: Profit of Rs.117/- | K232: =H232-F232 -> 117.00 | L232: =K232/F232 -> 38.94% | M232: Successful | N232: 2017-12-01
... 82 more rows
